Body Name,Body Ref,Service Area Categorisation,Expense Type,Payment Date,Transaction Ref,Total Amount,Capital/Revenue,Supplier ID,Supplier Name
Shropshire,00GG,Place - Shropshire Hills AONB,Third Party Payments - Transport Operators,03/11/2021,3277215,"4,487.00",Revenue,1000081,Boultons Of Shropshire Ltd
Shropshire,00GG,Place - Highways (Operations),Third Party Payments - Private Contractors,03/11/2021,3277857,720.37,Revenue,1000197,Loosemores (Transport) Ltd
Shropshire,00GG,People - Home to School Transport,Transport-Related Expenditure - Contract Hire and Operating Leases,03/11/2021,3281615,"1,120.00",Revenue,1000198,Longmynd Travel Ltd
Shropshire,00GG,Place - Highways (Operations),Supplies & Services - Services,03/11/2021,3277119,"8,804.80",Revenue,1000428,Compass Minerals Uk Limited
Shropshire,00GG,Children's Services - Home to School Transport,Transport-Related Expenditure - Contract Hire and Operating Leases,03/11/2021,3283959,"2,520.00",Revenue,1000766,Birch Travel Ltd
Shropshire,00GG,Place - Shire Catering,Supplies & Services - Catering,03/11/2021,3281846,"1,210.80",Revenue,1000769,The Little Food Company Limited
Shropshire,00GG,Place - Corporate Landlord - Museums & Culture,Premises-Related Expenditure - Repairs alterations and maintenance of buildings,03/11/2021,11326995,492.10,Revenue,1001104,Shropshire Cooling Services Ltd
Shropshire,00GG,Adult Services - Care Management - Assistive Equipment & Technology,Premises-Related Expenditure - Repairs alterations and maintenance of buildings,03/11/2021,11325788,504.54,Revenue,1001663,Lift & Engineering Services Ltd
Shropshire,00GG,Adult Services - Care Management - Assistive Equipment & Technology,Premises-Related Expenditure - Repairs alterations and maintenance of buildings,03/11/2021,11325798,908.00,Revenue,1001663,Lift & Engineering Services Ltd
Shropshire,00GG,Place - Environment and Transport (Public Transport),Transport-Related Expenditure - Direct Transport Costs,03/11/2021,3276756,"1,625.69",Revenue,1001752,Furrows Ltd - Shrewsbury
Shropshire,00GG,People - Housing Options,Supplies & Services - Services,03/11/2021,3283967,"2,345.00",Revenue,1002000,The Raven Hotel
Shropshire,00GG,Adult Services - Housing Options,Premises-Related Expenditure - Grounds maintenance costs,03/11/2021,3282319,"65,690.24",Revenue,1002235,Taybar Security Limited
Shropshire,00GG,Adult Services - Housing Options,Premises-Related Expenditure - Grounds maintenance costs,03/11/2021,3282321,"65,690.24",Revenue,1002235,Taybar Security Limited
Shropshire,00GG,Adult Services - Social Care Hospital Interface Purchasing,Third Party Payments - Private Contractors,03/11/2021,11325025,568.92,Revenue,1002304,Priority Care (Shropshire) Ltd
Shropshire,00GG,Adult Services - Social Care Hospital Interface Purchasing,Third Party Payments - Private Contractors,03/11/2021,11325865,706.22,Revenue,1002304,Priority Care (Shropshire) Ltd
Shropshire,00GG,Adult Services - Social Care Hospital Interface Purchasing,Third Party Payments - Private Contractors,03/11/2021,11325866,514.92,Revenue,1002304,Priority Care (Shropshire) Ltd
Shropshire,00GG,Adult Services - Social Care Hospital Interface Purchasing,Third Party Payments - Private Contractors,03/11/2021,11325867,"2,471.84",Revenue,1002304,Priority Care (Shropshire) Ltd
Shropshire,00GG,Children's Services - Special Educational Needs & Disability,Third Party Payments - Other Establishments,03/11/2021,3277811,"5,850.00",Revenue,1002575,Crossbar Coaching
Shropshire,00GG,Children's Services - Special Educational Needs & Disability,Third Party Payments - Other Establishments,03/11/2021,3277812,"5,850.00",Revenue,1002575,Crossbar Coaching
Shropshire,00GG,Children's Services - Special Educational Needs & Disability,Third Party Payments - Other Establishments,03/11/2021,3278084,"5,850.00",Revenue,1002575,Crossbar Coaching
Shropshire,00GG,Children's Services - Special Educational Needs & Disability,Third Party Payments - Other Establishments,03/11/2021,3278393,"5,850.00",Revenue,1002575,Crossbar Coaching
Shropshire,00GG,Place - Theatre Services,Third Party Payments - Private Contractors,03/11/2021,3283472,"1,484.48",Revenue,1002656,Universal Pictures International Uk
Shropshire,00GG,Place - Shire Catering,Supplies & Services - Catering,03/11/2021,3283899,687.20,Revenue,1002955,Theos Food Service Ltd
Shropshire,00GG,Children's Services - Early Help General,Third Party Payments - Private Contractors,03/11/2021,3283342,"16,633.10",Revenue,1003078,Midlands Partnership Nhs Foundation Trust
Shropshire,00GG,Place - Environment and Transport (Public Transport),Transport-Related Expenditure - Contract Hire and Operating Leases,03/11/2021,3284041,916.72,Revenue,1003158,Car Hire (Day Of Swansea) Ltd
Shropshire,00GG,Adult Services - Social Care Hospital Interface Purchasing,Third Party Payments - Private Contractors,03/11/2021,11328464,858.51,Revenue,1003380,Quality Home Care Ltd
Shropshire,00GG,Place - Corporate Landlord - Mardol House & Tannery,Premises-Related Expenditure - Repairs alterations and maintenance of buildings,03/11/2021,11328588,992.90,Revenue,1004103,Walker Fire (Uk) Ltd
Shropshire,00GG,Place - Corporate Landlord -  Economic Development,Premises-Related Expenditure - Energy Costs,03/11/2021,3279765,621.96,Revenue,1004121,Bes Commercial Electricity Ltd
Shropshire,00GG,"Finance, Governance & Assurance - Commissioning Development & Procurement",Employees - Direct Employee Expenses,03/11/2021,3282682,"286,393.48",Revenue,1004129,Matrix Scm Ltd
Shropshire,00GG,People - Independent Living,Third Party Payments - Private Contractors,03/11/2021,3284120,"3,333.32",Revenue,1004162,Shropshire Towns & Rural Housing Ltd
Shropshire,00GG,People - Independent Living,Third Party Payments - Private Contractors,03/11/2021,3284121,"54,890.48",Revenue,1004162,Shropshire Towns & Rural Housing Ltd
Shropshire,00GG,Place - Libraries,Supplies & Services - Equipment Furniture and Materials,03/11/2021,3283947,"2,972.36",Revenue,1004304,Bibliotheca Ltd
Shropshire,00GG,Place - Environment and Transport (Public Transport),Supplies & Services - Services,03/11/2021,3276966,"2,420.83",Revenue,1004565,Data Management Consultancy
Shropshire,00GG,Adult Services - Supported Living Properties,Premises-Related Expenditure - Rents,03/11/2021,3277939,"3,095.58",Revenue,1004774,Bromford Housing Association
Shropshire,00GG,Place - Shire Catering,Supplies & Services - Equipment Furniture and Materials,03/11/2021,3282937,930.42,Revenue,1005013,Nobisco Limited
Shropshire,00GG,Adult Services - Social Care Hospital Interface Purchasing,Third Party Payments - Private Contractors,03/11/2021,11324605,"1,200.00",Revenue,1005586,Care Cover 24/7 Ltd
Shropshire,00GG,Adult Services - Social Care Hospital Interface Purchasing,Third Party Payments - Private Contractors,03/11/2021,11324606,"2,059.15",Revenue,1005586,Care Cover 24/7 Ltd
Shropshire,00GG,Adult Services - Social Care Hospital Interface Purchasing,Third Party Payments - Private Contractors,03/11/2021,11324608,637.66,Revenue,1005586,Care Cover 24/7 Ltd
Shropshire,00GG,Adult Services - Social Care Hospital Interface Purchasing,Third Party Payments - Private Contractors,03/11/2021,11324614,"1,177.20",Revenue,1005795,Approved Care And Support
Shropshire,00GG,People - Independent Living,Third Party Payments - Private Contractors,03/11/2021,3284119,"33,543.93",Revenue,1008275,Care Plus Staffordshire Ltd
Shropshire,00GG,People - Early Years,Third Party Payments - Other Establishments,03/11/2021,3282101,"11,472.01",Revenue,1008393,Birchfield Prepcare Day Nursery
Shropshire,00GG,Capital - Corporate Landlord Capital,Non Revenue - Non Revenue,03/11/2021,11328733,"25,693.50",Capital,1008604,Pp Electrical Services (Shropshire) Ltd
Shropshire,00GG,Place - Corporate Landlord - Leisure,Premises-Related Expenditure - Repairs alterations and maintenance of buildings,03/11/2021,11328734,"1,518.85",Revenue,1008604,Pp Electrical Services (Shropshire) Ltd
Shropshire,00GG,Place - Corporate Landlord - Museums & Culture,Premises-Related Expenditure - Repairs alterations and maintenance of buildings,03/11/2021,11328740,427.68,Revenue,1008613,Dr E Contractors Ltd
Shropshire,00GG,Capital - Housing Services Capital,Non Revenue - Non Revenue,03/11/2021,3284074,"4,440.00",Capital,1008669,Shire Stairlifts Ltd
Shropshire,00GG,Capital - Housing Services Capital,Non Revenue - Non Revenue,03/11/2021,3284052,"5,405.00",Capital,1009278,Candor Care Limited
Shropshire,00GG,Adult Services - Social Care Hospital Interface Purchasing,Third Party Payments - Private Contractors,03/11/2021,11324609,"1,928.56",Revenue,1010117,Invest In Care (T/A Brialyn Ltd (I.C.S)
Shropshire,00GG,Adult Services - Social Care Hospital Interface Purchasing,Third Party Payments - Private Contractors,03/11/2021,11324610,"5,400.00",Revenue,1010117,Invest In Care (T/A Brialyn Ltd (I.C.S)
Shropshire,00GG,Adult Services - Social Care Hospital Interface Purchasing,Third Party Payments - Private Contractors,03/11/2021,11324611,"5,400.00",Revenue,1010117,Invest In Care (T/A Brialyn Ltd (I.C.S)
Shropshire,00GG,Adult Services - Social Care Hospital Interface Purchasing,Third Party Payments - Private Contractors,03/11/2021,11324612,"5,400.00",Revenue,1010117,Invest In Care (T/A Brialyn Ltd (I.C.S)
Shropshire,00GG,Adult Services - Social Care Hospital Interface Purchasing,Third Party Payments - Private Contractors,03/11/2021,11327083,"7,714.28",Revenue,1010117,Invest In Care (T/A Brialyn Ltd (I.C.S)
Shropshire,00GG,Adult Services - Social Care Hospital Interface Purchasing,Third Party Payments - Private Contractors,03/11/2021,11327084,"5,400.00",Revenue,1010117,Invest In Care (T/A Brialyn Ltd (I.C.S)
Shropshire,00GG,Adult Services - Social Care Hospital Interface Purchasing,Third Party Payments - Private Contractors,03/11/2021,11327085,"11,957.12",Revenue,1010117,Invest In Care (T/A Brialyn Ltd (I.C.S)
Shropshire,00GG,Workforce and Transformation - Human Resources Operations,Employees - Indirect Employee Expenses,03/11/2021,3282327,764.50,Revenue,1011259,Cantium Business Solutions
Shropshire,00GG,Legal and Democratic Services - Legal Services � Child Care,Supplies & Services - Services,03/11/2021,3284051,875.00,Revenue,1011788,Aidan Mcgivern
Shropshire,00GG,Children's Services - Children�s Case Management,Supplies & Services - Services,03/11/2021,3283153,"3,134.00",Revenue,1012033,MEWA LLP
Shropshire,00GG,People - Housing Options,Supplies & Services - Services,03/11/2021,3283942,"2,310.00",Revenue,1012682,Little Pub Company (Oswestry) Ltd  TA Railway Inn
Shropshire,00GG,People - Early Years,Third Party Payments - Other Establishments,03/11/2021,3282089,574.28,Revenue,1013179,Rainbows Nursery Plus
Shropshire,00GG,Place - Property Services Group,Premises-Related Expenditure - Repairs alterations and maintenance of buildings,03/11/2021,3283955,"2,336.00",Revenue,1014012,Henry Williams And Son (Roads) Ltd
Shropshire,00GG,Place - Environment and Transport (Street Scene),Supplies & Services - Services,04/11/2021,3283405,847.44,Revenue,1000135,Hilbrae Pets Hotel
Shropshire,00GG,Place - Environment and Transport (Street Scene),Supplies & Services - Services,04/11/2021,3283427,718.47,Revenue,1000135,Hilbrae Pets Hotel
Shropshire,00GG,Place - Environment and Transport (Public Transport),Transport-Related Expenditure - Contract Hire and Operating Leases,04/11/2021,3284525,"3,220.00",Revenue,1000136,M H Elcock And Son Ltd Ta Elcock Reisen
Shropshire,00GG,People - Home to School Transport,Transport-Related Expenditure - Contract Hire and Operating Leases,04/11/2021,3282203,"2,880.00",Revenue,1000198,Longmynd Travel Ltd
Shropshire,00GG,People - Home to School Transport,Transport-Related Expenditure - Contract Hire and Operating Leases,04/11/2021,3282206,"2,985.00",Revenue,1000198,Longmynd Travel Ltd
Shropshire,00GG,Place - Environment and Transport (Public Transport),Third Party Payments - Transport Operators,04/11/2021,3284461,"8,215.96",Revenue,1000204,Lakeside Coaches Ltd
Shropshire,00GG,Place - Environment and Transport (Public Transport),Third Party Payments - Transport Operators,04/11/2021,3284468,"3,610.64",Revenue,1000204,Lakeside Coaches Ltd
Shropshire,00GG,Children's Services - Early Years,Third Party Payments - Other Establishments,04/11/2021,3277216,"1,047.80",Revenue,1000295,Powys County Council
Shropshire,00GG,Place - Highways (Operations),Supplies & Services - Services,04/11/2021,3277443,"9,032.34",Revenue,1000428,Compass Minerals Uk Limited
Shropshire,00GG,Adult Services - Internal Providers - Day Services,Supplies & Services - Equipment Furniture and Materials,04/11/2021,3278771,950.00,Revenue,1000763,Phs Group Plc
Shropshire,00GG,People - Home to School Transport,Transport-Related Expenditure - Contract Hire and Operating Leases,04/11/2021,3283946,"1,185.00",Revenue,1000766,Birch Travel Ltd
Shropshire,00GG,People - Home to School Transport,Transport-Related Expenditure - Contract Hire and Operating Leases,04/11/2021,3283971,"2,520.00",Revenue,1000766,Birch Travel Ltd
Shropshire,00GG,People - Home to School Transport,Transport-Related Expenditure - Contract Hire and Operating Leases,04/11/2021,3283974,"2,145.00",Revenue,1000766,Birch Travel Ltd
Shropshire,00GG,Place - Shire Catering,Supplies & Services - Catering,04/11/2021,3281903,"1,286.00",Revenue,1000769,The Little Food Company Limited
Shropshire,00GG,Capital - Primary School Capital,Non Revenue - Non Revenue,04/11/2021,3282466,"5,910.00",Capital,1000797,D R & J Orritt
Shropshire,00GG,Place - Highways (Operations),Third Party Payments - Private Contractors,04/11/2021,3284384,"6,000.00",Revenue,1000843,Oswestry Town Council
Shropshire,00GG,Place - Shire Catering,Supplies & Services - Catering,04/11/2021,3280608,853.84,Revenue,1000926,Options Management
Shropshire,00GG,Place - Shire Catering,Supplies & Services - Catering,04/11/2021,3280623,"1,051.00",Revenue,1000926,Options Management
Shropshire,00GG,Workforce and Transformation - Human Resources Operations,Supplies & Services - Communications and Computing,04/11/2021,3278077,"2,400.00",Revenue,1000930,Zellis Uk Limited
Shropshire,00GG,Workforce and Transformation - ICT Services,Supplies & Services - Communications and Computing,04/11/2021,3277326,"3,725.00",Revenue,1000933,Xma Ltd
Shropshire,00GG,Adult Services - Social Care Community Purchasing,Third Party Payments - Private Contractors,04/11/2021,11325028,"12,600.00",Revenue,1001105,Prestige Nursing Ltd
Shropshire,00GG,Adult Services - Social Care Community Purchasing,Third Party Payments - Private Contractors,04/11/2021,11325029,"2,940.00",Revenue,1001105,Prestige Nursing Ltd
Shropshire,00GG,Children's Services - Home to School Transport,Transport-Related Expenditure - Contract Hire and Operating Leases,04/11/2021,3284574,"1,224.00",Revenue,1001549,Jeff'S Taxis & Minibuses
Shropshire,00GG,Adult Services - Independent Living,Third Party Payments - Private Contractors,04/11/2021,3277001,"24,458.33",Revenue,1001616,Independent Living Partnership Ltd
Shropshire,00GG,Capital - Social Care Operations Capital,Non Revenue - Non Revenue,04/11/2021,3277008,"2,250.00",Capital,1001616,Independent Living Partnership Ltd
Shropshire,00GG,Adult Services - Social Care Hospital Interface Purchasing,Third Party Payments - Private Contractors,04/11/2021,11324616,"1,155.00",Revenue,1001745,Abbey Care Direct Ltd
Shropshire,00GG,People - Housing Options,Supplies & Services - Services,04/11/2021,3284381,"2,660.00",Revenue,1002000,The Raven Hotel
Shropshire,00GG,Children's Services - Placements: Residential Placements,Third Party Payments - Other Establishments,04/11/2021,11325376,"23,485.71",Revenue,1002017,Bryn Melyn Care Ltd
Shropshire,00GG,Children's Services - Placements: Residential Placements,Third Party Payments - Other Establishments,04/11/2021,11328664,"24,268.57",Revenue,1002017,Bryn Melyn Care Ltd
Shropshire,00GG,Place - Outdoor Partnerships,Premises-Related Expenditure - Repairs alterations and maintenance of buildings,04/11/2021,3278549,535.00,Revenue,1002135,Huws Gray Limited
Shropshire,00GG,Place - Environment and Transport (Parking),Supplies & Services - Equipment Furniture and Materials,04/11/2021,3283574,"5,183.00",Revenue,1002556,Nagels (Uk) Limited
Shropshire,00GG,Adult Services - Sexual Health,Third Party Payments - Health Authorities,04/11/2021,3284507,"69,959.00",Revenue,1003078,Midlands Partnership Nhs Foundation Trust
Shropshire,00GG,Adult Services - Independent Living,Third Party Payments - Private Contractors,04/11/2021,3282439,"2,925.84",Revenue,1003149,E.On Uk Plc
Shropshire,00GG,Place - Environment and Transport (Street Scene),Third Party Payments - Private Contractors,04/11/2021,3277558,"1,530.00",Revenue,1004125,Mr Mark Partridge
Shropshire,00GG,People - Home to School Transport,Transport-Related Expenditure - Contract Hire and Operating Leases,04/11/2021,3281010,"2,070.00",Revenue,1004193,Happy Days Coaches
Shropshire,00GG,People - Home to School Transport,Transport-Related Expenditure - Contract Hire and Operating Leases,04/11/2021,3281031,"2,290.00",Revenue,1004193,Happy Days Coaches
Shropshire,00GG,Children's Services - Learning & Skills Business Support,Supplies & Services - Grants and Subscriptions,04/11/2021,3284554,580.00,Revenue,1004582,Starbeck Educational Resources
Shropshire,00GG,People - Home to School Transport,Transport-Related Expenditure - Contract Hire and Operating Leases,04/11/2021,3280958,500.00,Revenue,1004760,Alexanders Of Wem Taxis
Shropshire,00GG,People - Home to School Transport,Transport-Related Expenditure - Contract Hire and Operating Leases,04/11/2021,3282870,"1,030.00",Revenue,1004760,Alexanders Of Wem Taxis
Shropshire,00GG,People - Home to School Transport,Transport-Related Expenditure - Contract Hire and Operating Leases,04/11/2021,3282878,770.00,Revenue,1004760,Alexanders Of Wem Taxis
Shropshire,00GG,Children's Services - Special Educational Needs & Disability,Supplies & Services - Services,04/11/2021,3281351,874.00,Revenue,1004937,Victoria Everall
Shropshire,00GG,Workforce and Transformation - Organisational Development,Supplies & Services - Services,04/11/2021,3284362,"8,400.00",Revenue,1006467,Ascensio Limited
Shropshire,00GG,People - Early Years,Third Party Payments - Other Establishments,04/11/2021,3284399,"2,600.00",Revenue,1008317,Earlyworld Nursery
Shropshire,00GG,People - Early Years,Third Party Payments - Other Establishments,04/11/2021,3283829,568.13,Revenue,1008342,Holy Trinity Playgroup
Shropshire,00GG,People - Early Years,Third Party Payments - Other Establishments,04/11/2021,3282993,785.85,Revenue,1008379,Hillside House Nursery
Shropshire,00GG,People - Early Years,Third Party Payments - Other Establishments,04/11/2021,3283122,604.50,Revenue,1008407,Kym Crippin
Shropshire,00GG,Children's Services - Early Years,Third Party Payments - Other Establishments,04/11/2021,3282499,984.75,Revenue,1008543,Stottesdon Gateway Nursery
Shropshire,00GG,People - Early Years,Third Party Payments - Other Establishments,04/11/2021,3282529,984.75,Revenue,1008543,Stottesdon Gateway Nursery
Shropshire,00GG,Place - Environment and Transport (Street Scene),Third Party Payments - Other Agencies,04/11/2021,3284393,"2,275.00",Revenue,1008985,Evans Welding Limited
Shropshire,00GG,Place - Outdoor Partnerships,Premises-Related Expenditure - Repairs alterations and maintenance of buildings,04/11/2021,3277330,"4,465.77",Revenue,1010173,Cld Fencing Systems Ltd
Shropshire,00GG,Workforce and Transformation - ICT Services,Supplies & Services - Communications and Computing,04/11/2021,3277464,"4,995.00",Revenue,1010263,Adobe System Software Ireland Ltd
Shropshire,00GG,Place - Corporate Landlord - Mardol House & Tannery,Premises-Related Expenditure - Rates,04/11/2021,3284209,927.73,Revenue,1010548,Sc Bid Levy Account
Shropshire,00GG,Place - Commercial Services Business Development,Premises-Related Expenditure - Rates,04/11/2021,3284278,"5,235.62",Revenue,1010548,Sc Bid Levy Account
Shropshire,00GG,Place - Planning Services,Non Revenue - Non Revenue,05/11/2021,3279761,"1,719.68",Revenue,1000128,R G Edwards & Co Ltd
Shropshire,00GG,Adult Services - Supported Living Properties,Premises-Related Expenditure - Repairs alterations and maintenance of buildings,05/11/2021,11327032,436.39,Revenue,1000128,R G Edwards & Co Ltd
Shropshire,00GG,Children's Services - Non-Delegated Primary DSG,Premises-Related Expenditure - Repairs alterations and maintenance of buildings,05/11/2021,11326117,"1,495.00",Revenue,1000173,Ian Gibbons Building Maintenance Special
Shropshire,00GG,Children's Services - Non-Delegated Primary DSG,Premises-Related Expenditure - Repairs alterations and maintenance of buildings,05/11/2021,11327010,"1,785.55",Revenue,1000173,Ian Gibbons Building Maintenance Special
Shropshire,00GG,People - Home to School Transport,Transport-Related Expenditure - Contract Hire and Operating Leases,05/11/2021,3282502,"3,136.00",Revenue,1000198,Longmynd Travel Ltd
Shropshire,00GG,People - Home to School Transport,Transport-Related Expenditure - Contract Hire and Operating Leases,05/11/2021,3282511,"2,864.00",Revenue,1000198,Longmynd Travel Ltd
Shropshire,00GG,People - Home to School Transport,Transport-Related Expenditure - Contract Hire and Operating Leases,05/11/2021,3282513,"2,272.00",Revenue,1000198,Longmynd Travel Ltd
Shropshire,00GG,People - Home to School Transport,Transport-Related Expenditure - Contract Hire and Operating Leases,05/11/2021,3282517,"3,184.00",Revenue,1000198,Longmynd Travel Ltd
Shropshire,00GG,People - Home to School Transport,Transport-Related Expenditure - Contract Hire and Operating Leases,05/11/2021,3282522,"2,952.00",Revenue,1000198,Longmynd Travel Ltd
Shropshire,00GG,People - Home to School Transport,Transport-Related Expenditure - Contract Hire and Operating Leases,05/11/2021,3282533,"1,048.00",Revenue,1000198,Longmynd Travel Ltd
Shropshire,00GG,People - Home to School Transport,Transport-Related Expenditure - Contract Hire and Operating Leases,05/11/2021,3282543,"3,112.00",Revenue,1000198,Longmynd Travel Ltd
Shropshire,00GG,Place - Environment and Transport (Public Transport),Third Party Payments - Transport Operators,05/11/2021,3284463,"1,389.15",Revenue,1000204,Lakeside Coaches Ltd
Shropshire,00GG,Place - Environment and Transport (Public Transport),Third Party Payments - Transport Operators,05/11/2021,3284616,"7,867.74",Revenue,1000220,Arriva Midlands Ltd
Shropshire,00GG,Place - Environment and Transport (Public Transport),Third Party Payments - Transport Operators,05/11/2021,3284621,"13,657.58",Revenue,1000220,Arriva Midlands Ltd
Shropshire,00GG,Place - Environment and Transport (Public Transport),Third Party Payments - Transport Operators,05/11/2021,3284622,"12,020.28",Revenue,1000220,Arriva Midlands Ltd
Shropshire,00GG,Place - Environment and Transport (Public Transport),Third Party Payments - Transport Operators,05/11/2021,3284625,"20,985.69",Revenue,1000220,Arriva Midlands Ltd
Shropshire,00GG,Place - Environment and Transport (Public Transport),Third Party Payments - Transport Operators,05/11/2021,3284638,"12,578.21",Revenue,1000220,Arriva Midlands Ltd
Shropshire,00GG,Place - Highways (Streetworks),Supplies & Services - Services,05/11/2021,3278368,997.92,Revenue,1000228,Midland News Association Ltd
Shropshire,00GG,Place - Highways (Streetworks),Supplies & Services - Services,05/11/2021,3278385,914.76,Revenue,1000228,Midland News Association Ltd
Shropshire,00GG,Place - Libraries,Supplies & Services - Equipment Furniture and Materials,05/11/2021,3278394,"2,986.76",Revenue,1000290,Peters Ltd
Shropshire,00GG,Place - Corporate Landlord - Admin Buildings,Premises-Related Expenditure - Grounds maintenance costs,05/11/2021,3278246,"4,158.00",Revenue,1000306,Security Wise Ltd
Shropshire,00GG,Place - Museums & Archives,Supplies & Services - Equipment Furniture and Materials,05/11/2021,3284847,"1,196.00",Revenue,1000306,Security Wise Ltd
Shropshire,00GG,Capital - Corporate Landlord Capital,Non Revenue - Non Revenue,05/11/2021,11328749,934.56,Capital,1000322,R M W Electrical Services Ltd
Shropshire,00GG,Place - Highways (Operations),Supplies & Services - Services,05/11/2021,3277824,"11,160.14",Revenue,1000428,Compass Minerals Uk Limited
Shropshire,00GG,Children's Services - Learning & Skills Business Support,Supplies & Services - Services,05/11/2021,3277521,"1,607.40",Revenue,1000530,Shropshire Youth Association
Shropshire,00GG,Adult Services - Registrars and Coroners,Supplies & Services - Services,05/11/2021,3281546,"8,652.43",Revenue,1000534,Royal Shrewsbury Hospital Nhs Trust
Shropshire,00GG,Place - Shire Catering,Supplies & Services - Catering,05/11/2021,3281866,"1,588.00",Revenue,1000769,The Little Food Company Limited
Shropshire,00GG,Workforce and Transformation - Human Resources Operations,Supplies & Services - Communications and Computing,05/11/2021,3282338,"125,304.00",Revenue,1000930,Zellis Uk Limited
Shropshire,00GG,Workforce and Transformation - ICT Services,Supplies & Services - Communications and Computing,05/11/2021,3278060,"1,159.40",Revenue,1000933,Xma Ltd
Shropshire,00GG,Place - Corporate Landlord - Leisure,Premises-Related Expenditure - Repairs alterations and maintenance of buildings,05/11/2021,11326991,487.90,Revenue,1000973,Ocean Swimming Pools Ltd
Shropshire,00GG,Adult Services - Social Care Community Purchasing,Third Party Payments - Private Contractors,05/11/2021,11328800,"1,960.80",Revenue,1000974,Castlecare Residential Homes
Shropshire,00GG,Place - Shropshire Hills AONB,Supplies & Services - Grants and Subscriptions,05/11/2021,3278337,"8,000.00",Revenue,1001149,The National Trust
Shropshire,00GG,"Finance, Governance & Assurance - Pension Administration Services",Supplies & Services - Services,05/11/2021,3278335,"3,150.00",Revenue,1001257,Pop Creative
Shropshire,00GG,"Finance, Governance & Assurance - Pension Administration Services",Supplies & Services - Services,05/11/2021,3278372,"2,300.00",Revenue,1001257,Pop Creative
Shropshire,00GG,Children's Services - Learning & Skills Business Support,Supplies & Services - Services,05/11/2021,3278261,"2,649.00",Revenue,1001260,Whitchurch Community Services Assoc
Shropshire,00GG,People - Home to School Transport,Transport-Related Expenditure - Contract Hire and Operating Leases,05/11/2021,3282879,"1,100.00",Revenue,1001563,M & L Travel
Shropshire,00GG,Place - Environment and Transport (Parking),Supplies & Services - Equipment Furniture and Materials,05/11/2021,3278483,"10,524.20",Revenue,1001797,Flowbird
Shropshire,00GG,Place - Property & Development,Supplies & Services - Services,05/11/2021,3278159,"2,200.00",Revenue,1001800,Carter Jonas
Shropshire,00GG,Children's Services - Children�s Case Management,Third Party Payments - Other Establishments,05/11/2021,3284885,740.00,Revenue,1001836,The Column Nursery
Shropshire,00GG,"Place - Head of Culture, Leisure & Tourism",Supplies & Services - Services,05/11/2021,3277449,"62,742.00",Revenue,1001872,Atkins Limited
Shropshire,00GG,"Place - Head of Culture, Leisure & Tourism",Supplies & Services - Services,05/11/2021,3277476,"39,566.00",Revenue,1001872,Atkins Limited
Shropshire,00GG,Children's Services - Placements: Residential Placements,Third Party Payments - Other Establishments,05/11/2021,11329311,"21,132.08",Revenue,1002017,Bryn Melyn Care Ltd
Shropshire,00GG,People - Placements: Residential Placements,Third Party Payments - Other Establishments,05/11/2021,11329358,"-15,678.64",Revenue,1002017,Bryn Melyn Care Ltd
Shropshire,00GG,Workforce and Transformation - Print & Post Services,Supplies & Services - Printing Stationery and General Office Expenses,05/11/2021,3279135,457.65,Revenue,1002095,Ricoh Uk Ltd
Shropshire,00GG,Workforce and Transformation - Print & Post Services,Supplies & Services - Printing Stationery and General Office Expenses,05/11/2021,3279151,566.87,Revenue,1002095,Ricoh Uk Ltd
Shropshire,00GG,Adult Services - Social Care Community Purchasing,Third Party Payments - Private Contractors,05/11/2021,11327373,"2,197.80",Revenue,1002214,Condover College Ltd
Shropshire,00GG,Adult Services - Social Care Community Purchasing,Third Party Payments - Private Contractors,05/11/2021,11327374,"2,197.80",Revenue,1002214,Condover College Ltd
Shropshire,00GG,Adult Services - Social Care Community Purchasing,Third Party Payments - Private Contractors,05/11/2021,11327375,"2,859.60",Revenue,1002214,Condover College Ltd
Shropshire,00GG,Adult Services - Social Care Community Purchasing,Third Party Payments - Private Contractors,05/11/2021,11327376,777.00,Revenue,1002214,Condover College Ltd
Shropshire,00GG,Adult Services - Social Care Community Purchasing,Third Party Payments - Private Contractors,05/11/2021,11327377,"2,859.60",Revenue,1002214,Condover College Ltd
Shropshire,00GG,Adult Services - Social Care Community Purchasing,Third Party Payments - Private Contractors,05/11/2021,11327378,777.00,Revenue,1002214,Condover College Ltd
Shropshire,00GG,Adult Services - Social Care Community Purchasing,Third Party Payments - Private Contractors,05/11/2021,11327379,"1,800.00",Revenue,1002214,Condover College Ltd
Shropshire,00GG,Adult Services - Social Care Community Purchasing,Third Party Payments - Private Contractors,05/11/2021,11327381,"1,800.00",Revenue,1002214,Condover College Ltd
Shropshire,00GG,Adult Services - Social Care Community Purchasing,Third Party Payments - Private Contractors,05/11/2021,11327383,"2,400.00",Revenue,1002214,Condover College Ltd
Shropshire,00GG,Adult Services - Social Care Community Purchasing,Third Party Payments - Private Contractors,05/11/2021,11327384,"2,400.00",Revenue,1002214,Condover College Ltd
Shropshire,00GG,Children's Services - Learning & Skills Business Support,Supplies & Services - Services,05/11/2021,3277787,"3,000.00",Revenue,1002313,Shrewsbury Town In The Community
Shropshire,00GG,Adult Services - Supported Living Properties,Premises-Related Expenditure - Rents,05/11/2021,3281004,"1,981.14",Revenue,1002315,First Choice Housing Association Ltd
Shropshire,00GG,Adult Services - Adult Social Care Business Support,Premises-Related Expenditure - Rents,05/11/2021,3281018,"3,596.48",Revenue,1002315,First Choice Housing Association Ltd
Shropshire,00GG,Place - Theatre Services,Supplies & Services - Catering,05/11/2021,3277782,"1,700.94",Revenue,1002559,Matthew Clark Wholesale Ltd
Shropshire,00GG,Adult Services - Regulatory Services,Supplies & Services - Equipment Furniture and Materials,05/11/2021,3282615,468.00,Revenue,1002597,Killgerm Chemicals Limited
Shropshire,00GG,Workforce and Transformation - Print & Post Services,Supplies & Services - Equipment Furniture and Materials,05/11/2021,3278709,"1,656.00",Revenue,1002635,Impact Mail & Print (Uk) Ltd
Shropshire,00GG,Adult Services - Care Management - Social Work Teams,Transport-Related Expenditure - Public Transport,05/11/2021,3282455,58.50,Revenue,1002702,Sajkum Ltd t/a Sajeev Kumar Kshemendran
Shropshire,00GG,Adult Services - Care Management - Social Work Teams,Supplies & Services - Services,05/11/2021,3282455,"1,120.00",Revenue,1002702,Sajkum Ltd t/a Sajeev Kumar Kshemendran
Shropshire,00GG,Place - Planning Services,Supplies & Services - Services,05/11/2021,3284636,437.50,Revenue,1002966,Mr Hugh Richards
Shropshire,00GG,Adult Services - Public Health Children & Young People,Third Party Payments - Health Authorities,05/11/2021,3278924,"339,326.67",Revenue,1003483,Shropshire Community Health Nhs Trust
Shropshire,00GG,Place - Libraries,Supplies & Services - Services,05/11/2021,3279383,795.00,Revenue,1003600,Unicorn Fire & Safety Solutions
Shropshire,00GG,Adult Services - External Providers,Supplies & Services - Grants and Subscriptions,05/11/2021,3281329,"13,335.00",Revenue,1003925,Energize Shropshire  Telford & Wrekin
Shropshire,00GG,Capital - Economic Growth Capital,Non Revenue - Non Revenue,05/11/2021,3284654,"2,402.80",Capital,1003957,Anthony Collins Solicitors Llp
Shropshire,00GG,Place - Theatre Services,Supplies & Services - Services,05/11/2021,3260931,"-4,013.84",Revenue,1004556,Precision Colour Printing Ltd
Shropshire,00GG,Place - Theatre Services,Supplies & Services - Services,05/11/2021,3284573,"5,137.00",Revenue,1004556,Precision Colour Printing Ltd
Shropshire,00GG,Place - Theatre Services,Supplies & Services - Services,05/11/2021,3284575,"3,781.00",Revenue,1004556,Precision Colour Printing Ltd
Shropshire,00GG,People - Home to School Transport,Transport-Related Expenditure - Contract Hire and Operating Leases,05/11/2021,3282869,550.00,Revenue,1004760,Alexanders Of Wem Taxis
Shropshire,00GG,Children's Services - Disabled Children's Team,Third Party Payments - Private Contractors,05/11/2021,11325380,"1,100.50",Revenue,1004799,Newcross Healthcare Solutions
Shropshire,00GG,Children's Services - Disabled Children's Team,Third Party Payments - Private Contractors,05/11/2021,11325387,"7,119.66",Revenue,1004799,Newcross Healthcare Solutions
Shropshire,00GG,Children's Services - Disabled Children's Team,Third Party Payments - Private Contractors,05/11/2021,11325389,"1,142.88",Revenue,1004799,Newcross Healthcare Solutions
Shropshire,00GG,Children's Services - Disabled Children's Team,Third Party Payments - Private Contractors,05/11/2021,11325390,"7,876.20",Revenue,1004799,Newcross Healthcare Solutions
Shropshire,00GG,Children's Services - Disabled Children's Team,Third Party Payments - Private Contractors,05/11/2021,11325396,"8,264.40",Revenue,1004799,Newcross Healthcare Solutions
Shropshire,00GG,Children's Services - Disabled Children's Team,Third Party Payments - Private Contractors,05/11/2021,11325398,"7,687.26",Revenue,1004799,Newcross Healthcare Solutions
Shropshire,00GG,Children's Services - Disabled Children's Team,Third Party Payments - Private Contractors,05/11/2021,11325403,"7,657.84",Revenue,1004799,Newcross Healthcare Solutions
Shropshire,00GG,Children's Services - Learning & Skills Business Support,Supplies & Services - Services,05/11/2021,3282770,"2,443.16",Revenue,1004815,The New Saints F C Foundation Ltd
Shropshire,00GG,Place - Corporate Landlord - Museums & Culture,Premises-Related Expenditure - Repairs alterations and maintenance of buildings,05/11/2021,11326105,858.61,Revenue,1004948,Sdt Electrical Contractors Ltd
Shropshire,00GG,Children's Services - Children�s Case Management,Supplies & Services - Services,05/11/2021,3284877,"1,375.00",Revenue,1005189,Lextox
Shropshire,00GG,Legal and Democratic Services - Legal Services � Child Care,Employees - Direct Employee Expenses,05/11/2021,3279669,"2,620.80",Revenue,1005215,The Oyster Partnership Ltd
Shropshire,00GG,Legal and Democratic Services - Legal Services � Child Care,Employees - Direct Employee Expenses,05/11/2021,3279679,"1,609.50",Revenue,1005215,The Oyster Partnership Ltd
Shropshire,00GG,Place - Planning Services,Supplies & Services - Services,05/11/2021,3279682,"1,332.00",Revenue,1005215,The Oyster Partnership Ltd
Shropshire,00GG,Legal and Democratic Services - Legal Services � Child Care,Employees - Direct Employee Expenses,05/11/2021,3279688,826.00,Revenue,1005215,The Oyster Partnership Ltd
Shropshire,00GG,Place - Planning Services,Supplies & Services - Services,05/11/2021,3279807,"1,612.50",Revenue,1005215,The Oyster Partnership Ltd
Shropshire,00GG,Adult Services - Regulatory Services,Supplies & Services - Services,05/11/2021,3279708,"1,611.00",Revenue,1005746,Aubrey Kirkham Funeral Directors
Shropshire,00GG,Children's Services - Placements: Placement Staffing,Employees - Direct Employee Expenses,05/11/2021,3278383,"2,518.96",Revenue,1005988,NonStop Consulting Ltd
Shropshire,00GG,Place - Shrewsbury Shopping Centres (Commercial),Supplies & Services - Services,05/11/2021,3284376,"15,048.00",Revenue,1006058,Personal redaction
Shropshire,00GG,Workforce and Transformation - ICT Services,Supplies & Services - Communications and Computing,05/11/2021,3277873,"25,556.92",Revenue,1006258,Liquidlogic Ltd
Shropshire,00GG,Adult Services - Social Care Community Purchasing,Third Party Payments - Private Contractors,05/11/2021,11328797,720.00,Revenue,1006314,Veezu Midlands Limited t/a Go Carz
Shropshire,00GG,Children's Services - Disabled Children's Team,Third Party Payments - Private Contractors,05/11/2021,11329349,850.00,Revenue,1008038,Bluebird Care (Shropshire Care Ltd)
Shropshire,00GG,People - Early Years,Third Party Payments - Other Establishments,05/11/2021,3284871,"1,065.75",Revenue,1008402,Bojangles Nursery (West Midlands) Ltd
Shropshire,00GG,Adult Services - Help to Change,Third Party Payments - Voluntary Associations,05/11/2021,3279002,"1,420.14",Revenue,1009761,Hands Together Ludlow
Shropshire,00GG,Place - Assistant Director Economy & Place,Non Revenue - Non Revenue,05/11/2021,3278228,"4,445.28",Revenue,1010141,Oswestry Bid Limited
Shropshire,00GG,Children's Services - Disabled Children's Team,Third Party Payments - Private Contractors,05/11/2021,11325382,938.00,Revenue,1010383,Acorn Way
Shropshire,00GG,Children's Services - Disabled Children's Team,Third Party Payments - Private Contractors,05/11/2021,11325391,938.00,Revenue,1010383,Acorn Way
Shropshire,00GG,Children's Services - Disabled Children's Team,Third Party Payments - Private Contractors,05/11/2021,11325392,"5,628.00",Revenue,1010383,Acorn Way
Shropshire,00GG,"Finance, Governance & Assurance - Housing Benefits",Income - Customer and Client Receipts,05/11/2021,3278840,"1,094.58",Revenue,1011247,Stonewater Limited
Shropshire,00GG,Place - Theatre Services,Third Party Payments - Private Contractors,05/11/2021,3284784,929.50,Revenue,1011263,Dmf Music Ltd Client A/C
Shropshire,00GG,Adult Services - Regulatory Services,Employees - Indirect Employee Expenses,05/11/2021,3278305,"3,120.00",Revenue,1011357,Abc Food Law Limited
Shropshire,00GG,People - Social Care Mental Health Purchasing,Transfer Payments - Adult Social Services Clients,05/11/2021,11329141,"2,450.56",Revenue,1012058,Sophie Noel
Shropshire,00GG,Place - Theatre Services,Third Party Payments - Private Contractors,05/11/2021,3279444,743.24,Revenue,1012264,Parkland Entertainment Ltd
Shropshire,00GG,Place - Theatre Services,Supplies & Services - Equipment Furniture and Materials,05/11/2021,3277907,"2,175.00",Revenue,1012484,Powell Cinema Engineers (AKA. F.Powell & Co)
Shropshire,00GG,Place - Theatre Services,Third Party Payments - Private Contractors,05/11/2021,3277977,"19,122.74",Revenue,1012667,Highfield Productions Ltd
Shropshire,00GG,Legal and Democratic Services - Legal Services � Child Care,Supplies & Services - Services,05/11/2021,3278689,650.00,Revenue,1012882,Nicholas Sefton
Shropshire,00GG,Legal and Democratic Services - Legal Services � Child Care,Supplies & Services - Services,05/11/2021,3278632,650.00,Revenue,1012986,Sarah Morgan
Shropshire,00GG,Children's Services - Children�s Case Management,Employees - Direct Employee Expenses,05/11/2021,3278621,"1,620.23",Revenue,1013053,Frontline Staffing Ltd
Shropshire,00GG,Children's Services - Children�s Social Care and Safeguarding Management,Supplies & Services - Services,05/11/2021,3281033,"11,790.45",Revenue,1013211,Eden Brown Ltd
Shropshire,00GG,Legal and Democratic Services - Legal Services � Child Care,Supplies & Services - Services,05/11/2021,3278649,700.00,Revenue,1013260,Richard Hadley
Shropshire,00GG,Place - Shire Catering,Supplies & Services - Services,05/11/2021,3278314,"4,252.50",Revenue,1013365,My Cupcake Heaven Ltd
Shropshire,00GG,Place - Environment and Transport (Public Transport),Transport-Related Expenditure - Contract Hire and Operating Leases,05/11/2021,3284672,"2,559.61",Revenue,1013739,Absolute Personnel
Shropshire,00GG,Legal and Democratic Services - Legal Services � Child Care,Supplies & Services - Services,05/11/2021,3278622,"1,000.00",Revenue,1013890,Kathryn Taylor
Shropshire,00GG,Legal and Democratic Services - Legal Services � Child Care,Supplies & Services - Services,05/11/2021,3278646,700.00,Revenue,1013984,Miss Louise Higgins
Shropshire,00GG,Children's Services - Looked After Children Education,Third Party Payments - Other Establishments,05/11/2021,3278279,"1,470.00",Revenue,1014202,J Lucas-Garner T/A Reach for Inclusion
Shropshire,00GG,Children's Services - Looked After Children Education,Third Party Payments - Other Establishments,05/11/2021,3278291,570.00,Revenue,1014202,J Lucas-Garner T/A Reach for Inclusion
Shropshire,00GG,Adult Services - Social Care Community Purchasing,Transfer Payments - Adult Social Services Clients,05/11/2021,11328804,"25,264.80",Revenue,1014654,Rialto Care & Support Ltd
Shropshire,00GG,Adult Services - Social Care Community Purchasing,Transfer Payments - Adult Social Services Clients,05/11/2021,11328805,"18,505.60",Revenue,1014654,Rialto Care & Support Ltd
Shropshire,00GG,Adult Services - Internal Providers - Day Services,Supplies & Services - Equipment Furniture and Materials,05/11/2021,3284818,620.62,Revenue,1014748,Morgans Of Oswestry
Shropshire,00GG,Adult Services - Social Care Community Purchasing,Third Party Payments - Private Contractors,05/11/2021,11325036,589.07,Revenue,1017410,Allied Health Services Limited
Shropshire,00GG,Adult Services - Social Care Community Purchasing,Third Party Payments - Private Contractors,05/11/2021,11325037,587.69,Revenue,1017410,Allied Health Services Limited
Shropshire,00GG,Adult Services - Social Care Community Purchasing,Third Party Payments - Private Contractors,05/11/2021,11325038,"2,575.36",Revenue,1017410,Allied Health Services Limited
Shropshire,00GG,Children's Services - Home to School Transport,Transport-Related Expenditure - Contract Hire and Operating Leases,08/11/2021,3285114,"1,804.00",Revenue,1000153,Hodnet Service Station Taxis
Shropshire,00GG,Place - Environment and Transport (Public Transport),Third Party Payments - Transport Operators,08/11/2021,3284979,"8,333.18",Revenue,1000204,Lakeside Coaches Ltd
Shropshire,00GG,Place - Environment and Transport (Parking),Income - Customer and Client Receipts,08/11/2021,3278602,"52,292.00",Revenue,1000613,Morris & Co
Shropshire,00GG,Place - Environment and Transport (Public Transport),Third Party Payments - Transport Operators,08/11/2021,3284995,"1,812.83",Revenue,1000659,Bennetts Travel (Cranberry) Ltd
Shropshire,00GG,Place - Shire Catering,Supplies & Services - Catering,08/11/2021,3283019,"1,132.32",Revenue,1000926,Options Management
Shropshire,00GG,Children's Services - Home to School Transport,Transport-Related Expenditure - Contract Hire and Operating Leases,08/11/2021,3285065,"3,600.00",Revenue,1001625,A B & C A Humphries
Shropshire,00GG,Children's Services - Special Educational Needs & Disability,Third Party Payments - Other Establishments,08/11/2021,3285025,"4,038.72",Revenue,1001676,Worcestershire County Council
Shropshire,00GG,Children's Services - Placements: Residential Placements,Supplies & Services - Grants and Subscriptions,08/11/2021,3285191,"2,578.00",Revenue,1001882,Ofsted
Shropshire,00GG,Workforce and Transformation - Organisational Development,Supplies & Services - Grants and Subscriptions,08/11/2021,3284771,"46,950.00",Revenue,1002320,Learning Pool Limited
Shropshire,00GG,Capital - Planning Policy Capital,Non Revenue - Non Revenue,08/11/2021,3284909,"18,631.50",Capital,1002441,Minsterley Parish Council
Shropshire,00GG,Capital - Planning Policy Capital,Non Revenue - Non Revenue,08/11/2021,3284901,"19,569.30",Capital,1002456,Pontesbury Parish Council
Shropshire,00GG,Place - Environment and Transport (Public Transport),Transport-Related Expenditure - Contract Hire and Operating Leases,08/11/2021,3284929,"1,647.12",Revenue,1002991,Lex Autolease Ltd
Shropshire,00GG,Health and Wellbeing - Regulatory Services,Premises-Related Expenditure - Energy Costs,08/11/2021,11327954,26.58,Revenue,1003705,West Mercia Energy
Shropshire,00GG,People - Early Help Family Hubs,Premises-Related Expenditure - Energy Costs,08/11/2021,11327954,249.22,Revenue,1003705,West Mercia Energy
Shropshire,00GG,People - Housing Options,Premises-Related Expenditure - Energy Costs,08/11/2021,11327954,733.48,Revenue,1003705,West Mercia Energy
Shropshire,00GG,People - Placements: Residential Placements,Premises-Related Expenditure - Energy Costs,08/11/2021,11327954,"1,837.50",Revenue,1003705,West Mercia Energy
Shropshire,00GG,Place - Bereavement Services,Premises-Related Expenditure - Water Services,08/11/2021,11327954,6.26,Revenue,1003705,West Mercia Energy
Shropshire,00GG,Place - Corporate Landlord -  Economic Development,Premises-Related Expenditure - Energy Costs,08/11/2021,11327954,"7,249.84",Revenue,1003705,West Mercia Energy
Shropshire,00GG,Place - Corporate Landlord -  Economic Development,Premises-Related Expenditure - Water Services,08/11/2021,11327954,"3,201.96",Revenue,1003705,West Mercia Energy
Shropshire,00GG,Place - Corporate Landlord -  Environmental & Regulatory Service,Premises-Related Expenditure - Energy Costs,08/11/2021,11327954,156.78,Revenue,1003705,West Mercia Energy
Shropshire,00GG,Place - Corporate Landlord -  Environmental & Regulatory Service,Premises-Related Expenditure - Water Services,08/11/2021,11327954,-749.96,Revenue,1003705,West Mercia Energy
Shropshire,00GG,Place - Corporate Landlord -  Highways,Premises-Related Expenditure - Energy Costs,08/11/2021,11327954,"5,106.38",Revenue,1003705,West Mercia Energy
Shropshire,00GG,Place - Corporate Landlord -  Highways,Premises-Related Expenditure - Water Services,08/11/2021,11327954,"2,820.90",Revenue,1003705,West Mercia Energy
Shropshire,00GG,Place - Corporate Landlord - Admin Buildings,Premises-Related Expenditure - Energy Costs,08/11/2021,11327954,"51,111.60",Revenue,1003705,West Mercia Energy
Shropshire,00GG,Place - Corporate Landlord - Admin Buildings,Premises-Related Expenditure - Water Services,08/11/2021,11327954,"5,316.62",Revenue,1003705,West Mercia Energy
Shropshire,00GG,Place - Corporate Landlord - Adult Services,Premises-Related Expenditure - Energy Costs,08/11/2021,11327954,"5,139.16",Revenue,1003705,West Mercia Energy
Shropshire,00GG,Place - Corporate Landlord - Adult Services,Premises-Related Expenditure - Water Services,08/11/2021,11327954,142.62,Revenue,1003705,West Mercia Energy
Shropshire,00GG,Place - Corporate Landlord - Car Parks,Premises-Related Expenditure - Energy Costs,08/11/2021,11327954,"16,738.74",Revenue,1003705,West Mercia Energy
Shropshire,00GG,Place - Corporate Landlord - Car Parks,Premises-Related Expenditure - Water Services,08/11/2021,11327954,"12,850.28",Revenue,1003705,West Mercia Energy
Shropshire,00GG,Place - Corporate Landlord - Children's Services,Premises-Related Expenditure - Energy Costs,08/11/2021,11327954,"1,709.96",Revenue,1003705,West Mercia Energy
Shropshire,00GG,Place - Corporate Landlord - Children's Services,Premises-Related Expenditure - Water Services,08/11/2021,11327954,"2,824.78",Revenue,1003705,West Mercia Energy
Shropshire,00GG,Place - Corporate Landlord - Leisure,Premises-Related Expenditure - Energy Costs,08/11/2021,11327954,"8,962.86",Revenue,1003705,West Mercia Energy
Shropshire,00GG,Place - Corporate Landlord - Leisure,Premises-Related Expenditure - Water Services,08/11/2021,11327954,"1,044.22",Revenue,1003705,West Mercia Energy
Shropshire,00GG,Place - Corporate Landlord - Libraries,Premises-Related Expenditure - Energy Costs,08/11/2021,11327954,"12,473.86",Revenue,1003705,West Mercia Energy
Shropshire,00GG,Place - Corporate Landlord - Libraries,Premises-Related Expenditure - Water Services,08/11/2021,11327954,"11,193.24",Revenue,1003705,West Mercia Energy
Shropshire,00GG,Place - Corporate Landlord - Mardol House & Tannery,Premises-Related Expenditure - Energy Costs,08/11/2021,11327954,47.22,Revenue,1003705,West Mercia Energy
Shropshire,00GG,Place - Corporate Landlord - Mardol House & Tannery,Premises-Related Expenditure - Water Services,08/11/2021,11327954,"1,110.16",Revenue,1003705,West Mercia Energy
Shropshire,00GG,Place - Corporate Landlord - Museums & Culture,Premises-Related Expenditure - Energy Costs,08/11/2021,11327954,"32,654.72",Revenue,1003705,West Mercia Energy
Shropshire,00GG,Place - Corporate Landlord - Museums & Culture,Premises-Related Expenditure - Water Services,08/11/2021,11327954,"9,277.34",Revenue,1003705,West Mercia Energy
Shropshire,00GG,Place - Corporate Landlord - Smallholdings,Premises-Related Expenditure - Water Services,08/11/2021,11327954,20.02,Revenue,1003705,West Mercia Energy
Shropshire,00GG,Place - Corporate Landlord - Traveller Sites,Premises-Related Expenditure - Energy Costs,08/11/2021,11327954,"8,559.48",Revenue,1003705,West Mercia Energy
Shropshire,00GG,Place - Corporate Landlord - Traveller Sites,Premises-Related Expenditure - Water Services,08/11/2021,11327954,"8,218.42",Revenue,1003705,West Mercia Energy
Shropshire,00GG,Place - Corporate Landlord - Youth Centres & Community,Premises-Related Expenditure - Energy Costs,08/11/2021,11327954,"6,536.64",Revenue,1003705,West Mercia Energy
Shropshire,00GG,Place - Corporate Landlord - Youth Centres & Community,Premises-Related Expenditure - Water Services,08/11/2021,11327954,"166,381.16",Revenue,1003705,West Mercia Energy
Shropshire,00GG,Place - Environment and Transport (Parking),Premises-Related Expenditure - Energy Costs,08/11/2021,11327954,261.76,Revenue,1003705,West Mercia Energy
Shropshire,00GG,Place - Environment and Transport (Parking),Premises-Related Expenditure - Water Services,08/11/2021,11327954,283.00,Revenue,1003705,West Mercia Energy
Shropshire,00GG,Place - Highways (Operations),Supplies & Services - Services,08/11/2021,11327954,"148,817.46",Revenue,1003705,West Mercia Energy
Shropshire,00GG,Place - Leisure,Premises-Related Expenditure - Energy Costs,08/11/2021,11327954,"4,922.08",Revenue,1003705,West Mercia Energy
Shropshire,00GG,Place - Outdoor Partnerships,Premises-Related Expenditure - Energy Costs,08/11/2021,11327954,"1,233.52",Revenue,1003705,West Mercia Energy
Shropshire,00GG,Place - Outdoor Partnerships,Premises-Related Expenditure - Water Services,08/11/2021,11327954,333.94,Revenue,1003705,West Mercia Energy
Shropshire,00GG,Place - Shrewsbury Shopping Centres (Commercial),Premises-Related Expenditure - Energy Costs,08/11/2021,11327954,"4,474.84",Revenue,1003705,West Mercia Energy
Shropshire,00GG,Place - Shrewsbury Shopping Centres (Development),Premises-Related Expenditure - Energy Costs,08/11/2021,11327954,"1,646.00",Revenue,1003705,West Mercia Energy
Shropshire,00GG,People - Housing Options,Supplies & Services - Services,08/11/2021,3284990,"18,460.00",Revenue,1003731,The Firs Riverside B&B Limited
Shropshire,00GG,Housing Revenue Account - Dwellings Repairs & Maintenance,Supplies & Services - Services,08/11/2021,3284398,"18,522.58",Revenue,1004162,Shropshire Towns & Rural Housing Ltd
Shropshire,00GG,Housing Revenue Account - Dwellings Repairs & Maintenance,Third Party Payments - Private Contractors,08/11/2021,3284398,"38,634.66",Revenue,1004162,Shropshire Towns & Rural Housing Ltd
Shropshire,00GG,People - Care Management - Transport,Transport-Related Expenditure - Contract Hire and Operating Leases,08/11/2021,3284708,538.08,Revenue,1004685,Personal redaction
Shropshire,00GG,Capital - Housing Services Capital,Non Revenue - Non Revenue,08/11/2021,3284902,"13,336.52",Capital,1004765,M W Knight & Sons Ltd
Shropshire,00GG,Place - Planning Services,Employees - Direct Employee Expenses,08/11/2021,3284978,"1,290.00",Revenue,1005215,The Oyster Partnership Ltd
Shropshire,00GG,Place - Planning Services,Employees - Direct Employee Expenses,08/11/2021,3285007,"1,612.50",Revenue,1005215,The Oyster Partnership Ltd
Shropshire,00GG,Place - Planning Services,Employees - Direct Employee Expenses,08/11/2021,3285010,"1,332.00",Revenue,1005215,The Oyster Partnership Ltd
Shropshire,00GG,Place - Planning Services,Employees - Direct Employee Expenses,08/11/2021,3285023,"1,332.00",Revenue,1005215,The Oyster Partnership Ltd
Shropshire,00GG,Adult Services - Regulatory Services,Supplies & Services - Services,08/11/2021,3284895,945.81,Revenue,1005289,Als Environmental Limited
Shropshire,00GG,Place - Environment and Transport (Strategic),Supplies & Services - Services,08/11/2021,3285315,"17,322.75",Revenue,1006124,Learncycling
Shropshire,00GG,People - Early Years,Third Party Payments - Other Establishments,08/11/2021,3285009,"1,950.00",Revenue,1008463,Katies Kids Limited
Shropshire,00GG,People - Placements: Residential Placements,Premises-Related Expenditure - Repairs alterations and maintenance of buildings,08/11/2021,3284648,685.38,Revenue,1008560,M W D Services
Shropshire,00GG,Capital - Housing Services Capital,Non Revenue - Non Revenue,08/11/2021,3284911,"2,305.00",Capital,1008669,Shire Stairlifts Ltd
Shropshire,00GG,Health and Wellbeing - Public Health General Management,Supplies & Services - Grants and Subscriptions,08/11/2021,3283562,"3,530.00",Revenue,1010428,Crane Quality Counselling
Shropshire,00GG,Adult Services - Care Management - Transport,Transport-Related Expenditure - Contract Hire and Operating Leases,08/11/2021,3280318,599.60,Revenue,1012064,IRFAN MAQSOOD
Shropshire,00GG,Place - Shropshire Hills AONB,Transport-Related Expenditure - Public Transport,08/11/2021,3285100,367.56,Revenue,1012138,Severn Rivers Trust
Shropshire,00GG,Place - Shropshire Hills AONB,Supplies & Services - Services,08/11/2021,3285100,"20,483.27",Revenue,1012138,Severn Rivers Trust
Shropshire,00GG,Place - Shropshire Hills AONB,Supplies & Services - Communications and Computing,08/11/2021,3285100,15.50,Revenue,1012138,Severn Rivers Trust
Shropshire,00GG,People - Housing Options,Supplies & Services - Services,08/11/2021,3285035,"16,440.00",Revenue,1012761,Miss Annette Warner
Shropshire,00GG,Resources - Welfare & Reform,Transfer Payments - Housing Benefits,08/11/2021,3284583,859.00,Revenue,1014009,PPS Ltd Client Acc Shropshire
Shropshire,00GG,Workforce and Transformation - Print & Post Services,Supplies & Services - Communications and Computing,08/11/2021,3285049,"18,553.56",Revenue,1014774,Royal Mail Group Ltd
Shropshire,00GG,Workforce and Transformation - Print & Post Services,Supplies & Services - Communications and Computing,08/11/2021,3285090,"2,847.00",Revenue,1014774,Royal Mail Group Ltd
Shropshire,00GG,Place - Property Services Group,Premises-Related Expenditure - Repairs alterations and maintenance of buildings,08/11/2021,3284641,"1,167.60",Revenue,1014917,New Hall Property Ltd
Shropshire,00GG,Place - Corporate Landlord - Museums & Culture,Premises-Related Expenditure - Cleaning and domestic supplies,09/11/2021,3285730,"1,854.74",Revenue,1000071,Arrow County Supplies
Shropshire,00GG,Adult Services - Housing Options,Premises-Related Expenditure - Repairs alterations and maintenance of buildings,09/11/2021,11329685,446.25,Revenue,1000214,Locsafe Security Systems Ltd
Shropshire,00GG,Place - Environment and Transport (Public Transport),Third Party Payments - Transport Operators,09/11/2021,3278510,"17,680.00",Revenue,1000378,Tanat Valley Coaches
Shropshire,00GG,Place - Museums & Archives,Supplies & Services - Equipment Furniture and Materials,09/11/2021,3285338,"1,057.18",Revenue,1000851,Tts Group Ltd
Shropshire,00GG,Capital - Housing Services Capital,Non Revenue - Non Revenue,09/11/2021,3285335,"3,985.00",Capital,1001043,Severnside Housing
Shropshire,00GG,Capital - Housing Services Capital,Non Revenue - Non Revenue,09/11/2021,3285359,"6,121.79",Capital,1001043,Severnside Housing
Shropshire,00GG,Capital - Housing Services Capital,Non Revenue - Non Revenue,09/11/2021,3285360,"4,560.00",Capital,1001043,Severnside Housing
Shropshire,00GG,Capital - Housing Services Capital,Non Revenue - Non Revenue,09/11/2021,3285364,"1,548.00",Capital,1001043,Severnside Housing
Shropshire,00GG,Capital - Housing Services Capital,Non Revenue - Non Revenue,09/11/2021,3285366,"5,300.00",Capital,1001043,Severnside Housing
Shropshire,00GG,Capital - Housing Services Capital,Non Revenue - Non Revenue,09/11/2021,3285378,"5,448.20",Capital,1001043,Severnside Housing
Shropshire,00GG,Capital - Housing Services Capital,Non Revenue - Non Revenue,09/11/2021,3285382,"5,191.60",Capital,1001043,Severnside Housing
Shropshire,00GG,Capital - Housing Services Capital,Non Revenue - Non Revenue,09/11/2021,3285384,"5,869.00",Capital,1001043,Severnside Housing
Shropshire,00GG,Capital - Housing Services Capital,Non Revenue - Non Revenue,09/11/2021,3285395,"5,300.00",Capital,1001043,Severnside Housing
Shropshire,00GG,Capital - Housing Services Capital,Non Revenue - Non Revenue,09/11/2021,3285399,"9,738.67",Capital,1001043,Severnside Housing
Shropshire,00GG,Capital - Housing Services Capital,Non Revenue - Non Revenue,09/11/2021,3285400,"5,300.00",Capital,1001043,Severnside Housing
Shropshire,00GG,Place - Environment and Transport (Public Transport),Transport-Related Expenditure - Contract Hire and Operating Leases,09/11/2021,3285122,"1,480.60",Revenue,1001122,The Friendly Transport Service (Shrops)
Shropshire,00GG,Place - Leisure,Supplies & Services - Equipment Furniture and Materials,09/11/2021,3285339,"1,072.00",Revenue,1001453,Rlss Uk Enterprises Ltd
Shropshire,00GG,Workforce and Transformation - Print & Post Services,Supplies & Services - Printing Stationery and General Office Expenses,09/11/2021,3279133,"1,663.49",Revenue,1002095,Ricoh Uk Ltd
Shropshire,00GG,Place - Property Services Group,Premises-Related Expenditure - Grounds maintenance costs,09/11/2021,3284157,"2,078.00",Revenue,1002235,Taybar Security Limited
Shropshire,00GG,Capital - Housing Services Capital,Non Revenue - Non Revenue,09/11/2021,3285427,"6,681.38",Capital,1002921,The Wrekin Housing Group Ltd
Shropshire,00GG,Place - Planning Services,Supplies & Services - Services,09/11/2021,3284894,"1,170.00",Revenue,1002961,Sc Land Registry Imp A/C 
Shropshire,00GG,Place - Highways (Operations),Third Party Payments - Private Contractors,09/11/2021,3281461,"1,160.00",Revenue,1003236,A Clayton Contracting Ltd
Shropshire,00GG,Place - Highways (Operations),Third Party Payments - Private Contractors,09/11/2021,3281486,"1,082.00",Revenue,1003236,A Clayton Contracting Ltd
Shropshire,00GG,Workforce and Transformation - Print & Post Services,Supplies & Services - Communications and Computing,09/11/2021,3278708,"4,813.22",Revenue,1003729,Whistl North Limited
Shropshire,00GG,Capital - Economic Growth Capital,Non Revenue - Non Revenue,09/11/2021,3285574,483.00,Capital,1003957,Anthony Collins Solicitors Llp
Shropshire,00GG,Place - Libraries,Supplies & Services - Equipment Furniture and Materials,09/11/2021,3278392,"2,318.93",Revenue,1004304,Bibliotheca Ltd
Shropshire,00GG,Adult Services - Help to Change,Third Party Payments - Voluntary Associations,09/11/2021,3285603,"1,420.14",Revenue,1004568,Shropshire RCC
Shropshire,00GG,Adult Services - Help to Change,Third Party Payments - Voluntary Associations,09/11/2021,3285678,"1,420.14",Revenue,1004568,Shropshire RCC
Shropshire,00GG,Children's Services - Looked After Children (LAC) Service,Third Party Payments - Other Establishments,09/11/2021,3285503,600.00,Revenue,1004863,Aspire People Ltd
Shropshire,00GG,Children's Services - Looked After Children (LAC) Service,Third Party Payments - Other Establishments,09/11/2021,3285545,480.00,Revenue,1004863,Aspire People Ltd
Shropshire,00GG,Children's Services - Looked After Children (LAC) Service,Third Party Payments - Other Establishments,09/11/2021,3285552,600.00,Revenue,1004863,Aspire People Ltd
Shropshire,00GG,Children's Services - Children�s Services Management,Employees - Direct Employee Expenses,09/11/2021,3279428,"3,928.56",Revenue,1005052,Hampton'S Resourcing
Shropshire,00GG,Adult Services - Regulatory Services,Supplies & Services - Services,09/11/2021,3285455,732.92,Revenue,1005289,Als Environmental Limited
Shropshire,00GG,Capital - Housing Services Capital,Non Revenue - Non Revenue,09/11/2021,3285420,"2,435.00",Capital,1005449,The Excellent Ramp System Ltd
Shropshire,00GG,Place - Environment and Transport (Public Transport),Transport-Related Expenditure - Direct Transport Costs,09/11/2021,3279792,"7,227.56",Revenue,1006053,Uk Fuels Limited
Shropshire,00GG,People - Non-Delegated Primary DSG,Premises-Related Expenditure - Repairs alterations and maintenance of buildings,09/11/2021,11329682,"1,641.25",Revenue,1008559,Mant Ltd
Shropshire,00GG,Capital - Housing Services Capital,Non Revenue - Non Revenue,09/11/2021,3285346,"6,327.65",Capital,1009035,W S Building Services (Shropshire) Ltd
Shropshire,00GG,Place - Corporate Landlord - Libraries,Premises-Related Expenditure - Premises Insurance,09/11/2021,3285380,"1,400.94",Revenue,1010516,E V Bygott And L Welch
Shropshire,00GG,People - Independent Living,Third Party Payments - Private Contractors,09/11/2021,3285720,"1,400.00",Revenue,1010688,Gsr Heating Ltd
Shropshire,00GG,People - Housing Options,Supplies & Services - Services,09/11/2021,3285475,"2,145.00",Revenue,1012682,Little Pub Company (Oswestry) Ltd  TA Railway Inn
Shropshire,00GG,Place - Planning Services,Supplies & Services - Services,09/11/2021,3279674,"1,463.00",Revenue,1013010,Michael Davies - MPD Built Environment Consultants Limited
Shropshire,00GG,Capital - Housing Services Capital,Non Revenue - Non Revenue,09/11/2021,3285367,648.95,Capital,1014064,Property Plus (Midlands) Ltd
Shropshire,00GG,Capital - Housing Services Capital,Non Revenue - Non Revenue,09/11/2021,3285374,"1,196.08",Capital,1014064,Property Plus (Midlands) Ltd
Shropshire,00GG,Capital - Housing Services Capital,Non Revenue - Non Revenue,09/11/2021,3285377,662.50,Capital,1014064,Property Plus (Midlands) Ltd
Shropshire,00GG,Capital - Housing Services Capital,Non Revenue - Non Revenue,09/11/2021,3285390,619.98,Capital,1014064,Property Plus (Midlands) Ltd
Shropshire,00GG,Capital - Housing Services Capital,Non Revenue - Non Revenue,09/11/2021,3285391,662.50,Capital,1014064,Property Plus (Midlands) Ltd
Shropshire,00GG,Capital - Housing Services Capital,Non Revenue - Non Revenue,09/11/2021,3285393,570.00,Capital,1014064,Property Plus (Midlands) Ltd
Shropshire,00GG,Capital - Housing Services Capital,Non Revenue - Non Revenue,09/11/2021,3285394,662.50,Capital,1014064,Property Plus (Midlands) Ltd
Shropshire,00GG,Capital - Housing Services Capital,Non Revenue - Non Revenue,09/11/2021,3285401,659.78,Capital,1014064,Property Plus (Midlands) Ltd
Shropshire,00GG,Adult Services - Social Care Hospital Interface Purchasing,Third Party Payments - Private Contractors,09/11/2021,11326071,809.40,Revenue,1017409,Sapphire Community Care Ltd
Shropshire,00GG,Place - Shire Catering,Supplies & Services - Equipment Furniture and Materials,10/11/2021,3278954,419.64,Revenue,1000156,W V Howe Ltd
Shropshire,00GG,Place - Planning Services,Supplies & Services - Services,10/11/2021,3285634,693.00,Revenue,1000228,Midland News Association Ltd
Shropshire,00GG,Place - Planning Services,Supplies & Services - Services,10/11/2021,3285721,776.16,Revenue,1000228,Midland News Association Ltd
Shropshire,00GG,Children's Services - Education Psychology Service,Third Party Payments - Other Establishments,10/11/2021,3278769,"17,100.00",Revenue,1000383,University Of Birmingham
Shropshire,00GG,People - Home to School Transport,Transport-Related Expenditure - Contract Hire and Operating Leases,10/11/2021,3286312,"1,300.00",Revenue,1000695,K Newport
Shropshire,00GG,Place - Shire Catering,Premises-Related Expenditure - Cleaning and domestic supplies,10/11/2021,3279278,894.27,Revenue,1000838,Pestex Ltd
Shropshire,00GG,People - External Providers,Third Party Payments - Private Contractors,10/11/2021,3286112,"64,808.33",Revenue,1000946,Age UK (WIPS)
Shropshire,00GG,Capital - Housing Services Capital,Non Revenue - Non Revenue,10/11/2021,3285488,"24,605.64",Capital,1001043,Severnside Housing
Shropshire,00GG,Place - Shire Catering,Supplies & Services - Catering,10/11/2021,11329838,525.33,Revenue,1001530,Bidfood
Shropshire,00GG,Place - Shire Catering,Supplies & Services - Catering,10/11/2021,11329843,888.59,Revenue,1001530,Bidfood
Shropshire,00GG,Place - Shire Catering,Supplies & Services - Catering,10/11/2021,11329844,606.71,Revenue,1001530,Bidfood
Shropshire,00GG,Place - Shire Catering,Supplies & Services - Catering,10/11/2021,11329845,619.09,Revenue,1001530,Bidfood
Shropshire,00GG,Place - Shire Catering,Supplies & Services - Catering,10/11/2021,11329847,659.86,Revenue,1001530,Bidfood
Shropshire,00GG,Place - Shire Catering,Supplies & Services - Catering,10/11/2021,11329850,748.36,Revenue,1001530,Bidfood
Shropshire,00GG,Place - Shire Catering,Supplies & Services - Catering,10/11/2021,11329852,666.75,Revenue,1001530,Bidfood
Shropshire,00GG,Place - Shire Catering,Supplies & Services - Catering,10/11/2021,11329853,721.47,Revenue,1001530,Bidfood
Shropshire,00GG,Place - Shire Catering,Supplies & Services - Catering,10/11/2021,11329859,550.49,Revenue,1001530,Bidfood
Shropshire,00GG,Place - Shire Catering,Supplies & Services - Catering,10/11/2021,11329862,547.02,Revenue,1001530,Bidfood
Shropshire,00GG,Place - Shire Catering,Supplies & Services - Catering,10/11/2021,11329865,542.06,Revenue,1001530,Bidfood
Shropshire,00GG,Place - Shire Catering,Supplies & Services - Catering,10/11/2021,11329866,564.00,Revenue,1001530,Bidfood
Shropshire,00GG,Place - Shire Catering,Supplies & Services - Catering,10/11/2021,11329867,593.01,Revenue,1001530,Bidfood
Shropshire,00GG,Place - Shire Catering,Supplies & Services - Catering,10/11/2021,11329872,518.65,Revenue,1001530,Bidfood
Shropshire,00GG,Place - Shire Catering,Supplies & Services - Catering,10/11/2021,11329874,"1,252.86",Revenue,1001530,Bidfood
Shropshire,00GG,Place - Shire Catering,Supplies & Services - Catering,10/11/2021,11329876,699.55,Revenue,1001530,Bidfood
Shropshire,00GG,Place - Shire Catering,Supplies & Services - Catering,10/11/2021,11329877,"1,263.70",Revenue,1001530,Bidfood
Shropshire,00GG,Place - Shire Catering,Supplies & Services - Catering,10/11/2021,11329880,"1,473.99",Revenue,1001530,Bidfood
Shropshire,00GG,Place - Shire Catering,Supplies & Services - Catering,10/11/2021,11329882,"1,227.19",Revenue,1001530,Bidfood
Shropshire,00GG,Place - Shire Catering,Supplies & Services - Catering,10/11/2021,11329883,512.19,Revenue,1001530,Bidfood
Shropshire,00GG,Place - Shire Catering,Supplies & Services - Catering,10/11/2021,11329884,801.80,Revenue,1001530,Bidfood
Shropshire,00GG,Place - Shire Catering,Supplies & Services - Catering,10/11/2021,11329899,534.95,Revenue,1001530,Bidfood
Shropshire,00GG,Place - Shire Catering,Supplies & Services - Catering,10/11/2021,11329903,641.11,Revenue,1001530,Bidfood
Shropshire,00GG,Place - Shire Catering,Supplies & Services - Catering,10/11/2021,11329904,623.22,Revenue,1001530,Bidfood
Shropshire,00GG,Place - Shire Catering,Supplies & Services - Catering,10/11/2021,11329908,537.35,Revenue,1001530,Bidfood
Shropshire,00GG,Place - Shire Catering,Supplies & Services - Catering,10/11/2021,11329909,"1,138.52",Revenue,1001530,Bidfood
Shropshire,00GG,Place - Shire Catering,Supplies & Services - Catering,10/11/2021,11329910,745.38,Revenue,1001530,Bidfood
Shropshire,00GG,Place - Shire Catering,Supplies & Services - Catering,10/11/2021,11329911,715.59,Revenue,1001530,Bidfood
Shropshire,00GG,Place - Shire Catering,Supplies & Services - Catering,10/11/2021,11329913,495.37,Revenue,1001530,Bidfood
Shropshire,00GG,Place - Shire Catering,Supplies & Services - Catering,10/11/2021,11329915,678.64,Revenue,1001530,Bidfood
Shropshire,00GG,Place - Shire Catering,Supplies & Services - Catering,10/11/2021,11329916,870.27,Revenue,1001530,Bidfood
Shropshire,00GG,Place - Shire Catering,Supplies & Services - Catering,10/11/2021,11329920,543.95,Revenue,1001530,Bidfood
Shropshire,00GG,Place - Shire Catering,Supplies & Services - Catering,10/11/2021,11329924,680.95,Revenue,1001530,Bidfood
Shropshire,00GG,Place - Shire Catering,Supplies & Services - Catering,10/11/2021,11329934,989.91,Revenue,1001530,Bidfood
Shropshire,00GG,Place - Shire Catering,Supplies & Services - Catering,10/11/2021,11329936,514.36,Revenue,1001530,Bidfood
Shropshire,00GG,Place - Shire Catering,Supplies & Services - Catering,10/11/2021,11329944,"1,015.61",Revenue,1001530,Bidfood
Shropshire,00GG,Place - Shire Catering,Supplies & Services - Catering,10/11/2021,11329945,648.08,Revenue,1001530,Bidfood
Shropshire,00GG,Place - Shire Catering,Supplies & Services - Catering,10/11/2021,11329947,600.82,Revenue,1001530,Bidfood
Shropshire,00GG,Place - Shire Catering,Supplies & Services - Catering,10/11/2021,11329952,573.90,Revenue,1001530,Bidfood
Shropshire,00GG,Place - Shire Catering,Supplies & Services - Catering,10/11/2021,11329954,"1,205.86",Revenue,1001530,Bidfood
Shropshire,00GG,Place - Shire Catering,Supplies & Services - Catering,10/11/2021,11329956,670.79,Revenue,1001530,Bidfood
Shropshire,00GG,Place - Shire Catering,Supplies & Services - Catering,10/11/2021,11329958,630.77,Revenue,1001530,Bidfood
Shropshire,00GG,Place - Shire Catering,Supplies & Services - Catering,10/11/2021,11329963,553.36,Revenue,1001530,Bidfood
Shropshire,00GG,Place - Shire Catering,Supplies & Services - Catering,10/11/2021,11329966,776.34,Revenue,1001530,Bidfood
Shropshire,00GG,Place - Shire Catering,Supplies & Services - Catering,10/11/2021,11329967,607.76,Revenue,1001530,Bidfood
Shropshire,00GG,Place - Shire Catering,Supplies & Services - Catering,10/11/2021,11329971,759.67,Revenue,1001530,Bidfood
Shropshire,00GG,Place - Shire Catering,Supplies & Services - Catering,10/11/2021,11329972,749.91,Revenue,1001530,Bidfood
Shropshire,00GG,Place - Shire Catering,Supplies & Services - Catering,10/11/2021,11329977,651.35,Revenue,1001530,Bidfood
Shropshire,00GG,Place - Shire Catering,Supplies & Services - Catering,10/11/2021,11329980,744.20,Revenue,1001530,Bidfood
Shropshire,00GG,Place - Shire Catering,Supplies & Services - Catering,10/11/2021,11329982,919.46,Revenue,1001530,Bidfood
Shropshire,00GG,Place - Shire Catering,Supplies & Services - Catering,10/11/2021,11329986,"1,326.16",Revenue,1001530,Bidfood
Shropshire,00GG,Place - Shire Catering,Supplies & Services - Catering,10/11/2021,11329987,628.21,Revenue,1001530,Bidfood
Shropshire,00GG,Place - Shire Catering,Supplies & Services - Catering,10/11/2021,11329988,576.60,Revenue,1001530,Bidfood
Shropshire,00GG,Place - Shire Catering,Supplies & Services - Catering,10/11/2021,11329989,742.64,Revenue,1001530,Bidfood
Shropshire,00GG,Place - Shire Catering,Supplies & Services - Catering,10/11/2021,11329993,575.91,Revenue,1001530,Bidfood
Shropshire,00GG,Place - Shire Catering,Supplies & Services - Catering,10/11/2021,11329998,827.54,Revenue,1001530,Bidfood
Shropshire,00GG,Place - Shire Catering,Supplies & Services - Catering,10/11/2021,11329999,523.65,Revenue,1001530,Bidfood
Shropshire,00GG,Place - Shire Catering,Supplies & Services - Catering,10/11/2021,11330003,617.96,Revenue,1001530,Bidfood
Shropshire,00GG,Place - Shire Catering,Supplies & Services - Catering,10/11/2021,11330004,"1,512.72",Revenue,1001530,Bidfood
Shropshire,00GG,Place - Shire Catering,Supplies & Services - Catering,10/11/2021,11330006,664.01,Revenue,1001530,Bidfood
Shropshire,00GG,Place - Shire Catering,Supplies & Services - Catering,10/11/2021,11330007,"1,455.82",Revenue,1001530,Bidfood
Shropshire,00GG,Place - Shire Catering,Supplies & Services - Catering,10/11/2021,11330010,"1,210.27",Revenue,1001530,Bidfood
Shropshire,00GG,Place - Shire Catering,Supplies & Services - Catering,10/11/2021,11330012,530.78,Revenue,1001530,Bidfood
Shropshire,00GG,Place - Shire Catering,Supplies & Services - Catering,10/11/2021,11330015,526.85,Revenue,1001530,Bidfood
Shropshire,00GG,Place - Shire Catering,Supplies & Services - Catering,10/11/2021,11330019,913.39,Revenue,1001530,Bidfood
Shropshire,00GG,Place - Shire Catering,Supplies & Services - Catering,10/11/2021,11330021,546.70,Revenue,1001530,Bidfood
Shropshire,00GG,Place - Shire Catering,Supplies & Services - Catering,10/11/2021,11330028,844.24,Revenue,1001530,Bidfood
Shropshire,00GG,Place - Shire Catering,Supplies & Services - Catering,10/11/2021,11330031,568.46,Revenue,1001530,Bidfood
Shropshire,00GG,Place - Shire Catering,Supplies & Services - Catering,10/11/2021,11330033,528.99,Revenue,1001530,Bidfood
Shropshire,00GG,Place - Shire Catering,Supplies & Services - Catering,10/11/2021,11330034,765.55,Revenue,1001530,Bidfood
Shropshire,00GG,Place - Shire Catering,Supplies & Services - Catering,10/11/2021,11330036,853.93,Revenue,1001530,Bidfood
Shropshire,00GG,Place - Shire Catering,Supplies & Services - Catering,10/11/2021,11330040,428.27,Revenue,1001530,Bidfood
Shropshire,00GG,Place - Shire Catering,Supplies & Services - Catering,10/11/2021,11330043,616.02,Revenue,1001530,Bidfood
Shropshire,00GG,Adult Services - Social Care Community Purchasing,Third Party Payments - Private Contractors,10/11/2021,11326082,"4,518.48",Revenue,1001546,Peace Of Mind Homecare Ltd
Shropshire,00GG,Adult Services - Social Care Community Purchasing,Third Party Payments - Private Contractors,10/11/2021,11326085,"1,773.68",Revenue,1001546,Peace Of Mind Homecare Ltd
Shropshire,00GG,Adult Services - Internal Providers - Nursing Services,Premises-Related Expenditure - Cleaning and domestic supplies,10/11/2021,3278839,39.98,Revenue,1001937,Gompels Healthcare Ltd
Shropshire,00GG,Adult Services - Internal Providers - Nursing Services,Supplies & Services - Equipment Furniture and Materials,10/11/2021,3278839,906.60,Revenue,1001937,Gompels Healthcare Ltd
Shropshire,00GG,Adult Services - Internal Providers - Nursing Services,Supplies & Services - Clothes Uniforms and Laundry,10/11/2021,3278839,116.96,Revenue,1001937,Gompels Healthcare Ltd
Shropshire,00GG,People - Housing Options,Supplies & Services - Services,10/11/2021,3285842,"2,255.00",Revenue,1002000,The Raven Hotel
Shropshire,00GG,Workforce and Transformation - Print & Post Services,Supplies & Services - Printing Stationery and General Office Expenses,10/11/2021,3279183,"2,629.78",Revenue,1002095,Ricoh Uk Ltd
Shropshire,00GG,Adult Services - Substance Misuse (Ringfenced),Third Party Payments - Health Authorities,10/11/2021,3285422,"1,535.44",Revenue,1002152,Drayton Medical Practices
Shropshire,00GG,People - Placements: Placement Staffing,Supplies & Services - Equipment Furniture and Materials,10/11/2021,3284578,60.00,Revenue,1002233,Havenbrook Imprest
Shropshire,00GG,People - Placements: Residential Placements,Premises-Related Expenditure - Cleaning and domestic supplies,10/11/2021,3284578,10.00,Revenue,1002233,Havenbrook Imprest
Shropshire,00GG,People - Placements: Residential Placements,Supplies & Services - Equipment Furniture and Materials,10/11/2021,3284578,143.48,Revenue,1002233,Havenbrook Imprest
Shropshire,00GG,People - Placements: Residential Placements,Supplies & Services - Catering,10/11/2021,3284578,406.43,Revenue,1002233,Havenbrook Imprest
Shropshire,00GG,People - Placements: Residential Placements,Supplies & Services - Clothes Uniforms and Laundry,10/11/2021,3284578,20.10,Revenue,1002233,Havenbrook Imprest
Shropshire,00GG,People - Placements: Residential Placements,Supplies & Services - Printing Stationery and General Office Expenses,10/11/2021,3284578,13.17,Revenue,1002233,Havenbrook Imprest
Shropshire,00GG,People - Placements: Residential Placements,Third Party Payments - Other Establishments,10/11/2021,3284578,132.08,Revenue,1002233,Havenbrook Imprest
Shropshire,00GG,Place - Theatre Services,Third Party Payments - Private Contractors,10/11/2021,3285939,"5,500.00",Revenue,1002450,Etm (Agencies) Ltd
Shropshire,00GG,Adult Services - Care Management - Transport,Transport-Related Expenditure - Contract Hire and Operating Leases,10/11/2021,3286172,"1,020.00",Revenue,1002881,B Khan
Shropshire,00GG,Health and Wellbeing - Public Health General Management,Employees - Indirect Employee Expenses,10/11/2021,3286186,500.00,Revenue,1003010,Penna Plc
Shropshire,00GG,Health and Wellbeing - Public Health General Management,Employees - Indirect Employee Expenses,10/11/2021,3286187,"5,666.68",Revenue,1003010,Penna Plc
Shropshire,00GG,Health and Wellbeing - Public Health General Management,Employees - Indirect Employee Expenses,10/11/2021,3286202,"2,085.00",Revenue,1003010,Penna Plc
Shropshire,00GG,Capital - Corporate Landlord Capital,Non Revenue - Non Revenue,10/11/2021,3282443,"47,612.00",Capital,1003262,Srs Electrical Contractors Ltd
Shropshire,00GG,Place - Economic Growth,Supplies & Services - Services,10/11/2021,3278626,"3,900.00",Revenue,1003313,Be Bold Media Ltd
Shropshire,00GG,People - Housing Options,Supplies & Services - Services,10/11/2021,3285701,"5,060.00",Revenue,1003731,The Firs Riverside B&B Limited
Shropshire,00GG,Adult Services - Substance Misuse (Ringfenced),Third Party Payments - Health Authorities,10/11/2021,3285059,"6,096.78",Revenue,1004115,Nhs Shropshire Ccg
Shropshire,00GG,Place - Theatre Services,Third Party Payments - Private Contractors,10/11/2021,3286119,865.40,Revenue,1004663,Live Nation (Music) Uk Ltd
Shropshire,00GG,Place - Leisure,Premises-Related Expenditure - Repairs alterations and maintenance of buildings,10/11/2021,3278755,479.17,Revenue,1004837,The 3-18 Education Trust T/A William Brookes School
Shropshire,00GG,Place - Leisure,Premises-Related Expenditure - Energy Costs,10/11/2021,3278755,"3,427.93",Revenue,1004837,The 3-18 Education Trust T/A William Brookes School
Shropshire,00GG,Place - Leisure,Premises-Related Expenditure - Rates,10/11/2021,3278755,847.55,Revenue,1004837,The 3-18 Education Trust T/A William Brookes School
Shropshire,00GG,Place - Leisure,Premises-Related Expenditure - Water Services,10/11/2021,3278755,-601.21,Revenue,1004837,The 3-18 Education Trust T/A William Brookes School
Shropshire,00GG,Place - Leisure,Premises-Related Expenditure - Cleaning and domestic supplies,10/11/2021,3278755,"1,000.00",Revenue,1004837,The 3-18 Education Trust T/A William Brookes School
Shropshire,00GG,Adult Services - Social Care Hospital Interface Purchasing,Third Party Payments - Private Contractors,10/11/2021,11326083,968.74,Revenue,1005424,Willow Home Care Ltd
Shropshire,00GG,Adult Services - Social Care Hospital Interface Purchasing,Third Party Payments - Private Contractors,10/11/2021,11327087,"1,628.58",Revenue,1005567,Quality Community Care Ltd
Shropshire,00GG,Adult Services - Housing Options,Supplies & Services - Equipment Furniture and Materials,10/11/2021,3286164,581.25,Revenue,1005605,Old Park Services Ltd - Reviive
Shropshire,00GG,Adult Services - Housing Options,Supplies & Services - Equipment Furniture and Materials,10/11/2021,3286244,500.42,Revenue,1005605,Old Park Services Ltd - Reviive
Shropshire,00GG,Adult Services - Housing Options,Supplies & Services - Equipment Furniture and Materials,10/11/2021,3286253,468.33,Revenue,1005605,Old Park Services Ltd - Reviive
Shropshire,00GG,Adult Services - Housing Options,Supplies & Services - Equipment Furniture and Materials,10/11/2021,3286321,455.00,Revenue,1005605,Old Park Services Ltd - Reviive
Shropshire,00GG,Capital - Secondary School Capital,Non Revenue - Non Revenue,10/11/2021,3285993,"1,302.48",Capital,1006237,The Spotted Penguin Company
Shropshire,00GG,Children's Services - Children�s Case Management,Transport-Related Expenditure - Public Transport,10/11/2021,3286120,"3,533.09",Revenue,1006314,Veezu Midlands Limited t/a Go Carz
Shropshire,00GG,Children's Services - Disabled Children's Team,Transport-Related Expenditure - Public Transport,10/11/2021,3286120,3.85,Revenue,1006314,Veezu Midlands Limited t/a Go Carz
Shropshire,00GG,Children's Services - Looked After Children (LAC) Service,Transport-Related Expenditure - Public Transport,10/11/2021,3286120,132.00,Revenue,1006314,Veezu Midlands Limited t/a Go Carz
Shropshire,00GG,Place - Economic Growth,Supplies & Services - Services,10/11/2021,3278671,"2,000.00",Revenue,1006429,Social Heart Cic
Shropshire,00GG,Adult Services - Social Care Community Purchasing,Third Party Payments - Private Contractors,10/11/2021,11326077,"1,654.16",Revenue,1008010,Haveacare
Shropshire,00GG,Adult Services - Social Care Hospital Interface Purchasing,Third Party Payments - Private Contractors,10/11/2021,11326080,"1,275.44",Revenue,1008010,Haveacare
Shropshire,00GG,Children's Services - Early Years,Third Party Payments - Other Establishments,10/11/2021,3285108,"1,571.70",Revenue,1008317,Earlyworld Nursery
Shropshire,00GG,People - Early Years,Third Party Payments - Other Establishments,10/11/2021,3286087,"1,250.00",Revenue,1008327,Condover Pre-School Playgroup
Shropshire,00GG,Children's Services - Early Years,Third Party Payments - Other Establishments,10/11/2021,3285461,"2,133.38",Revenue,1008491,Bumblebees Bronington
Shropshire,00GG,Adult Services - Supported Living Properties,Support Services - Property Management/Office Accomodation,10/11/2021,3281314,"4,991.55",Revenue,1008556,J Rogers & Sons
Shropshire,00GG,Shropshire Council Balance Sheet - Shropshire Council Balance Sheet,Non Revenue - Non Revenue,10/11/2021,11330428,-528.00,Revenue,1008556,J Rogers & Sons
Shropshire,00GG,People - Home to School Transport,Transport-Related Expenditure - Contract Hire and Operating Leases,10/11/2021,3285493,649.60,Revenue,1008999,Personal redaction
Shropshire,00GG,Adult Services - Social Care Hospital Interface Purchasing,Third Party Payments - Private Contractors,10/11/2021,11327086,"5,689.80",Revenue,1009895,M&S Care Solutions (I.C.S)
Shropshire,00GG,Legal and Democratic Services - Legal Services � Child Care,Supplies & Services - Services,10/11/2021,3280766,650.00,Revenue,1009906,Shan Morris
Shropshire,00GG,Adult Services - Social Care Hospital Interface Purchasing,Third Party Payments - Private Contractors,10/11/2021,11329812,"5,400.00",Revenue,1010117,Invest In Care (T/A Brialyn Ltd (I.C.S)
Shropshire,00GG,People - Special Educational Needs & Disability,Third Party Payments - Other Establishments,10/11/2021,3286294,"26,245.89",Revenue,1010251,Orbis Education & Care Ltd
Shropshire,00GG,Adult Services - Substance Misuse (Ringfenced),Third Party Payments - Health Authorities,10/11/2021,3285979,"1,896.72",Revenue,1010425,Churchmere Medical Group
Shropshire,00GG,Adult Services - Social Care Hospital Interface Purchasing,Third Party Payments - Private Contractors,10/11/2021,11327089,"1,275.30",Revenue,1010569,Oswestry Care Ltd
Shropshire,00GG,Place - Economic Growth,Supplies & Services - Services,10/11/2021,3278615,750.00,Revenue,1011557,Carl Jones
Shropshire,00GG,Children's Services - Special Educational Needs & Disability,Third Party Payments - Other Establishments,10/11/2021,3286309,"4,000.00",Revenue,1011857,Brine Leas School
Shropshire,00GG,People - Early Years,Third Party Payments - Other Establishments,10/11/2021,3286205,"2,250.00",Revenue,1011966,Explorers at Hadnall
Shropshire,00GG,Place - Shire Catering,Supplies & Services - Miscellaneous Expenses,10/11/2021,3286204,"2,253.58",Revenue,1013014,St. Stephen's Church of England Primary School
Shropshire,00GG,Place - Theatre Services,Supplies & Services - Equipment Furniture and Materials,10/11/2021,3278854,457.50,Revenue,1013325,ESP Security Solutions Limited
Shropshire,00GG,Place - Environment and Transport (Public Transport),Transport-Related Expenditure - Contract Hire and Operating Leases,10/11/2021,3284692,"1,596.48",Revenue,1013739,Absolute Personnel
Shropshire,00GG,Capital - Housing Services Capital,Non Revenue - Non Revenue,10/11/2021,3285432,"3,029.89",Capital,1014064,Property Plus (Midlands) Ltd
Shropshire,00GG,People - Enable,Premises-Related Expenditure - Rents,10/11/2021,3285398,"1,000.00",Revenue,1014934,The Hive Music And Media Centre
Shropshire,00GG,People - Housing Options,Supplies & Services - Services,10/11/2021,3286073,"10,519.00",Revenue,1015762,Sydney House Hotel
Shropshire,00GG,Capital - Children's Residential Care Capital,Non Revenue - Non Revenue,11/11/2021,3284642,"30,216.69",Capital,1000219,Welch & Phillips Ltd
Shropshire,00GG,Capital - Corporate Landlord Capital,Non Revenue - Non Revenue,11/11/2021,11330441,"8,852.00",Capital,1000306,Security Wise Ltd
Shropshire,00GG,Capital - Corporate Landlord Capital,Non Revenue - Non Revenue,11/11/2021,11330442,"12,796.00",Capital,1000306,Security Wise Ltd
Shropshire,00GG,Place - Property Services Group,Premises-Related Expenditure - Repairs alterations and maintenance of buildings,11/11/2021,11327047,"1,931.72",Revenue,1000322,R M W Electrical Services Ltd
Shropshire,00GG,Place - Corporate Landlord - Central Repairs & Maintenance,Premises-Related Expenditure - Repairs alterations and maintenance of buildings,11/11/2021,11330470,"1,977.15",Revenue,1000322,R M W Electrical Services Ltd
Shropshire,00GG,Children's Services - Home to School Transport,Transport-Related Expenditure - Contract Hire and Operating Leases,11/11/2021,3286457,"4,800.00",Revenue,1000424,Owens Coaches
Shropshire,00GG,"Finance, Governance & Assurance - Finance",Non Revenue - Non Revenue,11/11/2021,3275273,"37,500.00",Revenue,1000613,Morris & Co
Shropshire,00GG,Adult Services - Internal Providers - Day Services,Supplies & Services - Equipment Furniture and Materials,11/11/2021,3285407,929.80,Revenue,1000763,Phs Group Plc
Shropshire,00GG,Place - Shire Catering,Supplies & Services - Catering,11/11/2021,3282994,959.84,Revenue,1000926,Options Management
Shropshire,00GG,Place - Shire Catering,Supplies & Services - Catering,11/11/2021,3283036,"1,132.32",Revenue,1000926,Options Management
Shropshire,00GG,Place - Shire Catering,Supplies & Services - Catering,11/11/2021,3283069,"1,204.88",Revenue,1000926,Options Management
Shropshire,00GG,Adult Services - Independent Living,Third Party Payments - Other Agencies,11/11/2021,3283951,"3,750.00",Revenue,1001015,Marches Energy Agency
Shropshire,00GG,Adult Services - Social Care Community Purchasing,Third Party Payments - Private Contractors,11/11/2021,11327091,"12,600.00",Revenue,1001105,Prestige Nursing Ltd
Shropshire,00GG,Adult Services - Social Care Community Purchasing,Third Party Payments - Private Contractors,11/11/2021,11327092,"2,940.00",Revenue,1001105,Prestige Nursing Ltd
Shropshire,00GG,Children's Services - Special Educational Needs & Disability,Third Party Payments - Other Establishments,11/11/2021,3286483,"416,134.82",Revenue,1001408,Derwen College
Shropshire,00GG,People - Children�s Case Management,Supplies & Services - Communications and Computing,11/11/2021,3286100,7.74,Revenue,1001630,Scc Multi-Agency Team Imp Acc
Shropshire,00GG,People - Children�s Case Management,Supplies & Services - Expenses,11/11/2021,3286100,696.98,Revenue,1001630,Scc Multi-Agency Team Imp Acc
Shropshire,00GG,People - Children�s Case Management,Third Party Payments - Other Establishments,11/11/2021,3286100,15.00,Revenue,1001630,Scc Multi-Agency Team Imp Acc
Shropshire,00GG,People - Home to School Transport,Transport-Related Expenditure - Contract Hire and Operating Leases,11/11/2021,3285053,"1,875.00",Revenue,1001729,Concorde Travel Of Shrewsbury
Shropshire,00GG,Children's Services - Children�s Case Management,Supplies & Services - Services,11/11/2021,3283139,"1,713.60",Revenue,1002244,Wilcox Psychological Associates
Shropshire,00GG,Place - Theatre Services,Supplies & Services - Services,11/11/2021,3279561,"2,530.00",Revenue,1002245,Twentyfirst Century Media Group Ltd
Shropshire,00GG,Place - Economic Growth,Supplies & Services - Services,11/11/2021,3279385,"11,500.00",Revenue,1002874,Yarrington Limited
Shropshire,00GG,Place - Shire Catering,Supplies & Services - Catering,11/11/2021,3286433,727.05,Revenue,1002955,Theos Food Service Ltd
Shropshire,00GG,Place - Shire Catering,Supplies & Services - Catering,11/11/2021,3286562,996.60,Revenue,1002955,Theos Food Service Ltd
Shropshire,00GG,Place - Planning Services,Supplies & Services - Equipment Furniture and Materials,11/11/2021,3279719,"1,400.00",Revenue,1003565,Oswestry Town Museum Ltd
Shropshire,00GG,Place - Environment and Transport (Parking),Third Party Payments - Private Contractors,11/11/2021,3286449,980.00,Revenue,1003600,Unicorn Fire & Safety Solutions
Shropshire,00GG,Capital - Corporate Landlord Capital,Non Revenue - Non Revenue,11/11/2021,11330430,"1,560.00",Capital,1003602,HSL Compliance Limited
Shropshire,00GG,Adult Services - Bereavement Services,Premises-Related Expenditure - Water Services,11/11/2021,11322664,9.38,Revenue,1003705,West Mercia Energy
Shropshire,00GG,Adult Services - Enable,Premises-Related Expenditure - Energy Costs,11/11/2021,11322664,738.90,Revenue,1003705,West Mercia Energy
Shropshire,00GG,Adult Services - Housing Options,Premises-Related Expenditure - Energy Costs,11/11/2021,11322664,"12,244.40",Revenue,1003705,West Mercia Energy
Shropshire,00GG,Adult Services - Regulatory Services,Premises-Related Expenditure - Energy Costs,11/11/2021,11322664,27.48,Revenue,1003705,West Mercia Energy
Shropshire,00GG,Children's Services - Early Help Family Hubs,Premises-Related Expenditure - Energy Costs,11/11/2021,11322664,197.30,Revenue,1003705,West Mercia Energy
Shropshire,00GG,Children's Services - Non-Delegated Primary DSG,Premises-Related Expenditure - Energy Costs,11/11/2021,11322664,46.16,Revenue,1003705,West Mercia Energy
Shropshire,00GG,Children's Services - Placements: Residential Placements,Premises-Related Expenditure - Energy Costs,11/11/2021,11322664,722.28,Revenue,1003705,West Mercia Energy
Shropshire,00GG,Place - Corporate Landlord -  Economic Development,Premises-Related Expenditure - Energy Costs,11/11/2021,11322664,"6,674.32",Revenue,1003705,West Mercia Energy
Shropshire,00GG,Place - Corporate Landlord -  Economic Development,Premises-Related Expenditure - Water Services,11/11/2021,11322664,"22,598.18",Revenue,1003705,West Mercia Energy
Shropshire,00GG,Place - Corporate Landlord -  Environmental & Regulatory Service,Premises-Related Expenditure - Energy Costs,11/11/2021,11322664,167.42,Revenue,1003705,West Mercia Energy
Shropshire,00GG,Place - Corporate Landlord -  Environmental & Regulatory Service,Premises-Related Expenditure - Water Services,11/11/2021,11322664,"1,104.18",Revenue,1003705,West Mercia Energy
Shropshire,00GG,Place - Corporate Landlord -  Highways,Premises-Related Expenditure - Energy Costs,11/11/2021,11322664,"5,226.90",Revenue,1003705,West Mercia Energy
Shropshire,00GG,Place - Corporate Landlord -  Highways,Premises-Related Expenditure - Water Services,11/11/2021,11322664,"3,949.30",Revenue,1003705,West Mercia Energy
Shropshire,00GG,Place - Corporate Landlord - Admin Buildings,Premises-Related Expenditure - Energy Costs,11/11/2021,11322664,"51,484.02",Revenue,1003705,West Mercia Energy
Shropshire,00GG,Place - Corporate Landlord - Admin Buildings,Premises-Related Expenditure - Water Services,11/11/2021,11322664,"8,919.16",Revenue,1003705,West Mercia Energy
Shropshire,00GG,Place - Corporate Landlord - Adult Services,Premises-Related Expenditure - Energy Costs,11/11/2021,11322664,"4,267.54",Revenue,1003705,West Mercia Energy
Shropshire,00GG,Place - Corporate Landlord - Adult Services,Premises-Related Expenditure - Water Services,11/11/2021,11322664,738.40,Revenue,1003705,West Mercia Energy
Shropshire,00GG,Place - Corporate Landlord - Car Parks,Premises-Related Expenditure - Energy Costs,11/11/2021,11322664,"3,711.36",Revenue,1003705,West Mercia Energy
Shropshire,00GG,Place - Corporate Landlord - Car Parks,Premises-Related Expenditure - Water Services,11/11/2021,11322664,"14,906.38",Revenue,1003705,West Mercia Energy
Shropshire,00GG,Place - Corporate Landlord - Children's Services,Premises-Related Expenditure - Energy Costs,11/11/2021,11322664,"1,491.74",Revenue,1003705,West Mercia Energy
Shropshire,00GG,Place - Corporate Landlord - Children's Services,Premises-Related Expenditure - Water Services,11/11/2021,11322664,"3,692.22",Revenue,1003705,West Mercia Energy
Shropshire,00GG,Place - Corporate Landlord - Leisure,Premises-Related Expenditure - Energy Costs,11/11/2021,11322664,"8,982.86",Revenue,1003705,West Mercia Energy
Shropshire,00GG,Place - Corporate Landlord - Leisure,Premises-Related Expenditure - Water Services,11/11/2021,11322664,"4,802.94",Revenue,1003705,West Mercia Energy
Shropshire,00GG,Place - Corporate Landlord - Libraries,Premises-Related Expenditure - Energy Costs,11/11/2021,11322664,"13,341.68",Revenue,1003705,West Mercia Energy
Shropshire,00GG,Place - Corporate Landlord - Libraries,Premises-Related Expenditure - Water Services,11/11/2021,11322664,"2,150.70",Revenue,1003705,West Mercia Energy
Shropshire,00GG,Place - Corporate Landlord - Mardol House & Tannery,Premises-Related Expenditure - Energy Costs,11/11/2021,11322664,92.66,Revenue,1003705,West Mercia Energy
Shropshire,00GG,Place - Corporate Landlord - Mardol House & Tannery,Premises-Related Expenditure - Water Services,11/11/2021,11322664,"2,316.74",Revenue,1003705,West Mercia Energy
Shropshire,00GG,Place - Corporate Landlord - Museums & Culture,Premises-Related Expenditure - Energy Costs,11/11/2021,11322664,"32,780.40",Revenue,1003705,West Mercia Energy
Shropshire,00GG,Place - Corporate Landlord - Museums & Culture,Premises-Related Expenditure - Water Services,11/11/2021,11322664,"-9,809.48",Revenue,1003705,West Mercia Energy
Shropshire,00GG,Place - Corporate Landlord - Smallholdings,Premises-Related Expenditure - Water Services,11/11/2021,11322664,36.46,Revenue,1003705,West Mercia Energy
Shropshire,00GG,Place - Corporate Landlord - Traveller Sites,Premises-Related Expenditure - Energy Costs,11/11/2021,11322664,"6,585.96",Revenue,1003705,West Mercia Energy
Shropshire,00GG,Place - Corporate Landlord - Traveller Sites,Premises-Related Expenditure - Water Services,11/11/2021,11322664,"8,301.26",Revenue,1003705,West Mercia Energy
Shropshire,00GG,Place - Corporate Landlord - Youth Centres & Community,Premises-Related Expenditure - Energy Costs,11/11/2021,11322664,"5,947.26",Revenue,1003705,West Mercia Energy
Shropshire,00GG,Place - Corporate Landlord - Youth Centres & Community,Premises-Related Expenditure - Water Services,11/11/2021,11322664,"2,899.38",Revenue,1003705,West Mercia Energy
Shropshire,00GG,Place - Environment and Transport (Parking),Premises-Related Expenditure - Energy Costs,11/11/2021,11322664,269.90,Revenue,1003705,West Mercia Energy
Shropshire,00GG,Place - Environment and Transport (Parking),Premises-Related Expenditure - Water Services,11/11/2021,11322664,806.50,Revenue,1003705,West Mercia Energy
Shropshire,00GG,Place - Highways (Operations),Supplies & Services - Services,11/11/2021,11322664,"124,014.66",Revenue,1003705,West Mercia Energy
Shropshire,00GG,Place - Leisure,Premises-Related Expenditure - Energy Costs,11/11/2021,11322664,"12,200.32",Revenue,1003705,West Mercia Energy
Shropshire,00GG,Place - Outdoor Partnerships,Premises-Related Expenditure - Energy Costs,11/11/2021,11322664,"1,336.30",Revenue,1003705,West Mercia Energy
Shropshire,00GG,Place - Outdoor Partnerships,Premises-Related Expenditure - Water Services,11/11/2021,11322664,399.74,Revenue,1003705,West Mercia Energy
Shropshire,00GG,Place - Shrewsbury Shopping Centres (Commercial),Premises-Related Expenditure - Energy Costs,11/11/2021,11322664,93.90,Revenue,1003705,West Mercia Energy
Shropshire,00GG,Place - Shrewsbury Shopping Centres (Development),Premises-Related Expenditure - Energy Costs,11/11/2021,11322664,321.78,Revenue,1003705,West Mercia Energy
Shropshire,00GG,Children's Services - Home to School Transport,Transport-Related Expenditure - Contract Hire and Operating Leases,11/11/2021,3280257,540.00,Revenue,1004382,ABC Cars Group Ltd T/A ABC Cars
Shropshire,00GG,Adult Services - Care Management - Transport,Transport-Related Expenditure - Contract Hire and Operating Leases,11/11/2021,3280269,900.00,Revenue,1004382,ABC Cars Group Ltd T/A ABC Cars
Shropshire,00GG,Children's Services - Special Educational Needs & Disability,Supplies & Services - Services,11/11/2021,3278864,"2,345.00",Revenue,1004526,Quality Education With Care Ltd
Shropshire,00GG,People - Home to School Transport,Transport-Related Expenditure - Contract Hire and Operating Leases,11/11/2021,3284114,"1,050.00",Revenue,1004748,Boomerang Of Cleobury Mortimer
Shropshire,00GG,Capital - Housing Services Capital,Non Revenue - Non Revenue,11/11/2021,3285861,"7,945.74",Capital,1004765,M W Knight & Sons Ltd
Shropshire,00GG,Adult Services - Social Care Hospital Interface Purchasing,Third Party Payments - Private Contractors,11/11/2021,11327090,"2,717.37",Revenue,1004909,Phoenix Homecare And Support Ltd
Shropshire,00GG,Children's Services - Special Educational Needs & Disability,Supplies & Services - Services,11/11/2021,3281257,625.00,Revenue,1004937,Victoria Everall
Shropshire,00GG,Children's Services - Placements: Adoption Service,Supplies & Services - Services,11/11/2021,11328002,"1,000.00",Revenue,1005180,Sea Change Psychotherapy Ltd
Shropshire,00GG,Children's Services - Placements: Adoption Service,Supplies & Services - Services,11/11/2021,11328005,"1,000.00",Revenue,1005180,Sea Change Psychotherapy Ltd
Shropshire,00GG,Children's Services - Placements: Adoption Service,Supplies & Services - Services,11/11/2021,11328007,"1,000.00",Revenue,1005180,Sea Change Psychotherapy Ltd
Shropshire,00GG,Children's Services - Placements: Adoption Service,Supplies & Services - Services,11/11/2021,11328008,"1,000.00",Revenue,1005180,Sea Change Psychotherapy Ltd
Shropshire,00GG,Children's Services - Placements: Adoption Service,Supplies & Services - Services,11/11/2021,11328009,"1,000.00",Revenue,1005180,Sea Change Psychotherapy Ltd
Shropshire,00GG,Children's Services - Placements: Adoption Service,Supplies & Services - Services,11/11/2021,11328011,"1,000.00",Revenue,1005180,Sea Change Psychotherapy Ltd
Shropshire,00GG,Children's Services - Placements: Adoption Service,Supplies & Services - Services,11/11/2021,11328012,"1,000.00",Revenue,1005180,Sea Change Psychotherapy Ltd
Shropshire,00GG,Children's Services - Placements: Adoption Service,Supplies & Services - Services,11/11/2021,11328013,"1,250.00",Revenue,1005180,Sea Change Psychotherapy Ltd
Shropshire,00GG,Children's Services - Placements: Adoption Service,Supplies & Services - Services,11/11/2021,11328021,425.00,Revenue,1005548,Rgt Training & Consultancy Ltd
Shropshire,00GG,Adult Services - Housing Options,Supplies & Services - Equipment Furniture and Materials,11/11/2021,3286277,676.25,Revenue,1005605,Old Park Services Ltd - Reviive
Shropshire,00GG,Place - Shire Catering,Supplies & Services - Miscellaneous Expenses,11/11/2021,3286168,"6,081.14",Revenue,1005628,Ludlow Primary School
Shropshire,00GG,Children's Services - Placements: Placement Staffing,Employees - Direct Employee Expenses,11/11/2021,3281918,"2,518.96",Revenue,1005988,NonStop Consulting Ltd
Shropshire,00GG,People - Placements: Residential Placements,Employees - Direct Employee Expenses,11/11/2021,3286212,423.44,Revenue,1006553,Randstad Public Services Ltd
Shropshire,00GG,Children's Services - Special Educational Needs & Disability,Third Party Payments - Other Establishments,11/11/2021,3286572,898.06,Revenue,1006612,Wightwick Hall School
Shropshire,00GG,Children's Services - Special Educational Needs & Disability,Third Party Payments - Other Establishments,11/11/2021,3286582,"1,234.84",Revenue,1006612,Wightwick Hall School
Shropshire,00GG,People - Special Educational Needs & Disability,Third Party Payments - Other Establishments,11/11/2021,3286302,"1,666.23",Revenue,1008389,Highley Minors Childcare
Shropshire,00GG,Place - Shire Catering,Supplies & Services - Miscellaneous Expenses,11/11/2021,3286203,"11,930.46",Revenue,1008532,Severn Bridge Mat Ta Mount Pleasant
Shropshire,00GG,Legal and Democratic Services - Legal Services � Child Care,Supplies & Services - Services,11/11/2021,3279692,750.00,Revenue,1009781,Helen Arthur
Shropshire,00GG,Place - Shrewsbury Shopping Centres (Development),Supplies & Services - Services,11/11/2021,3274925,"15,000.00",Revenue,1009962,Personal redaction
Shropshire,00GG,Adult Services - Social Care Hospital Interface Purchasing,Third Party Payments - Private Contractors,11/11/2021,11326087,"1,050.00",Revenue,1010097,Quil Care Group
Shropshire,00GG,Adult Services - Social Care Hospital Interface Purchasing,Third Party Payments - Private Contractors,11/11/2021,11326094,"1,050.00",Revenue,1010097,Quil Care Group
Shropshire,00GG,Adult Services - Social Care Hospital Interface Purchasing,Third Party Payments - Private Contractors,11/11/2021,11326095,750.00,Revenue,1010097,Quil Care Group
Shropshire,00GG,Place - Environment and Transport (Public Transport),Transport-Related Expenditure - Contract Hire and Operating Leases,11/11/2021,3286391,"8,017.12",Revenue,1010159,City Car Club Ltd
Shropshire,00GG,Place - Corporate Landlord - Admin Buildings,Premises-Related Expenditure - Repairs alterations and maintenance of buildings,11/11/2021,11330469,"1,256.00",Revenue,1010409,Concept Elevators (Uk) Limited
Shropshire,00GG,Adult Services - Substance Misuse (Ringfenced),Third Party Payments - Health Authorities,11/11/2021,3285998,"1,806.40",Revenue,1010425,Churchmere Medical Group
Shropshire,00GG,Children's Services - Early Years,Third Party Payments - Other Establishments,11/11/2021,3285912,"1,027.65",Revenue,1010702,Empower Trust
Shropshire,00GG,Children's Services - Learning & Skills Business Support,Supplies & Services - Services,11/11/2021,3278767,960.00,Revenue,1010881,Educating Kids Outdoors
Shropshire,00GG,Legal and Democratic Services - Legal Services � Child Care,Supplies & Services - Services,11/11/2021,3279684,700.00,Revenue,1011007,Kirsty Gallacher
Shropshire,00GG,Adult Services - Social Care Hospital Interface Purchasing,Third Party Payments - Private Contractors,11/11/2021,11326088,966.28,Revenue,1011337,Willow Care North Shropshire Ltd
Shropshire,00GG,Adult Services - Social Care Hospital Interface Purchasing,Third Party Payments - Private Contractors,11/11/2021,11326089,"1,177.20",Revenue,1011337,Willow Care North Shropshire Ltd
Shropshire,00GG,Adult Services - Social Care Hospital Interface Purchasing,Third Party Payments - Private Contractors,11/11/2021,11326090,"1,226.25",Revenue,1011337,Willow Care North Shropshire Ltd
Shropshire,00GG,Adult Services - Social Care Hospital Interface Purchasing,Third Party Payments - Private Contractors,11/11/2021,11326092,"1,785.42",Revenue,1011337,Willow Care North Shropshire Ltd
Shropshire,00GG,Adult Services - Social Care Hospital Interface Purchasing,Third Party Payments - Private Contractors,11/11/2021,11326093,"1,918.88",Revenue,1011337,Willow Care North Shropshire Ltd
Shropshire,00GG,Children's Services - Placements: Adoption Service,Supplies & Services - Services,11/11/2021,11328015,750.00,Revenue,1011374,G M Parry
Shropshire,00GG,Children's Services - Placements: Adoption Service,Supplies & Services - Services,11/11/2021,11328017,625.00,Revenue,1011374,G M Parry
Shropshire,00GG,Children's Services - Placements: Adoption Service,Supplies & Services - Services,11/11/2021,11328018,750.00,Revenue,1011374,G M Parry
Shropshire,00GG,Children's Services - Placements: Adoption Service,Supplies & Services - Services,11/11/2021,11328019,625.00,Revenue,1011374,G M Parry
Shropshire,00GG,Legal and Democratic Services - Legal Services � Child Care,Supplies & Services - Services,11/11/2021,3279702,"1,100.00",Revenue,1013890,Kathryn Taylor
Shropshire,00GG,Legal and Democratic Services - Legal Services � Child Care,Supplies & Services - Services,11/11/2021,3286614,750.00,Revenue,1013890,Kathryn Taylor
Shropshire,00GG,Adult Services - Housing Options,Premises-Related Expenditure - Repairs alterations and maintenance of buildings,11/11/2021,3280413,442.42,Revenue,1014739,Sj Busy Bees Cleaning
Shropshire,00GG,Adult Services - Housing Options,Premises-Related Expenditure - Repairs alterations and maintenance of buildings,11/11/2021,3280414,588.70,Revenue,1014739,Sj Busy Bees Cleaning
Shropshire,00GG,Adult Services - Housing Options,Premises-Related Expenditure - Repairs alterations and maintenance of buildings,11/11/2021,3280580,772.08,Revenue,1014739,Sj Busy Bees Cleaning
Shropshire,00GG,People - Non-Delegated Primary DSG,Premises-Related Expenditure - Repairs alterations and maintenance of buildings,11/11/2021,3285977,467.75,Revenue,1014917,New Hall Property Ltd
Shropshire,00GG,Children's Services - Special Educational Needs & Disability,Third Party Payments - Other Establishments,12/11/2021,3286707,"5,413.00",Revenue,1000195,Church Stretton School
Shropshire,00GG,People - Home to School Transport,Transport-Related Expenditure - Contract Hire and Operating Leases,12/11/2021,3282490,"2,720.00",Revenue,1000204,Lakeside Coaches Ltd
Shropshire,00GG,People - Home to School Transport,Transport-Related Expenditure - Contract Hire and Operating Leases,12/11/2021,3282496,"2,550.00",Revenue,1000204,Lakeside Coaches Ltd
Shropshire,00GG,People - Home to School Transport,Transport-Related Expenditure - Contract Hire and Operating Leases,12/11/2021,3282504,"2,625.00",Revenue,1000204,Lakeside Coaches Ltd
Shropshire,00GG,People - Home to School Transport,Transport-Related Expenditure - Contract Hire and Operating Leases,12/11/2021,3282510,"3,600.00",Revenue,1000204,Lakeside Coaches Ltd
Shropshire,00GG,People - Home to School Transport,Transport-Related Expenditure - Contract Hire and Operating Leases,12/11/2021,3282514,"1,408.00",Revenue,1000204,Lakeside Coaches Ltd
Shropshire,00GG,People - Home to School Transport,Transport-Related Expenditure - Contract Hire and Operating Leases,12/11/2021,3282516,"2,955.00",Revenue,1000204,Lakeside Coaches Ltd
Shropshire,00GG,People - Home to School Transport,Transport-Related Expenditure - Contract Hire and Operating Leases,12/11/2021,3282521,"3,840.00",Revenue,1000204,Lakeside Coaches Ltd
Shropshire,00GG,People - Home to School Transport,Transport-Related Expenditure - Contract Hire and Operating Leases,12/11/2021,3282523,"1,408.00",Revenue,1000204,Lakeside Coaches Ltd
Shropshire,00GG,People - Home to School Transport,Transport-Related Expenditure - Contract Hire and Operating Leases,12/11/2021,3282528,"2,850.00",Revenue,1000204,Lakeside Coaches Ltd
Shropshire,00GG,People - Home to School Transport,Transport-Related Expenditure - Contract Hire and Operating Leases,12/11/2021,3282530,"3,936.00",Revenue,1000204,Lakeside Coaches Ltd
Shropshire,00GG,People - Home to School Transport,Transport-Related Expenditure - Contract Hire and Operating Leases,12/11/2021,3282532,"2,475.00",Revenue,1000204,Lakeside Coaches Ltd
Shropshire,00GG,People - Home to School Transport,Transport-Related Expenditure - Contract Hire and Operating Leases,12/11/2021,3282538,"2,432.00",Revenue,1000204,Lakeside Coaches Ltd
Shropshire,00GG,People - Home to School Transport,Transport-Related Expenditure - Contract Hire and Operating Leases,12/11/2021,3282544,"1,860.00",Revenue,1000204,Lakeside Coaches Ltd
Shropshire,00GG,People - Home to School Transport,Transport-Related Expenditure - Contract Hire and Operating Leases,12/11/2021,3282545,"2,520.00",Revenue,1000204,Lakeside Coaches Ltd
Shropshire,00GG,People - Home to School Transport,Transport-Related Expenditure - Contract Hire and Operating Leases,12/11/2021,3282553,600.00,Revenue,1000204,Lakeside Coaches Ltd
Shropshire,00GG,People - Home to School Transport,Transport-Related Expenditure - Contract Hire and Operating Leases,12/11/2021,3282555,960.00,Revenue,1000204,Lakeside Coaches Ltd
Shropshire,00GG,People - Home to School Transport,Transport-Related Expenditure - Contract Hire and Operating Leases,12/11/2021,3282556,"3,104.00",Revenue,1000204,Lakeside Coaches Ltd
Shropshire,00GG,People - Home to School Transport,Transport-Related Expenditure - Contract Hire and Operating Leases,12/11/2021,3282559,"3,280.00",Revenue,1000204,Lakeside Coaches Ltd
Shropshire,00GG,People - Home to School Transport,Transport-Related Expenditure - Contract Hire and Operating Leases,12/11/2021,3282562,"3,440.00",Revenue,1000204,Lakeside Coaches Ltd
Shropshire,00GG,People - Home to School Transport,Transport-Related Expenditure - Contract Hire and Operating Leases,12/11/2021,3282572,"2,496.00",Revenue,1000204,Lakeside Coaches Ltd
Shropshire,00GG,People - Home to School Transport,Transport-Related Expenditure - Contract Hire and Operating Leases,12/11/2021,3282575,"3,440.00",Revenue,1000204,Lakeside Coaches Ltd
Shropshire,00GG,People - Home to School Transport,Transport-Related Expenditure - Contract Hire and Operating Leases,12/11/2021,3282622,960.00,Revenue,1000204,Lakeside Coaches Ltd
Shropshire,00GG,People - Home to School Transport,Transport-Related Expenditure - Contract Hire and Operating Leases,12/11/2021,3282626,"3,120.00",Revenue,1000204,Lakeside Coaches Ltd
Shropshire,00GG,People - Home to School Transport,Transport-Related Expenditure - Contract Hire and Operating Leases,12/11/2021,3282717,"2,800.00",Revenue,1000215,Ludlows Of Telford
Shropshire,00GG,People - Home to School Transport,Transport-Related Expenditure - Contract Hire and Operating Leases,12/11/2021,3282820,"1,950.00",Revenue,1000215,Ludlows Of Telford
Shropshire,00GG,People - Home to School Transport,Transport-Related Expenditure - Contract Hire and Operating Leases,12/11/2021,3282707,"2,080.00",Revenue,1000218,Minsterley Motors Services Ltd
Shropshire,00GG,People - Home to School Transport,Transport-Related Expenditure - Contract Hire and Operating Leases,12/11/2021,3282708,"3,040.00",Revenue,1000218,Minsterley Motors Services Ltd
Shropshire,00GG,People - Home to School Transport,Transport-Related Expenditure - Contract Hire and Operating Leases,12/11/2021,3282722,"3,245.92",Revenue,1000218,Minsterley Motors Services Ltd
Shropshire,00GG,People - Home to School Transport,Transport-Related Expenditure - Contract Hire and Operating Leases,12/11/2021,3282729,"2,400.00",Revenue,1000218,Minsterley Motors Services Ltd
Shropshire,00GG,People - Home to School Transport,Transport-Related Expenditure - Contract Hire and Operating Leases,12/11/2021,3282730,"2,250.00",Revenue,1000218,Minsterley Motors Services Ltd
Shropshire,00GG,People - Home to School Transport,Transport-Related Expenditure - Contract Hire and Operating Leases,12/11/2021,3282747,"3,040.00",Revenue,1000218,Minsterley Motors Services Ltd
Shropshire,00GG,People - Home to School Transport,Transport-Related Expenditure - Contract Hire and Operating Leases,12/11/2021,3282749,"2,625.00",Revenue,1000218,Minsterley Motors Services Ltd
Shropshire,00GG,People - Home to School Transport,Transport-Related Expenditure - Contract Hire and Operating Leases,12/11/2021,3282752,"3,360.00",Revenue,1000218,Minsterley Motors Services Ltd
Shropshire,00GG,People - Home to School Transport,Transport-Related Expenditure - Contract Hire and Operating Leases,12/11/2021,3282766,"2,592.00",Revenue,1000218,Minsterley Motors Services Ltd
Shropshire,00GG,Children's Services - Home to School Transport,Transport-Related Expenditure - Contract Hire and Operating Leases,12/11/2021,3282242,961.74,Revenue,1000220,Arriva Midlands Ltd
Shropshire,00GG,Children's Services - Home to School Transport,Transport-Related Expenditure - Contract Hire and Operating Leases,12/11/2021,3282248,587.73,Revenue,1000220,Arriva Midlands Ltd
Shropshire,00GG,Children's Services - Home to School Transport,Transport-Related Expenditure - Contract Hire and Operating Leases,12/11/2021,3282250,801.45,Revenue,1000220,Arriva Midlands Ltd
Shropshire,00GG,Children's Services - Home to School Transport,Transport-Related Expenditure - Contract Hire and Operating Leases,12/11/2021,3282265,"1,015.17",Revenue,1000220,Arriva Midlands Ltd
Shropshire,00GG,Place - Highways (Streetworks),Supplies & Services - Services,12/11/2021,3280897,914.76,Revenue,1000228,Midland News Association Ltd
Shropshire,00GG,Place - Highways (Streetworks),Supplies & Services - Services,12/11/2021,3280899,"1,219.68",Revenue,1000228,Midland News Association Ltd
Shropshire,00GG,People - Early Years,Supplies & Services - Services,12/11/2021,3286728,530.11,Revenue,1000237,N Power
Shropshire,00GG,Resources - Democratic Services,Supplies & Services - Expenses,12/11/2021,3286918,30.00,Revenue,1000255,Legal & Democratic Servs Imp 
Shropshire,00GG,Resources - Legal Services,Supplies & Services - Services,12/11/2021,3286918,539.00,Revenue,1000255,Legal & Democratic Servs Imp 
Shropshire,00GG,Resources - Legal Services,Income - Customer and Client Receipts,12/11/2021,3286918,600.00,Revenue,1000255,Legal & Democratic Servs Imp 
Shropshire,00GG,Resources - Legal Services � Child Care,Supplies & Services - Services,12/11/2021,3286918,"13,936.00",Revenue,1000255,Legal & Democratic Servs Imp 
Shropshire,00GG,Resources - Legal Services � Child Care,Supplies & Services - Expenses,12/11/2021,3286918,167.00,Revenue,1000255,Legal & Democratic Servs Imp 
Shropshire,00GG,Place - Property Services Group,Premises-Related Expenditure - Repairs alterations and maintenance of buildings,12/11/2021,11327067,672.70,Revenue,1000322,R M W Electrical Services Ltd
Shropshire,00GG,Place - Corporate Landlord -  Economic Development,Premises-Related Expenditure - Repairs alterations and maintenance of buildings,12/11/2021,11328542,"2,819.92",Revenue,1000322,R M W Electrical Services Ltd
Shropshire,00GG,Place - Corporate Landlord - Children's Services,Premises-Related Expenditure - Repairs alterations and maintenance of buildings,12/11/2021,11328750,"1,323.15",Revenue,1000322,R M W Electrical Services Ltd
Shropshire,00GG,Children's Services - Special Educational Needs & Disability,Third Party Payments - Other Establishments,12/11/2021,3286767,"12,618.00",Revenue,1000470,Corbet School Technology & Language Coll
Shropshire,00GG,Place - Environment and Transport (Public Transport),Supplies & Services - Services,12/11/2021,3286397,"6,505.35",Revenue,1000609,Traveltime & News
Shropshire,00GG,Children's Services - Special Educational Needs & Disability,Third Party Payments - Other Establishments,12/11/2021,3286762,"22,224.00",Revenue,1000655,The Lakelands School
Shropshire,00GG,People - Early Help Family Hubs,Supplies & Services - Communications and Computing,12/11/2021,11330493,136.00,Revenue,1000661,British Telecommunications Plc (One Bill)
Shropshire,00GG,People - Early Help General,Supplies & Services - Communications and Computing,12/11/2021,11330493,76.00,Revenue,1000661,British Telecommunications Plc (One Bill)
Shropshire,00GG,People - Education Improvement Service,Supplies & Services - Communications and Computing,12/11/2021,11330493,135.03,Revenue,1000661,British Telecommunications Plc (One Bill)
Shropshire,00GG,People - Education Welfare Service,Supplies & Services - Communications and Computing,12/11/2021,11330493,19.00,Revenue,1000661,British Telecommunications Plc (One Bill)
Shropshire,00GG,People - Enable,Supplies & Services - Communications and Computing,12/11/2021,11330493,120.00,Revenue,1000661,British Telecommunications Plc (One Bill)
Shropshire,00GG,People - Hospital Interface Social Work Teams,Supplies & Services - Communications and Computing,12/11/2021,11330493,57.00,Revenue,1000661,British Telecommunications Plc (One Bill)
Shropshire,00GG,People - Housing Options,Supplies & Services - Communications and Computing,12/11/2021,11330493,60.00,Revenue,1000661,British Telecommunications Plc (One Bill)
Shropshire,00GG,People - Internal Providers - Day Services,Supplies & Services - Communications and Computing,12/11/2021,11330493,139.00,Revenue,1000661,British Telecommunications Plc (One Bill)
Shropshire,00GG,People - Mental Health Social Work Teams,Supplies & Services - Communications and Computing,12/11/2021,11330493,30.00,Revenue,1000661,British Telecommunications Plc (One Bill)
Shropshire,00GG,People - Placements: Residential Placements,Supplies & Services - Communications and Computing,12/11/2021,11330493,139.00,Revenue,1000661,British Telecommunications Plc (One Bill)
Shropshire,00GG,Place - Bereavement Services,Supplies & Services - Communications and Computing,12/11/2021,11330493,44.00,Revenue,1000661,British Telecommunications Plc (One Bill)
Shropshire,00GG,Place - Corporate Landlord -  Economic Development,Supplies & Services - Communications and Computing,12/11/2021,11330493,19.00,Revenue,1000661,British Telecommunications Plc (One Bill)
Shropshire,00GG,Place - Corporate Landlord -  Highways,Supplies & Services - Communications and Computing,12/11/2021,11330493,44.00,Revenue,1000661,British Telecommunications Plc (One Bill)
Shropshire,00GG,Place - Corporate Landlord - Admin Buildings,Supplies & Services - Communications and Computing,12/11/2021,11330493,60.00,Revenue,1000661,British Telecommunications Plc (One Bill)
Shropshire,00GG,Place - Corporate Landlord - Adult Services,Supplies & Services - Communications and Computing,12/11/2021,11330493,44.00,Revenue,1000661,British Telecommunications Plc (One Bill)
Shropshire,00GG,Place - Corporate Landlord - Leisure,Supplies & Services - Communications and Computing,12/11/2021,11330493,44.00,Revenue,1000661,British Telecommunications Plc (One Bill)
Shropshire,00GG,Place - Corporate Landlord - Mardol House & Tannery,Supplies & Services - Communications and Computing,12/11/2021,11330493,38.00,Revenue,1000661,British Telecommunications Plc (One Bill)
Shropshire,00GG,Place - Corporate Landlord - Youth Centres & Community,Supplies & Services - Communications and Computing,12/11/2021,11330493,218.00,Revenue,1000661,British Telecommunications Plc (One Bill)
Shropshire,00GG,Place - Environment and Transport (Parking),Supplies & Services - Communications and Computing,12/11/2021,11330493,156.00,Revenue,1000661,British Telecommunications Plc (One Bill)
Shropshire,00GG,Place - Highways (Operations),Supplies & Services - Communications and Computing,12/11/2021,11330493,125.00,Revenue,1000661,British Telecommunications Plc (One Bill)
Shropshire,00GG,Place - Leisure,Supplies & Services - Communications and Computing,12/11/2021,11330493,79.00,Revenue,1000661,British Telecommunications Plc (One Bill)
Shropshire,00GG,Place - Libraries,Supplies & Services - Communications and Computing,12/11/2021,11330493,197.00,Revenue,1000661,British Telecommunications Plc (One Bill)
Shropshire,00GG,Place - Museums & Archives,Supplies & Services - Communications and Computing,12/11/2021,11330493,76.00,Revenue,1000661,British Telecommunications Plc (One Bill)
Shropshire,00GG,Place - Outdoor Partnerships,Supplies & Services - Communications and Computing,12/11/2021,11330493,90.00,Revenue,1000661,British Telecommunications Plc (One Bill)
Shropshire,00GG,Place - Property Services Group,Supplies & Services - Communications and Computing,12/11/2021,11330493,19.00,Revenue,1000661,British Telecommunications Plc (One Bill)
Shropshire,00GG,Place - Registrars and Coroners,Supplies & Services - Communications and Computing,12/11/2021,11330493,19.00,Revenue,1000661,British Telecommunications Plc (One Bill)
Shropshire,00GG,Place - Shire Catering,Supplies & Services - Communications and Computing,12/11/2021,11330493,133.00,Revenue,1000661,British Telecommunications Plc (One Bill)
Shropshire,00GG,Place - Theatre Services,Supplies & Services - Communications and Computing,12/11/2021,11330493,136.00,Revenue,1000661,British Telecommunications Plc (One Bill)
Shropshire,00GG,Resources - Communications & Engagement,Supplies & Services - Communications and Computing,12/11/2021,11330493,19.00,Revenue,1000661,British Telecommunications Plc (One Bill)
Shropshire,00GG,Resources - Customer Services,Supplies & Services - Communications and Computing,12/11/2021,11330493,190.00,Revenue,1000661,British Telecommunications Plc (One Bill)
Shropshire,00GG,Resources - Emergency Planning,Supplies & Services - Communications and Computing,12/11/2021,11330493,19.00,Revenue,1000661,British Telecommunications Plc (One Bill)
Shropshire,00GG,Resources - ICT Services,Supplies & Services - Communications and Computing,12/11/2021,11330493,"6,314.65",Revenue,1000661,British Telecommunications Plc (One Bill)
Shropshire,00GG,Resources - Print & Post Services,Supplies & Services - Communications and Computing,12/11/2021,11330493,30.00,Revenue,1000661,British Telecommunications Plc (One Bill)
Shropshire,00GG,People - Home to School Transport,Transport-Related Expenditure - Contract Hire and Operating Leases,12/11/2021,3286286,"2,175.00",Revenue,1000695,K Newport
Shropshire,00GG,People - Home to School Transport,Transport-Related Expenditure - Contract Hire and Operating Leases,12/11/2021,3286292,"2,000.00",Revenue,1000695,K Newport
Shropshire,00GG,People - Home to School Transport,Transport-Related Expenditure - Contract Hire and Operating Leases,12/11/2021,3286300,"2,748.00",Revenue,1000695,K Newport
Shropshire,00GG,People - Disabled Children's Team,Transport-Related Expenditure - Contract Hire and Operating Leases,12/11/2021,3284282,"1,050.00",Revenue,1000733,A J Shakespeare
Shropshire,00GG,Workforce and Transformation - ICT Services,Supplies & Services - Communications and Computing,12/11/2021,3279828,"16,440.00",Revenue,1000753,Stone Computers Ltd
Shropshire,00GG,Resources - ICT Services,Supplies & Services - Communications and Computing,12/11/2021,3280574,"2,840.80",Revenue,1000753,Stone Computers Ltd
Shropshire,00GG,Place - Shire Catering,Supplies & Services - Catering,12/11/2021,3286964,"1,521.80",Revenue,1000769,The Little Food Company Limited
Shropshire,00GG,Place - Shire Catering,Supplies & Services - Catering,12/11/2021,3287079,"1,010.30",Revenue,1000769,The Little Food Company Limited
Shropshire,00GG,Workforce and Transformation - Print & Post Services,Supplies & Services - Communications and Computing,12/11/2021,3286965,"12,000.00",Revenue,1000793,Pitney Bowes Ltd - Postage by Phone
Shropshire,00GG,People - Social Care Hospital Interface Purchasing,Third Party Payments - Private Contractors,12/11/2021,11327388,686.70,Revenue,1000882,Surecare Shropshire Ltd
Shropshire,00GG,People - Social Care Hospital Interface Purchasing,Third Party Payments - Private Contractors,12/11/2021,11327389,583.70,Revenue,1000882,Surecare Shropshire Ltd
Shropshire,00GG,People - Social Care Hospital Interface Purchasing,Third Party Payments - Private Contractors,12/11/2021,11327390,593.51,Revenue,1000882,Surecare Shropshire Ltd
Shropshire,00GG,Children's Services - Children�s Case Management,Supplies & Services - Services,12/11/2021,3280521,727.16,Revenue,1000924,Wace Morgan Solicitors
Shropshire,00GG,Resources - ICT Services,Supplies & Services - Communications and Computing,12/11/2021,3280566,"3,694.74",Revenue,1000933,Xma Ltd
Shropshire,00GG,Resources - ICT Services,Supplies & Services - Communications and Computing,12/11/2021,3280602,"3,694.74",Revenue,1000933,Xma Ltd
Shropshire,00GG,People - Home to School Transport,Transport-Related Expenditure - Contract Hire and Operating Leases,12/11/2021,3282300,640.00,Revenue,1001066,Ultimate Taxis Ltd
Shropshire,00GG,People - Home to School Transport,Transport-Related Expenditure - Contract Hire and Operating Leases,12/11/2021,3282308,"2,080.00",Revenue,1001066,Ultimate Taxis Ltd
Shropshire,00GG,People - Special Educational Needs & Disability,Third Party Payments - Other Establishments,12/11/2021,3282625,"110,352.00",Revenue,1001155,Wolverhampton City Council
Shropshire,00GG,Resources - Human Resources Operations,Employees - Indirect Employee Expenses,12/11/2021,3286022,"13,893.00",Revenue,1001174,Disclosure & Barring Services
Shropshire,00GG,People - Special Educational Needs & Disability,Third Party Payments - Other Agencies,12/11/2021,3280159,"8,783.33",Revenue,1001217,Citizens Advice Shropshire
Shropshire,00GG,Adult Services - Social Care Community Purchasing,Third Party Payments - Private Contractors,12/11/2021,11330500,"3,729.38",Revenue,1001408,Derwen College
Shropshire,00GG,Place - Outdoor Partnerships,Premises-Related Expenditure - Repairs alterations and maintenance of buildings,12/11/2021,3280647,"1,047.00",Revenue,1001529,Hales Sawmills Ltd
Shropshire,00GG,Place - Outdoor Partnerships,Premises-Related Expenditure - Repairs alterations and maintenance of buildings,12/11/2021,3282111,"1,437.50",Revenue,1001529,Hales Sawmills Ltd
Shropshire,00GG,People - Home to School Transport,Transport-Related Expenditure - Contract Hire and Operating Leases,12/11/2021,3282537,928.00,Revenue,1001562,John Richards
Shropshire,00GG,People - Children�s Case Management,Transport-Related Expenditure - Contract Hire and Operating Leases,12/11/2021,3282579,"1,073.00",Revenue,1001562,John Richards
Shropshire,00GG,Health and Wellbeing - Substance Misuse (Ringfenced),Third Party Payments - Health Authorities,12/11/2021,3279794,"2,277.90",Revenue,1001875,Orion Medical Supplies Ltd
Shropshire,00GG,Capital - Housing Services Capital,Non Revenue - Non Revenue,12/11/2021,3281137,"7,727.59",Capital,1001884,A Bate Building Contractor Ltd
Shropshire,00GG,People - Special Educational Needs & Disability,Supplies & Services - Services,12/11/2021,3281234,"1,910.00",Revenue,1001904,The Education Development Service Ltd
Shropshire,00GG,People - Social Care Community Purchasing,Third Party Payments - Private Contractors,12/11/2021,11328729,929.97,Revenue,1002214,Condover College Ltd
Shropshire,00GG,People - Housing Options,Premises-Related Expenditure - Grounds maintenance costs,12/11/2021,3282311,"63,571.20",Revenue,1002235,Taybar Security Limited
Shropshire,00GG,People - Housing Options,Premises-Related Expenditure - Grounds maintenance costs,12/11/2021,3282331,"63,571.20",Revenue,1002235,Taybar Security Limited
Shropshire,00GG,Place - Corporate Landlord - Traveller Sites,Premises-Related Expenditure - Repairs alterations and maintenance of buildings,12/11/2021,11326211,"1,272.00",Revenue,1002235,Taybar Security Limited
Shropshire,00GG,Housing Revenue Account - Supervision & Management,Supplies & Services - Miscellaneous Expenses,12/11/2021,3286140,918.05,Revenue,1002335,Allpay Limited
Shropshire,00GG,Resources - Revenues and Benefits Team,Supplies & Services - Miscellaneous Expenses,12/11/2021,3286145,675.45,Revenue,1002335,Allpay Limited
Shropshire,00GG,Resources - Revenues and Benefits Team,Supplies & Services - Miscellaneous Expenses,12/11/2021,3286151,"2,151.77",Revenue,1002335,Allpay Limited
Shropshire,00GG,People - Learning & Skills Business Support,Supplies & Services - Services,12/11/2021,3286903,"1,105.00",Revenue,1002464,Shrewsbury Town Council
Shropshire,00GG,Place - Theatre Services,Supplies & Services - Catering,12/11/2021,3279653,461.15,Revenue,1002505,W M Addison (Newport) Ltd
Shropshire,00GG,Place - Theatre Services,Supplies & Services - Catering,12/11/2021,3279728,"3,968.84",Revenue,1002559,Matthew Clark Wholesale Ltd
Shropshire,00GG,People - Special Educational Needs & Disability,Supplies & Services - Services,12/11/2021,3280654,"13,630.00",Revenue,1002739,Bettws Lifehouse Ltd
Shropshire,00GG,People - Care Management - Transport,Transport-Related Expenditure - Contract Hire and Operating Leases,12/11/2021,3286657,800.00,Revenue,1002881,B Khan
Shropshire,00GG,Place - Environment and Transport (Public Transport),Transport-Related Expenditure - Contract Hire and Operating Leases,12/11/2021,3284925,"1,002.10",Revenue,1002991,Lex Autolease Ltd
Shropshire,00GG,Place - Environment and Transport (Public Transport),Transport-Related Expenditure - Contract Hire and Operating Leases,12/11/2021,3284947,"1,647.12",Revenue,1002991,Lex Autolease Ltd
Shropshire,00GG,Workforce and Transformation - ICT Services,Supplies & Services - Communications and Computing,12/11/2021,3279423,"3,325.00",Revenue,1003024,Caci Limited
Shropshire,00GG,Place - Environment and Transport (Public Transport),Transport-Related Expenditure - Contract Hire and Operating Leases,12/11/2021,3283996,840.00,Revenue,1003158,Car Hire (Day Of Swansea) Ltd
Shropshire,00GG,People - Home to School Transport,Transport-Related Expenditure - Contract Hire and Operating Leases,12/11/2021,3283820,"3,380.00",Revenue,1003261,Richard Price
Shropshire,00GG,People - Home to School Transport,Transport-Related Expenditure - Contract Hire and Operating Leases,12/11/2021,3284513,"1,312.00",Revenue,1003301,Bishops Castle Taxi
Shropshire,00GG,People - Home to School Transport,Transport-Related Expenditure - Contract Hire and Operating Leases,12/11/2021,3282318,"2,325.00",Revenue,1003303,M & S Coaches Of Herefordshire Limited
Shropshire,00GG,People - Home to School Transport,Transport-Related Expenditure - Contract Hire and Operating Leases,12/11/2021,3286395,"1,065.00",Revenue,1003330,Paul Weston
Shropshire,00GG,People - Home to School Transport,Transport-Related Expenditure - Contract Hire and Operating Leases,12/11/2021,3283276,"1,150.00",Revenue,1003373,Carl Oliver
Shropshire,00GG,Place - Corporate Landlord - Children's Services,Premises-Related Expenditure - Rents,12/11/2021,3285227,"2,065.00",Revenue,1003483,Shropshire Community Health Nhs Trust
Shropshire,00GG,Children's Services - Special Educational Needs & Disability,Third Party Payments - Other Establishments,12/11/2021,3286822,"2,578.00",Revenue,1003515,The Marches School
Shropshire,00GG,Children's Services - Special Educational Needs & Disability,Third Party Payments - Other Establishments,12/11/2021,3286834,"10,246.00",Revenue,1003515,The Marches School
Shropshire,00GG,Children's Services - Special Educational Needs & Disability,Third Party Payments - Other Establishments,12/11/2021,3286872,"1,000.00",Revenue,1003515,The Marches School
Shropshire,00GG,Workforce and Transformation - ICT Services,Supplies & Services - Communications and Computing,12/11/2021,3279673,"6,453.00",Revenue,1003536,Loadbalancer.Org Ltd
Shropshire,00GG,Place - Property & Development,Premises-Related Expenditure - Repairs alterations and maintenance of buildings,12/11/2021,11328552,460.75,Revenue,1003602,HSL Compliance Limited
Shropshire,00GG,Children's Services - Shropshire Music Service,Supplies & Services - Grants and Subscriptions,12/11/2021,3279975,"1,190.00",Revenue,1003674,Sing Up
Shropshire,00GG,People - Home to School Transport,Transport-Related Expenditure - Contract Hire and Operating Leases,12/11/2021,3283055,"3,225.00",Revenue,1003741,Swains Coaches
Shropshire,00GG,Workforce and Transformation - Welfare & Reform,Transfer Payments - Housing Benefits,12/11/2021,3279681,906.74,Revenue,1003898,Connexus Homes Limited
Shropshire,00GG,Resources - Welfare & Reform,Transfer Payments - Housing Benefits,12/11/2021,3280308,"1,847.67",Revenue,1003898,Connexus Homes Limited
Shropshire,00GG,Children's Services - Special Educational Needs & Disability,Third Party Payments - Other Establishments,12/11/2021,3286783,"1,829.00",Revenue,1004004,Bridgnorth Endowed School
Shropshire,00GG,Adult Services - Public Health General Management,Third Party Payments - Health Authorities,12/11/2021,3285581,"4,150.00",Revenue,1004027,Shropshire Doctors Co-Op Ltd
Shropshire,00GG,Children's Services - Special Educational Needs & Disability,Third Party Payments - Other Establishments,12/11/2021,3286698,"7,544.00",Revenue,1004073,Woodside Primary School
Shropshire,00GG,Resources - Finance,Non Revenue - Non Revenue,12/11/2021,3285431,"2,207.70",Revenue,1004162,Shropshire Towns & Rural Housing Ltd
Shropshire,00GG,Children's Services - Special Educational Needs & Disability,Third Party Payments - Other Establishments,12/11/2021,3286854,"11,303.00",Revenue,1004277,The Priory School
Shropshire,00GG,Children's Services - Home to School Transport,Transport-Related Expenditure - Contract Hire and Operating Leases,12/11/2021,3280271,"1,937.50",Revenue,1004382,ABC Cars Group Ltd T/A ABC Cars
Shropshire,00GG,Children's Services - Special Educational Needs & Disability,Third Party Payments - Other Establishments,12/11/2021,3286800,"6,829.00",Revenue,1004516,Idsall School
Shropshire,00GG,Children's Services - Special Educational Needs & Disability,Third Party Payments - Other Establishments,12/11/2021,3286723,"17,831.00",Revenue,1004555,Sir John Talbots
Shropshire,00GG,Adult Services - Social Care Community Purchasing,Third Party Payments - Private Contractors,12/11/2021,11330501,697.84,Revenue,1004562,Bradbury Care Centre
Shropshire,00GG,Adult Services - Social Care Community Purchasing,Third Party Payments - Private Contractors,12/11/2021,11330503,536.80,Revenue,1004562,Bradbury Care Centre
Shropshire,00GG,Children's Services - Special Educational Needs & Disability,Third Party Payments - Other Establishments,12/11/2021,3286704,"25,546.00",Revenue,1004607,Lacon Childe School
Shropshire,00GG,Children's Services - Special Educational Needs & Disability,Third Party Payments - Other Establishments,12/11/2021,3286811,"1,000.00",Revenue,1004656,Stokesay Primary School
Shropshire,00GG,Children's Services - Home to School Transport,Transport-Related Expenditure - Contract Hire and Operating Leases,12/11/2021,3282551,"1,400.00",Revenue,1004724,Swan Cabs Limited
Shropshire,00GG,Children's Services - Special Educational Needs & Disability,Third Party Payments - Other Establishments,12/11/2021,3286725,"4,631.00",Revenue,1004737,Longlands Primary School
Shropshire,00GG,People - Home to School Transport,Transport-Related Expenditure - Contract Hire and Operating Leases,12/11/2021,3284109,"2,512.00",Revenue,1004760,Alexanders Of Wem Taxis
Shropshire,00GG,People - Home to School Transport,Transport-Related Expenditure - Contract Hire and Operating Leases,12/11/2021,3284112,560.00,Revenue,1004760,Alexanders Of Wem Taxis
Shropshire,00GG,Children's Services - Special Educational Needs & Disability,Third Party Payments - Other Establishments,12/11/2021,3286763,"7,079.00",Revenue,1004837,The 3-18 Education Trust T/A William Brookes School
Shropshire,00GG,Place - Theatre Services,Third Party Payments - Private Contractors,12/11/2021,3286777,"9,978.78",Revenue,1004886,Mick Perrin Worldwide Ltd
Shropshire,00GG,People - Enable,Supplies & Services - Equipment Furniture and Materials,12/11/2021,3280679,"1,140.00",Revenue,1004929,Complete Business Solutions Group Ltd - Wakefield
Shropshire,00GG,Children's Services - Special Educational Needs & Disability,Third Party Payments - Other Establishments,12/11/2021,3286860,"7,500.00",Revenue,1004946,Oldbury Wells School
Shropshire,00GG,Children's Services - Special Educational Needs & Disability,Third Party Payments - Other Establishments,12/11/2021,3286804,583.00,Revenue,1004947,Bitterley C Of E Primary School
Shropshire,00GG,Children's Services - Special Educational Needs & Disability,Third Party Payments - Other Establishments,12/11/2021,3286761,"2,752.00",Revenue,1005016,Shropshire Gateway Educational Trust (Stottesdon)
Shropshire,00GG,Adult Services - Adult Social Care Management,Employees - Direct Employee Expenses,12/11/2021,3285792,"4,761.90",Revenue,1005052,Hampton'S Resourcing
Shropshire,00GG,People - Children�s Case Management,Supplies & Services - Services,12/11/2021,3283178,500.00,Revenue,1005189,Lextox
Shropshire,00GG,People - Children�s Case Management,Supplies & Services - Services,12/11/2021,3283202,420.00,Revenue,1005189,Lextox
Shropshire,00GG,Children's Services - Children�s Case Management,Supplies & Services - Services,12/11/2021,3286571,"1,140.00",Revenue,1005189,Lextox
Shropshire,00GG,Children's Services - Children�s Case Management,Supplies & Services - Services,12/11/2021,3286586,"1,140.00",Revenue,1005189,Lextox
Shropshire,00GG,Adult Services - Internal Providers - Nursing Services,Employees - Direct Employee Expenses,12/11/2021,3281287,680.93,Revenue,1005210,Dean Healthcare South West Ltd
Shropshire,00GG,Legal and Democratic Services - Legal Services � Child Care,Employees - Direct Employee Expenses,12/11/2021,3280763,796.50,Revenue,1005215,The Oyster Partnership Ltd
Shropshire,00GG,Legal and Democratic Services - Legal Services � Child Care,Employees - Direct Employee Expenses,12/11/2021,3280820,"1,628.00",Revenue,1005215,The Oyster Partnership Ltd
Shropshire,00GG,Legal and Democratic Services - Legal Services � Child Care,Employees - Direct Employee Expenses,12/11/2021,3280826,"2,524.20",Revenue,1005215,The Oyster Partnership Ltd
Shropshire,00GG,Children's Services - Special Educational Needs & Disability,Third Party Payments - Other Establishments,12/11/2021,3286743,"5,292.00",Revenue,1005310,Whitchurch CE Junior Academy
Shropshire,00GG,Children's Services - Special Educational Needs & Disability,Third Party Payments - Other Establishments,12/11/2021,3286813,"4,500.00",Revenue,1005461,St Martins School
Shropshire,00GG,People - Social Care Hospital Interface Purchasing,Third Party Payments - Private Contractors,12/11/2021,11327387,686.70,Revenue,1005547,Cm Bespoke Care
Shropshire,00GG,Children's Services - Special Educational Needs & Disability,Third Party Payments - Other Establishments,12/11/2021,3286827,"2,800.00",Revenue,1005584,Shrewsbury Academy Marches MAT
Shropshire,00GG,Children's Services - Special Educational Needs & Disability,Third Party Payments - Other Establishments,12/11/2021,3286748,542.00,Revenue,1005591,TrustEd Schools
Shropshire,00GG,People - Housing Options,Supplies & Services - Equipment Furniture and Materials,12/11/2021,3281957,993.33,Revenue,1005605,Old Park Services Ltd - Reviive
Shropshire,00GG,People - Housing Options,Supplies & Services - Equipment Furniture and Materials,12/11/2021,3281970,451.67,Revenue,1005605,Old Park Services Ltd - Reviive
Shropshire,00GG,Children's Services - Special Educational Needs & Disability,Third Party Payments - Other Establishments,12/11/2021,3286824,"2,127.00",Revenue,1005628,Ludlow Primary School
Shropshire,00GG,People - Learning & Skills Business Support,Supplies & Services - Services,12/11/2021,3280529,694.00,Revenue,1005812,The Crossbar Foundation
Shropshire,00GG,Adult Services - Regulatory Services,Supplies & Services - Grants and Subscriptions,12/11/2021,3286731,975.00,Revenue,1005872,Safe Apps Limited
Shropshire,00GG,Children's Services - Special Educational Needs & Disability,Third Party Payments - Other Establishments,12/11/2021,3286826,"1,209.00",Revenue,1005913,Radbrook Primary School
Shropshire,00GG,Children's Services - Special Educational Needs & Disability,Third Party Payments - Other Establishments,12/11/2021,3286841,"6,416.00",Revenue,1005917,Ludlow C E School
Shropshire,00GG,Children's Services - Special Educational Needs & Disability,Third Party Payments - Other Establishments,12/11/2021,3286793,"1,416.00",Revenue,1005918,Burford Academy
Shropshire,00GG,Children's Services - Special Educational Needs & Disability,Third Party Payments - Other Establishments,12/11/2021,3286703,"3,249.00",Revenue,1005920,Sbmat Ta Greenfields School
Shropshire,00GG,Resources - ICT Services,Supplies & Services - Communications and Computing,12/11/2021,3283721,"20,465.05",Revenue,1005963,Maintel Europe Limited
Shropshire,00GG,Children's Services - Special Educational Needs & Disability,Third Party Payments - Other Establishments,12/11/2021,3286870,"2,372.00",Revenue,1005998,Severn Bridges Multi Academy Trust
Shropshire,00GG,People - Home to School Transport,Transport-Related Expenditure - Contract Hire and Operating Leases,12/11/2021,3282428,"2,765.92",Revenue,1006187,Caradoc Coaches Ltd
Shropshire,00GG,People - Home to School Transport,Transport-Related Expenditure - Contract Hire and Operating Leases,12/11/2021,3282431,"3,000.00",Revenue,1006187,Caradoc Coaches Ltd
Shropshire,00GG,People - Home to School Transport,Transport-Related Expenditure - Contract Hire and Operating Leases,12/11/2021,3282433,"2,700.00",Revenue,1006187,Caradoc Coaches Ltd
Shropshire,00GG,People - Home to School Transport,Transport-Related Expenditure - Contract Hire and Operating Leases,12/11/2021,3282434,"2,175.00",Revenue,1006187,Caradoc Coaches Ltd
Shropshire,00GG,People - Home to School Transport,Transport-Related Expenditure - Contract Hire and Operating Leases,12/11/2021,3282436,"2,960.00",Revenue,1006187,Caradoc Coaches Ltd
Shropshire,00GG,People - Home to School Transport,Transport-Related Expenditure - Contract Hire and Operating Leases,12/11/2021,3282445,"2,175.00",Revenue,1006187,Caradoc Coaches Ltd
Shropshire,00GG,People - Home to School Transport,Transport-Related Expenditure - Contract Hire and Operating Leases,12/11/2021,3282447,"1,425.00",Revenue,1006187,Caradoc Coaches Ltd
Shropshire,00GG,People - Home to School Transport,Transport-Related Expenditure - Contract Hire and Operating Leases,12/11/2021,3282453,"3,750.00",Revenue,1006187,Caradoc Coaches Ltd
Shropshire,00GG,People - Home to School Transport,Transport-Related Expenditure - Contract Hire and Operating Leases,12/11/2021,3282454,"2,925.00",Revenue,1006187,Caradoc Coaches Ltd
Shropshire,00GG,People - Home to School Transport,Transport-Related Expenditure - Contract Hire and Operating Leases,12/11/2021,3282460,"2,320.00",Revenue,1006187,Caradoc Coaches Ltd
Shropshire,00GG,People - Home to School Transport,Transport-Related Expenditure - Contract Hire and Operating Leases,12/11/2021,3282469,"1,472.00",Revenue,1006187,Caradoc Coaches Ltd
Shropshire,00GG,People - Home to School Transport,Transport-Related Expenditure - Contract Hire and Operating Leases,12/11/2021,3282474,"2,775.00",Revenue,1006187,Caradoc Coaches Ltd
Shropshire,00GG,People - Home to School Transport,Transport-Related Expenditure - Contract Hire and Operating Leases,12/11/2021,3282477,"2,100.00",Revenue,1006187,Caradoc Coaches Ltd
Shropshire,00GG,Workforce and Transformation - Organisational Development,Supplies & Services - Services,12/11/2021,3279844,"8,400.00",Revenue,1006467,Ascensio Limited
Shropshire,00GG,Resources - Legal Services � Child Care,Supplies & Services - Services,12/11/2021,3280902,650.00,Revenue,1007468,Grace Wright
Shropshire,00GG,Adult Services - External Providers,Third Party Payments - Private Contractors,12/11/2021,3286892,750.00,Revenue,1008276,Nineveh Ridge Care Farm
Shropshire,00GG,People - Special Educational Needs & Disability,Third Party Payments - Other Establishments,12/11/2021,3286789,853.27,Revenue,1008343,Jennifer Lace Childcare (Shropshire) Ltd T/A The Little Green House Childcare Bridgnorth
Shropshire,00GG,People - Special Educational Needs & Disability,Third Party Payments - Other Establishments,12/11/2021,3286625,540.00,Revenue,1008399,Daisy Chain At Mytton Oak
Shropshire,00GG,People - Special Educational Needs & Disability,Third Party Payments - Other Establishments,12/11/2021,3286798,800.00,Revenue,1008463,Katies Kids Limited
Shropshire,00GG,People - Special Educational Needs & Disability,Third Party Payments - Other Establishments,12/11/2021,3286744,"1,725.00",Revenue,1008479,Childrensworld Cressage
Shropshire,00GG,Children's Services - Special Educational Needs & Disability,Third Party Payments - Other Establishments,12/11/2021,3286765,"5,668.00",Revenue,1008509,Ellesmere Primary School
Shropshire,00GG,Children's Services - Special Educational Needs & Disability,Third Party Payments - Other Establishments,12/11/2021,3286806,"1,800.00",Revenue,1008900,The Grange Primary School
Shropshire,00GG,Children's Services - Special Educational Needs & Disability,Third Party Payments - Other Establishments,12/11/2021,3286736,"1,166.00",Revenue,1009071,Buildwas Academy
Shropshire,00GG,Children's Services - Special Educational Needs & Disability,Third Party Payments - Other Establishments,12/11/2021,3286750,"3,210.00",Revenue,1009184,Holy Trinity Ce Primary Academy
Shropshire,00GG,Children's Services - Special Educational Needs & Disability,Third Party Payments - Other Establishments,12/11/2021,3286819,"4,334.00",Revenue,1009228,Coleham Primary School
Shropshire,00GG,Place - Corporate Landlord - Adult Services,Premises-Related Expenditure - Repairs alterations and maintenance of buildings,12/11/2021,11330434,"2,910.32",Revenue,1009380,MEB Total Limited
Shropshire,00GG,Place - Property Services Group,Premises-Related Expenditure - Repairs alterations and maintenance of buildings,12/11/2021,11330436,473.75,Revenue,1009380,MEB Total Limited
Shropshire,00GG,People - Home to School Transport,Transport-Related Expenditure - Contract Hire and Operating Leases,12/11/2021,3282612,541.00,Revenue,1009401,Shrewsbury Airport Taxis Limited
Shropshire,00GG,Children's Services - Special Educational Needs & Disability,Third Party Payments - Other Establishments,12/11/2021,3286812,668.00,Revenue,1009708,Bast T/A Castlefields Primary
Shropshire,00GG,Resources - Legal Services � Child Care,Supplies & Services - Services,12/11/2021,3283684,850.00,Revenue,1009781,Helen Arthur
Shropshire,00GG,Children's Services - Special Educational Needs & Disability,Third Party Payments - Other Establishments,12/11/2021,3286808,"1,250.00",Revenue,1009916,Condover Ce Primary School
Shropshire,00GG,Children's Services - Special Educational Needs & Disability,Third Party Payments - Other Establishments,12/11/2021,3286716,"3,001.00",Revenue,1009951,Commercial redaction
Shropshire,00GG,Children's Services - Special Educational Needs & Disability,Third Party Payments - Other Establishments,12/11/2021,3286749,916.00,Revenue,1009956,Shropshire Gateway Educational Trust (Clee Hill)
Shropshire,00GG,Children's Services - Special Educational Needs & Disability,Third Party Payments - Other Establishments,12/11/2021,3286705,"1,792.00",Revenue,1010099,Tilstock Primary School
Shropshire,00GG,Children's Services - Special Educational Needs & Disability,Third Party Payments - Other Establishments,12/11/2021,3286724,"1,333.00",Revenue,1010405,Fields Multi Academy Trust - Whixall CE Primary School and Nursery
Shropshire,00GG,Children's Services - Special Educational Needs & Disability,Third Party Payments - Other Establishments,12/11/2021,3286746,667.00,Revenue,1010463,Bishops Castle Primary School
Shropshire,00GG,Children's Services - Special Educational Needs & Disability,Third Party Payments - Other Establishments,12/11/2021,3286821,"1,806.00",Revenue,1010725,Empower Trust
Shropshire,00GG,Children's Services - Special Educational Needs & Disability,Third Party Payments - Other Establishments,12/11/2021,3286780,"3,082.00",Revenue,1010726,Empower Trust
Shropshire,00GG,Children's Services - Special Educational Needs & Disability,Third Party Payments - Other Establishments,12/11/2021,3286701,"3,623.00",Revenue,1010727,Empower Trust
Shropshire,00GG,Children's Services - Special Educational Needs & Disability,Third Party Payments - Other Establishments,12/11/2021,3286773,"3,618.00",Revenue,1010728,Empower Trust
Shropshire,00GG,Children's Services - Special Educational Needs & Disability,Third Party Payments - Other Establishments,12/11/2021,3286694,"1,350.00",Revenue,1010729,Empower Trust
Shropshire,00GG,Children's Services - Special Educational Needs & Disability,Third Party Payments - Other Establishments,12/11/2021,3286828,"2,697.00",Revenue,1010730,Empower Trust
Shropshire,00GG,Children's Services - Special Educational Needs & Disability,Third Party Payments - Other Establishments,12/11/2021,3286741,"6,098.00",Revenue,1011665,The Marches School
Shropshire,00GG,Children's Services - Special Educational Needs & Disability,Third Party Payments - Other Establishments,12/11/2021,3286696,"8,663.00",Revenue,1011679,Csat T/As Belvidere School
Shropshire,00GG,Children's Services - Special Educational Needs & Disability,Third Party Payments - Other Establishments,12/11/2021,3286851,"6,078.00",Revenue,1011680,Csat T/As Meole Brace School
Shropshire,00GG,Children's Services - Special Educational Needs & Disability,Third Party Payments - Other Establishments,12/11/2021,3286874,"3,962.00",Revenue,1011681,Csat T/As Mary Webb School
Shropshire,00GG,Children's Services - Special Educational Needs & Disability,Third Party Payments - Other Establishments,12/11/2021,3281291,"1,166.68",Revenue,1011857,Brine Leas School
Shropshire,00GG,Children's Services - Special Educational Needs & Disability,Third Party Payments - Other Establishments,12/11/2021,3286867,"5,856.00",Revenue,1012711,Mereside CoE Primary Academy
Shropshire,00GG,Resources - Legal Services � Child Care,Supplies & Services - Services,12/11/2021,3283713,850.00,Revenue,1012986,Sarah Morgan
Shropshire,00GG,Children's Services - Special Educational Needs & Disability,Third Party Payments - Other Establishments,12/11/2021,3286719,"2,000.00",Revenue,1013052,Empower Trust
Shropshire,00GG,People - Projects,Supplies & Services - Services,12/11/2021,3280604,"6,400.00",Revenue,1013067,Steve Corton
Shropshire,00GG,People - Projects,Supplies & Services - Services,12/11/2021,3280229,"17,887.50",Revenue,1013169,Impact Change Solutions Ltd
Shropshire,00GG,Children's Services - Shropshire Music Service,Supplies & Services - Equipment Furniture and Materials,12/11/2021,3279326,"2,148.34",Revenue,1013774,Frederick Hyde Ltd T/A Chamberlain Music
Shropshire,00GG,Children's Services - Special Educational Needs & Disability,Third Party Payments - Other Establishments,12/11/2021,3286791,"2,583.00",Revenue,1014011,Bast T/A St Leonards Primary School
Shropshire,00GG,Children's Services - Special Educational Needs & Disability,Third Party Payments - Other Establishments,12/11/2021,3286720,"2,997.00",Revenue,1014030,Empower Trust
Shropshire,00GG,Adult Services - Social Care Community Purchasing,Transfer Payments - Adult Social Services Clients,12/11/2021,11330504,"21,436.80",Revenue,1014654,Rialto Care & Support Ltd
Shropshire,00GG,Adult Services - Social Care Community Purchasing,Transfer Payments - Adult Social Services Clients,12/11/2021,11330505,"24,116.40",Revenue,1014654,Rialto Care & Support Ltd
Shropshire,00GG,Adult Services - Social Care Community Purchasing,Transfer Payments - Adult Social Services Clients,12/11/2021,11330506,"21,436.80",Revenue,1014654,Rialto Care & Support Ltd
Shropshire,00GG,Adult Services - Social Care Community Purchasing,Transfer Payments - Adult Social Services Clients,12/11/2021,11330507,"21,436.80",Revenue,1014654,Rialto Care & Support Ltd
Shropshire,00GG,Adult Services - Social Care Community Purchasing,Transfer Payments - Adult Social Services Clients,12/11/2021,11330508,"21,436.80",Revenue,1014654,Rialto Care & Support Ltd
Shropshire,00GG,Adult Services - Social Care Community Purchasing,Transfer Payments - Adult Social Services Clients,12/11/2021,11330509,"19,152.00",Revenue,1014654,Rialto Care & Support Ltd
Shropshire,00GG,Adult Services - Social Care Community Purchasing,Transfer Payments - Adult Social Services Clients,12/11/2021,11330510,"10,718.40",Revenue,1014654,Rialto Care & Support Ltd
Shropshire,00GG,Children's Services - Special Educational Needs & Disability,Third Party Payments - Other Establishments,12/11/2021,3286817,"1,333.00",Revenue,1014710,Whitchurch Ce Infant And Nursery Academy
Shropshire,00GG,Legal and Democratic Services - Legal Services,Supplies & Services - Services,12/11/2021,3287053,650.00,Revenue,1015524,Avril Rushe
Shropshire,00GG,Children's Services - Special Educational Needs & Disability,Third Party Payments - Other Establishments,12/11/2021,3286709,"5,124.00",Revenue,1015598,Thomas Adams School
Shropshire,00GG,People - Home to School Transport,Transport-Related Expenditure - Contract Hire and Operating Leases,15/11/2021,3283838,"1,175.46",Revenue,1000220,Arriva Midlands Ltd
Shropshire,00GG,People - Home to School Transport,Transport-Related Expenditure - Contract Hire and Operating Leases,15/11/2021,3283882,"2,024.88",Revenue,1000220,Arriva Midlands Ltd
Shropshire,00GG,Children's Services - Special Educational Needs & Disability,Third Party Payments - Other Establishments,15/11/2021,3287480,"121,383.02",Revenue,1000401,Telford & Wrekin Council
Shropshire,00GG,Place - Corporate Landlord - Youth Centres & Community,Premises-Related Expenditure - Grounds maintenance costs,15/11/2021,3286373,500.00,Revenue,1000415,Bridgnorth Town Council
Shropshire,00GG,Adult Services - Housing Options,Supplies & Services - Services,15/11/2021,3287137,"1,352.00",Revenue,1000498,Glyn Upton Removals
Shropshire,00GG,Place - Shire Catering,Supplies & Services - Catering,15/11/2021,3287152,"1,779.40",Revenue,1000769,The Little Food Company Limited
Shropshire,00GG,Place - Shire Catering,Supplies & Services - Catering,15/11/2021,3287171,"1,078.42",Revenue,1000769,The Little Food Company Limited
Shropshire,00GG,Resources - Commissioning Development & Procurement,Supplies & Services - PFI and PPP Schemes,15/11/2021,3286600,"296,867.39",Revenue,1001513,Integrated Care Solutions (Shropshire)Lt
Shropshire,00GG,Place - Corporate Landlord - Smallholdings,Supplies & Services - Services,15/11/2021,3287194,"2,400.00",Revenue,1001800,Carter Jonas
Shropshire,00GG,Children's Services - Special Educational Needs & Disability,Third Party Payments - Other Establishments,15/11/2021,3287282,"5,850.00",Revenue,1002575,Crossbar Coaching
Shropshire,00GG,Place - Theatre Services,Third Party Payments - Private Contractors,15/11/2021,3285957,"4,668.89",Revenue,1002656,Universal Pictures International Uk
Shropshire,00GG,Adult Services - Care Management - Transport,Transport-Related Expenditure - Public Transport,15/11/2021,3273185,112.40,Revenue,1002727,Rsp Rail Travel Account
Shropshire,00GG,Children's Services - Disabled Children's Team,Transport-Related Expenditure - Public Transport,15/11/2021,3273185,217.60,Revenue,1002727,Rsp Rail Travel Account
Shropshire,00GG,Children's Services - Placements: Foster Care,Transport-Related Expenditure - Public Transport,15/11/2021,3273185,953.60,Revenue,1002727,Rsp Rail Travel Account
Shropshire,00GG,People - Home to School Transport,Transport-Related Expenditure - Contract Hire and Operating Leases,15/11/2021,3285506,900.00,Revenue,1003569,A .T .R . SHROPSHIRE LIMITED
Shropshire,00GG,People - Home to School Transport,Transport-Related Expenditure - Contract Hire and Operating Leases,15/11/2021,3285523,"1,200.00",Revenue,1003569,A .T .R . SHROPSHIRE LIMITED
Shropshire,00GG,People - Home to School Transport,Transport-Related Expenditure - Contract Hire and Operating Leases,15/11/2021,3285551,"2,700.00",Revenue,1003569,A .T .R . SHROPSHIRE LIMITED
Shropshire,00GG,People - Home to School Transport,Transport-Related Expenditure - Contract Hire and Operating Leases,15/11/2021,3285635,"2,520.00",Revenue,1003569,A .T .R . SHROPSHIRE LIMITED
Shropshire,00GG,People - Home to School Transport,Transport-Related Expenditure - Contract Hire and Operating Leases,15/11/2021,3285669,"1,800.00",Revenue,1003569,A .T .R . SHROPSHIRE LIMITED
Shropshire,00GG,People - Home to School Transport,Transport-Related Expenditure - Contract Hire and Operating Leases,15/11/2021,3285702,"3,300.00",Revenue,1003569,A .T .R . SHROPSHIRE LIMITED
Shropshire,00GG,People - Home to School Transport,Transport-Related Expenditure - Contract Hire and Operating Leases,15/11/2021,3285732,"2,520.00",Revenue,1003569,A .T .R . SHROPSHIRE LIMITED
Shropshire,00GG,People - Looked After Children (LAC) Service,Transport-Related Expenditure - Contract Hire and Operating Leases,15/11/2021,3286700,"1,200.00",Revenue,1003569,A .T .R . SHROPSHIRE LIMITED
Shropshire,00GG,People - Home to School Transport,Transport-Related Expenditure - Contract Hire and Operating Leases,15/11/2021,3286737,"6,560.00",Revenue,1003569,A .T .R . SHROPSHIRE LIMITED
Shropshire,00GG,People - Home to School Transport,Transport-Related Expenditure - Contract Hire and Operating Leases,15/11/2021,3286755,"6,720.00",Revenue,1003569,A .T .R . SHROPSHIRE LIMITED
Shropshire,00GG,People - Home to School Transport,Transport-Related Expenditure - Contract Hire and Operating Leases,15/11/2021,3286858,"6,570.00",Revenue,1003569,A .T .R . SHROPSHIRE LIMITED
Shropshire,00GG,People - Home to School Transport,Transport-Related Expenditure - Contract Hire and Operating Leases,15/11/2021,3284850,"1,920.00",Revenue,1004705,Bendys Cab (Baschurch)
Shropshire,00GG,People - Home to School Transport,Transport-Related Expenditure - Contract Hire and Operating Leases,15/11/2021,3283462,"1,280.00",Revenue,1004872,Anthony'S Private Hire
Shropshire,00GG,People - Home to School Transport,Transport-Related Expenditure - Contract Hire and Operating Leases,15/11/2021,3283470,"1,552.00",Revenue,1004872,Anthony'S Private Hire
Shropshire,00GG,People - Home to School Transport,Transport-Related Expenditure - Contract Hire and Operating Leases,15/11/2021,3283637,"1,200.00",Revenue,1004872,Anthony'S Private Hire
Shropshire,00GG,Children's Services - Compass & Assesment,Supplies & Services - Services,15/11/2021,3287113,"1,063.60",Revenue,1004998,K International Ltd
Shropshire,00GG,"Finance, Governance & Assurance - Assistant Director of Finance, Governance and Assurance",Supplies & Services - Communications and Computing,15/11/2021,3286774,"382,433.98",Revenue,1006149,Methods Business And Digital Technology
Shropshire,00GG,People - Early Years,Third Party Payments - Other Establishments,15/11/2021,3287323,"1,950.00",Revenue,1008446,Burford Preschool C.I.C.
Shropshire,00GG,Children's Services - Early Years,Third Party Payments - Other Establishments,15/11/2021,3287087,984.75,Revenue,1008463,Katies Kids Limited
Shropshire,00GG,Capital - Social Care Operations Capital,Non Revenue - Non Revenue,15/11/2021,3286248,"1,000.36",Capital,1008556,J Rogers & Sons
Shropshire,00GG,Place - Corporate Landlord - Youth Centres & Community,Premises-Related Expenditure - Repairs alterations and maintenance of buildings,15/11/2021,3286747,"1,143.50",Revenue,1008556,J Rogers & Sons
Shropshire,00GG,Capital - Social Care Operations Capital,Non Revenue - Non Revenue,15/11/2021,3285871,489.31,Capital,1008560,M W D Services
Shropshire,00GG,Capital - Housing Services Capital,Non Revenue - Non Revenue,15/11/2021,3287121,"2,140.00",Capital,1008669,Shire Stairlifts Ltd
Shropshire,00GG,Capital - Housing Services Capital,Non Revenue - Non Revenue,15/11/2021,3287304,"6,434.00",Capital,1009278,Candor Care Limited
Shropshire,00GG,Place - Corporate Landlord -  Economic Development,Premises-Related Expenditure - Energy Costs,15/11/2021,3284419,"1,117.20",Revenue,1010378,Engie Power Limited
Shropshire,00GG,Place - Shrewsbury Shopping Centres (Commercial),Premises-Related Expenditure - Premises Insurance,15/11/2021,3239894,"-9,871.18",Revenue,1010953,Aon Uk Ltd
Shropshire,00GG,Place - Shrewsbury Shopping Centres (Development),Premises-Related Expenditure - Premises Insurance,15/11/2021,3239894,"-8,274.35",Revenue,1010953,Aon Uk Ltd
Shropshire,00GG,Place - Shrewsbury Shopping Centres (Commercial),Premises-Related Expenditure - Premises Insurance,15/11/2021,3239914,"-1,433.17",Revenue,1010953,Aon Uk Ltd
Shropshire,00GG,Place - Shrewsbury Shopping Centres (Development),Premises-Related Expenditure - Premises Insurance,15/11/2021,3239914,"-1,201.33",Revenue,1010953,Aon Uk Ltd
Shropshire,00GG,Place - Shrewsbury Shopping Centres (Commercial),Premises-Related Expenditure - Premises Insurance,15/11/2021,3240622,"1,286.84",Revenue,1010953,Aon Uk Ltd
Shropshire,00GG,Place - Shrewsbury Shopping Centres (Development),Premises-Related Expenditure - Premises Insurance,15/11/2021,3240622,"1,078.67",Revenue,1010953,Aon Uk Ltd
Shropshire,00GG,Place - Shrewsbury Shopping Centres (Commercial),Premises-Related Expenditure - Premises Insurance,15/11/2021,3240809,"8,863.30",Revenue,1010953,Aon Uk Ltd
Shropshire,00GG,Place - Shrewsbury Shopping Centres (Development),Premises-Related Expenditure - Premises Insurance,15/11/2021,3240809,"7,429.52",Revenue,1010953,Aon Uk Ltd
Shropshire,00GG,Resources - Risk Management and Insurance,Non Revenue - Non Revenue,15/11/2021,3286584,"8,340.64",Revenue,1010953,Aon Uk Ltd
Shropshire,00GG,Legal and Democratic Services - Legal Services � Child Care,Supplies & Services - Services,15/11/2021,3287229,"1,400.00",Revenue,1011007,Kirsty Gallacher
Shropshire,00GG,People - Housing Options,Supplies & Services - Services,15/11/2021,3287126,"2,090.00",Revenue,1012682,Little Pub Company (Oswestry) Ltd  TA Railway Inn
Shropshire,00GG,Children's Services - Early Years,Third Party Payments - Other Establishments,15/11/2021,3287024,580.25,Revenue,1016772,Oakmeadow Primary School (c/o Marches MAT)
Shropshire,00GG,People - Internal Providers - Day Services,Supplies & Services - Equipment Furniture and Materials,16/11/2021,3287493,423.96,Revenue,1000260,Victoria Centre Ac 
Shropshire,00GG,People - Internal Providers - Day Services,Premises-Related Expenditure - Energy Costs,16/11/2021,3286949,67.76,Revenue,1000540,Greenacres Rural Unit Impr Ac 
Shropshire,00GG,People - Internal Providers - Day Services,Premises-Related Expenditure - Cleaning and domestic supplies,16/11/2021,3286949,11.98,Revenue,1000540,Greenacres Rural Unit Impr Ac 
Shropshire,00GG,People - Internal Providers - Day Services,Supplies & Services - Equipment Furniture and Materials,16/11/2021,3286949,"2,995.18",Revenue,1000540,Greenacres Rural Unit Impr Ac 
Shropshire,00GG,People - Internal Providers - Day Services,Supplies & Services - Printing Stationery and General Office Expenses,16/11/2021,3286949,189.26,Revenue,1000540,Greenacres Rural Unit Impr Ac 
Shropshire,00GG,Place - Shire Catering,Supplies & Services - Catering,16/11/2021,3287405,"1,174.50",Revenue,1000769,The Little Food Company Limited
Shropshire,00GG,Place - Shire Catering,Supplies & Services - Catering,16/11/2021,3287521,"1,625.62",Revenue,1000769,The Little Food Company Limited
Shropshire,00GG,Place - Shire Catering,Supplies & Services - Catering,16/11/2021,3287543,"1,002.10",Revenue,1000769,The Little Food Company Limited
Shropshire,00GG,Place - Shire Catering,Supplies & Services - Catering,16/11/2021,3287602,"2,122.18",Revenue,1000769,The Little Food Company Limited
Shropshire,00GG,People - External Providers,Third Party Payments - Private Contractors,16/11/2021,3287834,"51,058.33",Revenue,1001217,Citizens Advice Shropshire
Shropshire,00GG,Adult Services - Social Care Community Purchasing,Third Party Payments - Private Contractors,16/11/2021,11330809,"2,317.16",Revenue,1001360,Adelphi Care Services Limited
Shropshire,00GG,Adult Services - Social Care Community Purchasing,Third Party Payments - Private Contractors,16/11/2021,11330810,"2,412.72",Revenue,1001408,Derwen College
Shropshire,00GG,Place - Outdoor Partnerships,Supplies & Services - Services,16/11/2021,3287663,716.00,Revenue,1001812,Forestart Ltd
Shropshire,00GG,People - Home to School Transport,Transport-Related Expenditure - Contract Hire and Operating Leases,16/11/2021,3284474,"1,000.00",Revenue,1001830,Roddy Doran
Shropshire,00GG,People - Home to School Transport,Transport-Related Expenditure - Contract Hire and Operating Leases,16/11/2021,3284485,"1,035.00",Revenue,1001830,Roddy Doran
Shropshire,00GG,Place - Theatre Services,Third Party Payments - Private Contractors,16/11/2021,3287765,"2,745.70",Revenue,1002951,Avalon Management Group Ltd
Shropshire,00GG,Place - Environment and Transport (Public Transport),Transport-Related Expenditure - Contract Hire and Operating Leases,16/11/2021,3287148,"1,002.10",Revenue,1002991,Lex Autolease Ltd
Shropshire,00GG,Resources - Print & Post Services,Supplies & Services - Communications and Computing,16/11/2021,3285052,"3,675.47",Revenue,1003729,Whistl North Limited
Shropshire,00GG,People - Social Care Community Purchasing,Third Party Payments - Private Contractors,16/11/2021,11330811,"6,097.60",Revenue,1003828,Quarriers Village
Shropshire,00GG,Children's Services - Special Educational Needs & Disability,Third Party Payments - Other Establishments,16/11/2021,3286844,"235,392.00",Revenue,1004318,Severndale Specialist Academy
Shropshire,00GG,Place - Theatre Services,Third Party Payments - Private Contractors,16/11/2021,3287683,"5,299.53",Revenue,1004663,Live Nation (Music) Uk Ltd
Shropshire,00GG,People - Home to School Transport,Transport-Related Expenditure - Contract Hire and Operating Leases,16/11/2021,3283570,"1,920.00",Revenue,1004752,001 Travel
Shropshire,00GG,Capital - Housing Services Capital,Non Revenue - Non Revenue,16/11/2021,3287701,"20,903.30",Capital,1004765,M W Knight & Sons Ltd
Shropshire,00GG,Place - Highways (Operations),Third Party Payments - Private Contractors,16/11/2021,3277574,"7,970.00",Revenue,1005007,Winter Service Solutions Ltd
Shropshire,00GG,Place - Outdoor Partnerships,Supplies & Services - Services,16/11/2021,3281760,920.00,Revenue,1005404,Barbara Haddrill
Shropshire,00GG,Place - Environment and Transport (Public Transport),Transport-Related Expenditure - Direct Transport Costs,16/11/2021,3282261,"6,303.65",Revenue,1006053,Uk Fuels Limited
Shropshire,00GG,Resources - Welfare & Reform,Transfer Payments - Housing Benefits,16/11/2021,3287511,802.86,Revenue,1009315,Shropshire Council Housing Rents
Shropshire,00GG,People - External Providers,Third Party Payments - Private Contractors,16/11/2021,3286943,750.00,Revenue,1009524,Broseley Life Skills
Shropshire,00GG,People - Non-Delegated Primary DSG,Premises-Related Expenditure - Repairs alterations and maintenance of buildings,16/11/2021,11328495,605.28,Revenue,1009945,John Capper
Shropshire,00GG,Capital - Unallocated School Capital,Non Revenue - Non Revenue,16/11/2021,3281380,"182,070.49",Capital,1010310,Read Construction Holdings Limited
Shropshire,00GG,Children's Services - Looked After Children (LAC) Service,Employees - Direct Employee Expenses,16/11/2021,3287350,855.00,Revenue,1010609,Red Sector Recruitment Ltd
Shropshire,00GG,Children's Services - Looked After Children (LAC) Service,Employees - Direct Employee Expenses,16/11/2021,3287367,646.00,Revenue,1010609,Red Sector Recruitment Ltd
Shropshire,00GG,Adult Services - Social Care Hospital Interface Purchasing,Third Party Payments - Private Contractors,16/11/2021,11330808,875.00,Revenue,1011147,Forever Loving Care
Shropshire,00GG,Place - Planning Services,Employees - Direct Employee Expenses,16/11/2021,3284633,"1,546.55",Revenue,1013010,Michael Davies - MPD Built Environment Consultants Limited
Shropshire,00GG,People - Special Educational Needs & Disability,Third Party Payments - Other Establishments,16/11/2021,3280655,"1,860.00",Revenue,1014202,J Lucas-Garner T/A Reach for Inclusion
Shropshire,00GG,People - Special Educational Needs & Disability,Third Party Payments - Other Establishments,16/11/2021,3280753,"1,040.00",Revenue,1014202,J Lucas-Garner T/A Reach for Inclusion
Shropshire,00GG,People - Special Educational Needs & Disability,Third Party Payments - Other Establishments,16/11/2021,3280758,935.00,Revenue,1014202,J Lucas-Garner T/A Reach for Inclusion
Shropshire,00GG,People - Special Educational Needs & Disability,Third Party Payments - Other Establishments,16/11/2021,3281335,850.00,Revenue,1014202,J Lucas-Garner T/A Reach for Inclusion
Shropshire,00GG,Workforce and Transformation - ICT Services,Supplies & Services - Communications and Computing,16/11/2021,3287625,"13,531.00",Revenue,1014784,Ee Limited
Shropshire,00GG,Workforce and Transformation - ICT Services,Supplies & Services - Communications and Computing,16/11/2021,3287626,"22,880.00",Revenue,1014784,Ee Limited
Shropshire,00GG,Resources - ICT Services,Supplies & Services - Communications and Computing,16/11/2021,3287636,"21,018.00",Revenue,1014784,Ee Limited
Shropshire,00GG,Workforce and Transformation - ICT Services,Supplies & Services - Communications and Computing,16/11/2021,3287660,"4,420.00",Revenue,1014784,Ee Limited
Shropshire,00GG,Workforce and Transformation - ICT Services,Supplies & Services - Communications and Computing,16/11/2021,3287662,"44,200.00",Revenue,1014784,Ee Limited
Shropshire,00GG,Place - Corporate Landlord - Museums & Culture,Premises-Related Expenditure - Repairs alterations and maintenance of buildings,17/11/2021,11328544,621.16,Revenue,1000322,R M W Electrical Services Ltd
Shropshire,00GG,Place - Corporate Landlord - Museums & Culture,Premises-Related Expenditure - Repairs alterations and maintenance of buildings,17/11/2021,11328751,864.64,Revenue,1000322,R M W Electrical Services Ltd
Shropshire,00GG,Capital - Primary School Capital,Non Revenue - Non Revenue,17/11/2021,3283823,"248,652.91",Capital,1000579,Pave Aways Ltd
Shropshire,00GG,Place - Corporate Landlord -  Economic Development,Premises-Related Expenditure - Rents,17/11/2021,3288005,"1,938.00",Revenue,1000795,Bishops Castle & District Lifeline Co Ltd (Enterprise House)
Shropshire,00GG,Children's Services - Placements: Placement Staffing,Transport-Related Expenditure - Contract Hire and Operating Leases,17/11/2021,3288067,505.95,Revenue,1000920,Pritchards Vehicle Sales & Rental Ltd
Shropshire,00GG,Resources - Human Resources Operations,Supplies & Services - Communications and Computing,17/11/2021,3281955,"1,200.00",Revenue,1000930,Zellis Uk Limited
Shropshire,00GG,People - Enable,Supplies & Services - Expenses,17/11/2021,3283771,"1,333.34",Revenue,1001132,Wroxeter Hotel
Shropshire,00GG,Place - Corporate Landlord - Mardol House & Tannery,Premises-Related Expenditure - Cleaning and domestic supplies,17/11/2021,3287930,"1,220.00",Revenue,1001137,Windows Need Cleaning
Shropshire,00GG,Capital - Social Care Operations Capital,Non Revenue - Non Revenue,17/11/2021,3282243,595.00,Capital,1001274,Derek Griffiths Decorating Contr Ltd
Shropshire,00GG,Place - Leisure,Supplies & Services - Clothes Uniforms and Laundry,17/11/2021,3281704,431.60,Revenue,1001453,Rlss Uk Enterprises Ltd
Shropshire,00GG,Place - Shire Catering,Supplies & Services - Catering,17/11/2021,11330893,623.50,Revenue,1001530,Bidfood
Shropshire,00GG,Place - Shire Catering,Supplies & Services - Catering,17/11/2021,11330894,"1,003.11",Revenue,1001530,Bidfood
Shropshire,00GG,Place - Shire Catering,Supplies & Services - Catering,17/11/2021,11330895,616.29,Revenue,1001530,Bidfood
Shropshire,00GG,Place - Shire Catering,Supplies & Services - Catering,17/11/2021,11330898,621.81,Revenue,1001530,Bidfood
Shropshire,00GG,Place - Shire Catering,Supplies & Services - Catering,17/11/2021,11330901,556.37,Revenue,1001530,Bidfood
Shropshire,00GG,Place - Shire Catering,Supplies & Services - Catering,17/11/2021,11330902,596.39,Revenue,1001530,Bidfood
Shropshire,00GG,Place - Shire Catering,Supplies & Services - Catering,17/11/2021,11330904,564.17,Revenue,1001530,Bidfood
Shropshire,00GG,Place - Shire Catering,Supplies & Services - Catering,17/11/2021,11330906,553.67,Revenue,1001530,Bidfood
Shropshire,00GG,Place - Shire Catering,Supplies & Services - Catering,17/11/2021,11330909,804.65,Revenue,1001530,Bidfood
Shropshire,00GG,Place - Shire Catering,Supplies & Services - Catering,17/11/2021,11330910,542.00,Revenue,1001530,Bidfood
Shropshire,00GG,Place - Shire Catering,Supplies & Services - Catering,17/11/2021,11330917,605.87,Revenue,1001530,Bidfood
Shropshire,00GG,Place - Shire Catering,Supplies & Services - Catering,17/11/2021,11330919,580.69,Revenue,1001530,Bidfood
Shropshire,00GG,Place - Shire Catering,Supplies & Services - Catering,17/11/2021,11330921,720.62,Revenue,1001530,Bidfood
Shropshire,00GG,Place - Shire Catering,Supplies & Services - Catering,17/11/2021,11330922,619.47,Revenue,1001530,Bidfood
Shropshire,00GG,Place - Shire Catering,Supplies & Services - Catering,17/11/2021,11330925,538.19,Revenue,1001530,Bidfood
Shropshire,00GG,Place - Shire Catering,Supplies & Services - Catering,17/11/2021,11330930,801.62,Revenue,1001530,Bidfood
Shropshire,00GG,Place - Shire Catering,Supplies & Services - Catering,17/11/2021,11330934,803.20,Revenue,1001530,Bidfood
Shropshire,00GG,Place - Shire Catering,Supplies & Services - Catering,17/11/2021,11330938,664.83,Revenue,1001530,Bidfood
Shropshire,00GG,Place - Shire Catering,Supplies & Services - Catering,17/11/2021,11330941,"1,030.33",Revenue,1001530,Bidfood
Shropshire,00GG,Place - Shire Catering,Supplies & Services - Catering,17/11/2021,11330946,580.62,Revenue,1001530,Bidfood
Shropshire,00GG,Place - Shire Catering,Supplies & Services - Catering,17/11/2021,11330952,"1,116.96",Revenue,1001530,Bidfood
Shropshire,00GG,Place - Shire Catering,Supplies & Services - Catering,17/11/2021,11330955,682.71,Revenue,1001530,Bidfood
Shropshire,00GG,Place - Shire Catering,Supplies & Services - Catering,17/11/2021,11330962,560.31,Revenue,1001530,Bidfood
Shropshire,00GG,Place - Shire Catering,Supplies & Services - Catering,17/11/2021,11330965,"1,155.07",Revenue,1001530,Bidfood
Shropshire,00GG,Place - Shire Catering,Supplies & Services - Catering,17/11/2021,11330973,945.09,Revenue,1001530,Bidfood
Shropshire,00GG,Place - Shire Catering,Supplies & Services - Catering,17/11/2021,11330974,942.25,Revenue,1001530,Bidfood
Shropshire,00GG,Place - Shire Catering,Supplies & Services - Catering,17/11/2021,11330979,549.30,Revenue,1001530,Bidfood
Shropshire,00GG,Place - Shire Catering,Supplies & Services - Catering,17/11/2021,11330982,576.41,Revenue,1001530,Bidfood
Shropshire,00GG,Place - Shire Catering,Supplies & Services - Catering,17/11/2021,11330986,670.25,Revenue,1001530,Bidfood
Shropshire,00GG,Place - Shire Catering,Supplies & Services - Catering,17/11/2021,11330987,536.66,Revenue,1001530,Bidfood
Shropshire,00GG,Place - Shire Catering,Supplies & Services - Catering,17/11/2021,11330991,633.38,Revenue,1001530,Bidfood
Shropshire,00GG,Place - Shire Catering,Supplies & Services - Catering,17/11/2021,11330992,655.17,Revenue,1001530,Bidfood
Shropshire,00GG,Place - Shire Catering,Supplies & Services - Catering,17/11/2021,11330993,713.56,Revenue,1001530,Bidfood
Shropshire,00GG,Place - Shire Catering,Supplies & Services - Catering,17/11/2021,11331001,608.24,Revenue,1001530,Bidfood
Shropshire,00GG,Place - Shire Catering,Supplies & Services - Catering,17/11/2021,11331005,582.70,Revenue,1001530,Bidfood
Shropshire,00GG,Place - Shire Catering,Supplies & Services - Catering,17/11/2021,11331007,646.33,Revenue,1001530,Bidfood
Shropshire,00GG,Place - Shire Catering,Supplies & Services - Catering,17/11/2021,11331012,581.42,Revenue,1001530,Bidfood
Shropshire,00GG,Place - Shire Catering,Supplies & Services - Catering,17/11/2021,11331016,"1,159.73",Revenue,1001530,Bidfood
Shropshire,00GG,Place - Shire Catering,Supplies & Services - Catering,17/11/2021,11331022,546.57,Revenue,1001530,Bidfood
Shropshire,00GG,Place - Shire Catering,Supplies & Services - Catering,17/11/2021,11331023,676.03,Revenue,1001530,Bidfood
Shropshire,00GG,Place - Shire Catering,Supplies & Services - Catering,17/11/2021,11331024,618.52,Revenue,1001530,Bidfood
Shropshire,00GG,Place - Shire Catering,Supplies & Services - Catering,17/11/2021,11331027,"1,058.32",Revenue,1001530,Bidfood
Shropshire,00GG,Place - Shire Catering,Supplies & Services - Catering,17/11/2021,11331028,595.52,Revenue,1001530,Bidfood
Shropshire,00GG,Place - Shire Catering,Supplies & Services - Catering,17/11/2021,11331035,600.28,Revenue,1001530,Bidfood
Shropshire,00GG,Place - Shire Catering,Supplies & Services - Catering,17/11/2021,11331038,495.22,Revenue,1001530,Bidfood
Shropshire,00GG,Place - Shire Catering,Supplies & Services - Catering,17/11/2021,11331039,706.18,Revenue,1001530,Bidfood
Shropshire,00GG,Place - Shire Catering,Supplies & Services - Catering,17/11/2021,11331046,630.91,Revenue,1001530,Bidfood
Shropshire,00GG,Place - Shire Catering,Supplies & Services - Catering,17/11/2021,11331048,616.56,Revenue,1001530,Bidfood
Shropshire,00GG,Place - Shire Catering,Supplies & Services - Catering,17/11/2021,11331049,777.60,Revenue,1001530,Bidfood
Shropshire,00GG,Place - Shire Catering,Supplies & Services - Catering,17/11/2021,11331052,594.59,Revenue,1001530,Bidfood
Shropshire,00GG,Place - Shire Catering,Supplies & Services - Catering,17/11/2021,11331055,"1,002.99",Revenue,1001530,Bidfood
Shropshire,00GG,Place - Shire Catering,Supplies & Services - Catering,17/11/2021,11331059,"1,129.54",Revenue,1001530,Bidfood
Shropshire,00GG,Place - Shire Catering,Supplies & Services - Catering,17/11/2021,11331060,"1,819.87",Revenue,1001530,Bidfood
Shropshire,00GG,Place - Shire Catering,Supplies & Services - Catering,17/11/2021,11331062,666.77,Revenue,1001530,Bidfood
Shropshire,00GG,Place - Shire Catering,Supplies & Services - Catering,17/11/2021,11331063,665.19,Revenue,1001530,Bidfood
Shropshire,00GG,Place - Shire Catering,Supplies & Services - Catering,17/11/2021,11331064,695.17,Revenue,1001530,Bidfood
Shropshire,00GG,Place - Shire Catering,Supplies & Services - Catering,17/11/2021,11331067,622.24,Revenue,1001530,Bidfood
Shropshire,00GG,Place - Shire Catering,Supplies & Services - Catering,17/11/2021,11331072,521.29,Revenue,1001530,Bidfood
Shropshire,00GG,Place - Shire Catering,Supplies & Services - Catering,17/11/2021,11331073,655.38,Revenue,1001530,Bidfood
Shropshire,00GG,Place - Shire Catering,Supplies & Services - Catering,17/11/2021,11331074,752.33,Revenue,1001530,Bidfood
Shropshire,00GG,Place - Shire Catering,Supplies & Services - Catering,17/11/2021,11331078,505.47,Revenue,1001530,Bidfood
Shropshire,00GG,Place - Shire Catering,Supplies & Services - Catering,17/11/2021,11331082,558.96,Revenue,1001530,Bidfood
Shropshire,00GG,Place - Shire Catering,Supplies & Services - Catering,17/11/2021,11331084,826.87,Revenue,1001530,Bidfood
Shropshire,00GG,Place - Shire Catering,Supplies & Services - Catering,17/11/2021,11331086,822.27,Revenue,1001530,Bidfood
Shropshire,00GG,Place - Shire Catering,Supplies & Services - Catering,17/11/2021,11331094,744.29,Revenue,1001530,Bidfood
Shropshire,00GG,Place - Shire Catering,Supplies & Services - Catering,17/11/2021,11331096,850.89,Revenue,1001530,Bidfood
Shropshire,00GG,Place - Shire Catering,Supplies & Services - Catering,17/11/2021,11331097,521.25,Revenue,1001530,Bidfood
Shropshire,00GG,Place - Shire Catering,Supplies & Services - Catering,17/11/2021,11331105,"1,250.01",Revenue,1001530,Bidfood
Shropshire,00GG,People - Internal Providers - Nursing Services,Premises-Related Expenditure - Cleaning and domestic supplies,17/11/2021,3281077,71.28,Revenue,1001937,Gompels Healthcare Ltd
Shropshire,00GG,People - Internal Providers - Nursing Services,Supplies & Services - Equipment Furniture and Materials,17/11/2021,3281077,"1,041.76",Revenue,1001937,Gompels Healthcare Ltd
Shropshire,00GG,People - Internal Providers - Nursing Services,Supplies & Services - Clothes Uniforms and Laundry,17/11/2021,3281077,290.28,Revenue,1001937,Gompels Healthcare Ltd
Shropshire,00GG,People - Housing Options,Supplies & Services - Services,17/11/2021,3287832,"2,030.00",Revenue,1002000,The Raven Hotel
Shropshire,00GG,People - Compass & Assesment,Supplies & Services - Services,17/11/2021,3286070,432.00,Revenue,1002029,Stay Safe Service Imprest 
Shropshire,00GG,People - Compass & Assesment,Supplies & Services - Communications and Computing,17/11/2021,3286070,302.26,Revenue,1002029,Stay Safe Service Imprest 
Shropshire,00GG,People - Compass & Assesment,Supplies & Services - Expenses,17/11/2021,3286070,256.68,Revenue,1002029,Stay Safe Service Imprest 
Shropshire,00GG,People - Compass & Assesment,Income - Government Grants,17/11/2021,3286070,8.00,Revenue,1002029,Stay Safe Service Imprest 
Shropshire,00GG,People - Disabled Children's Team,Supplies & Services - Expenses,17/11/2021,3286070,110.00,Revenue,1002029,Stay Safe Service Imprest 
Shropshire,00GG,People - Disabled Children's Team,Third Party Payments - Other Establishments,17/11/2021,3286070,13.50,Revenue,1002029,Stay Safe Service Imprest 
Shropshire,00GG,Adult Services - Supported Living Properties,Premises-Related Expenditure - Rents,17/11/2021,3287403,"1,981.14",Revenue,1002315,First Choice Housing Association Ltd
Shropshire,00GG,Adult Services - Supported Living Properties,Premises-Related Expenditure - Rents,17/11/2021,3287418,"1,981.14",Revenue,1002315,First Choice Housing Association Ltd
Shropshire,00GG,Adult Services - Supported Living Properties,Premises-Related Expenditure - Rents,17/11/2021,3287556,"1,981.14",Revenue,1002315,First Choice Housing Association Ltd
Shropshire,00GG,Adult Services - Supported Living Properties,Premises-Related Expenditure - Rents,17/11/2021,3287851,"1,727.52",Revenue,1002315,First Choice Housing Association Ltd
Shropshire,00GG,Place - Leisure,Third Party Payments - Private Contractors,17/11/2021,3287874,"3,188.00",Revenue,1002644,Nigel Bramall
Shropshire,00GG,Place - Leisure,Supplies & Services - Equipment Furniture and Materials,17/11/2021,3282286,604.00,Revenue,1002756,Leisureteq
Shropshire,00GG,Place - Trading Standards & Licensing,Supplies & Services - Services,17/11/2021,3288040,"5,000.00",Revenue,1002817,Tec
Shropshire,00GG,Place - Highways (Operations),Third Party Payments - Private Contractors,17/11/2021,3287940,"4,783.56",Revenue,1003454,Western Power Distribution
Shropshire,00GG,Place - Corporate Landlord - Adult Services,Premises-Related Expenditure - Rents,17/11/2021,3287973,"1,930.00",Revenue,1003789,Terry Smith Rental
Shropshire,00GG,Place - Corporate Landlord - Adult Services,Premises-Related Expenditure - Rents,17/11/2021,3288002,"2,314.98",Revenue,1003789,Terry Smith Rental
Shropshire,00GG,People - Housing Options,Supplies & Services - Services,17/11/2021,3287821,"2,069.97",Revenue,1003898,Connexus Homes Limited
Shropshire,00GG,People - Housing Options,Supplies & Services - Services,17/11/2021,3287828,"1,587.92",Revenue,1003898,Connexus Homes Limited
Shropshire,00GG,People - Housing Options,Supplies & Services - Services,17/11/2021,3287831,"1,049.16",Revenue,1003898,Connexus Homes Limited
Shropshire,00GG,Resources - Commissioning Development & Procurement,Employees - Direct Employee Expenses,17/11/2021,3287907,"295,150.38",Revenue,1004129,Matrix Scm Ltd
Shropshire,00GG,Resources - Commissioning Development & Procurement,Employees - Direct Employee Expenses,17/11/2021,3287932,"329,015.06",Revenue,1004129,Matrix Scm Ltd
Shropshire,00GG,Capital - HRA Dwellings Capital,Non Revenue - Non Revenue,17/11/2021,3287757,"50,933.26",Capital,1004162,Shropshire Towns & Rural Housing Ltd
Shropshire,00GG,Place - Libraries,Supplies & Services - Equipment Furniture and Materials,17/11/2021,3281480,912.52,Revenue,1004304,Bibliotheca Ltd
Shropshire,00GG,Adult Services - Care Management - Social Work Teams,Third Party Payments - Private Contractors,17/11/2021,3287919,"1,153.83",Revenue,1004568,Shropshire RCC
Shropshire,00GG,Adult Services - Care Management - Social Work Teams,Third Party Payments - Private Contractors,17/11/2021,3287938,"1,230.89",Revenue,1004568,Shropshire RCC
Shropshire,00GG,Place - Corporate Landlord - Adult Services,Premises-Related Expenditure - Repairs alterations and maintenance of buildings,17/11/2021,11328770,"1,321.20",Revenue,1004588,Graham Flooring & Cladding Ltd
Shropshire,00GG,Capital - Housing Services Capital,Non Revenue - Non Revenue,17/11/2021,3287822,"29,209.42",Capital,1004765,M W Knight & Sons Ltd
Shropshire,00GG,Children's Services - Children�s Case Management,Third Party Payments - Private Contractors,17/11/2021,3285660,422.50,Revenue,1004773,Alpha Biolaboratories Legal Limited
Shropshire,00GG,People - Home to School Transport,Transport-Related Expenditure - Contract Hire and Operating Leases,17/11/2021,3283768,"1,042.50",Revenue,1004966,Terrance Davies T/A Mr T'S Taxis
Shropshire,00GG,Place - Highways (Operations),Third Party Payments - Private Contractors,17/11/2021,3280953,"3,550.00",Revenue,1005007,Winter Service Solutions Ltd
Shropshire,00GG,Children's Services - Children�s Case Management,Supplies & Services - Services,17/11/2021,3287941,"1,055.00",Revenue,1005189,Lextox
Shropshire,00GG,Resources - Legal Services � Child Care,Employees - Direct Employee Expenses,17/11/2021,3283650,"1,453.19",Revenue,1006330,Sellick Partnership Limited
Shropshire,00GG,Resources - Legal Services � Child Care,Employees - Direct Employee Expenses,17/11/2021,3283652,"1,284.72",Revenue,1006330,Sellick Partnership Limited
Shropshire,00GG,Resources - Legal Services � Child Care,Employees - Direct Employee Expenses,17/11/2021,3283671,"1,373.40",Revenue,1006330,Sellick Partnership Limited
Shropshire,00GG,Resources - Legal Services � Child Care,Employees - Direct Employee Expenses,17/11/2021,3283700,"1,372.49",Revenue,1006330,Sellick Partnership Limited
Shropshire,00GG,People - Placements: Residential Placements,Employees - Direct Employee Expenses,17/11/2021,3286820,446.26,Revenue,1006553,Randstad Public Services Ltd
Shropshire,00GG,Place - Corporate Landlord - Traveller Sites,Premises-Related Expenditure - Repairs alterations and maintenance of buildings,17/11/2021,11330840,669.24,Revenue,1008559,Mant Ltd
Shropshire,00GG,Place - Corporate Landlord - Traveller Sites,Premises-Related Expenditure - Repairs alterations and maintenance of buildings,17/11/2021,11330842,612.48,Revenue,1008559,Mant Ltd
Shropshire,00GG,Place - Property Services Group,Premises-Related Expenditure - Repairs alterations and maintenance of buildings,17/11/2021,11330844,499.45,Revenue,1008559,Mant Ltd
Shropshire,00GG,Place - Outdoor Partnerships,Premises-Related Expenditure - Repairs alterations and maintenance of buildings,17/11/2021,3281085,"2,769.26",Revenue,1009771,Hahn Plastics Ltd
Shropshire,00GG,Place - Outdoor Partnerships,Premises-Related Expenditure - Repairs alterations and maintenance of buildings,17/11/2021,3281096,"9,060.68",Revenue,1009771,Hahn Plastics Ltd
Shropshire,00GG,Place - Corporate Landlord -  Economic Development,Premises-Related Expenditure - Grounds maintenance costs,17/11/2021,3287974,"1,219.00",Revenue,1011242,Jg Enforcement Limited
Shropshire,00GG,People - Children�s Case Management,Employees - Direct Employee Expenses,17/11/2021,3281342,"1,620.23",Revenue,1013053,Frontline Staffing Ltd
Shropshire,00GG,People - Children�s Case Management,Employees - Direct Employee Expenses,17/11/2021,3281356,"1,620.23",Revenue,1013053,Frontline Staffing Ltd
Shropshire,00GG,Place - Theatre Services,Third Party Payments - Private Contractors,17/11/2021,3288145,"2,283.96",Revenue,1013228,Three Inch Fools
Shropshire,00GG,Place - Theatre Services,Supplies & Services - Equipment Furniture and Materials,17/11/2021,3283465,885.00,Revenue,1013325,ESP Security Solutions Limited
Shropshire,00GG,Place - Environment and Transport (Public Transport),Transport-Related Expenditure - Contract Hire and Operating Leases,17/11/2021,3284680,"2,432.53",Revenue,1013739,Absolute Personnel
Shropshire,00GG,Capital - Unallocated School Capital,Non Revenue - Non Revenue,17/11/2021,11330826,"9,000.00",Capital,1015596,Metrics Property Consultants Limited
Shropshire,00GG,Capital - Special Schools Capital,Non Revenue - Non Revenue,18/11/2021,3282472,"17,000.00",Capital,1000128,R G Edwards & Co Ltd
Shropshire,00GG,People - Social Care Community Purchasing,Third Party Payments - Private Contractors,18/11/2021,11331145,117.72,Revenue,1000163,Have A Care
Shropshire,00GG,People - Social Care Community Purchasing,Transfer Payments - Adult Social Services Clients,18/11/2021,11331145,"39,075.68",Revenue,1000163,Have A Care
Shropshire,00GG,People - Social Care Hospital Interface Purchasing,Transfer Payments - Adult Social Services Clients,18/11/2021,11331145,721.04,Revenue,1000163,Have A Care
Shropshire,00GG,People - Social Care Mental Health Purchasing,Transfer Payments - Adult Social Services Clients,18/11/2021,11331145,"3,692.75",Revenue,1000163,Have A Care
Shropshire,00GG,Children's Services - Looked After Children (LAC) Service,Premises-Related Expenditure - Rents,18/11/2021,3288650,"1,150.00",Revenue,1000225,Meeting Point Trust Ltd
Shropshire,00GG,Place - Planning Services,Supplies & Services - Services,18/11/2021,3285687,887.04,Revenue,1000228,Midland News Association Ltd
Shropshire,00GG,People - Home to School Transport,Transport-Related Expenditure - Contract Hire and Operating Leases,18/11/2021,3288531,"1,650.00",Revenue,1000274,R D & G I Owen Ltd
Shropshire,00GG,People - Home to School Transport,Transport-Related Expenditure - Contract Hire and Operating Leases,18/11/2021,3288532,"1,120.00",Revenue,1000274,R D & G I Owen Ltd
Shropshire,00GG,People - Home to School Transport,Transport-Related Expenditure - Contract Hire and Operating Leases,18/11/2021,3288535,"2,175.00",Revenue,1000274,R D & G I Owen Ltd
Shropshire,00GG,People - Home to School Transport,Transport-Related Expenditure - Contract Hire and Operating Leases,18/11/2021,3288540,"2,015.40",Revenue,1000274,R D & G I Owen Ltd
Shropshire,00GG,People - Home to School Transport,Transport-Related Expenditure - Contract Hire and Operating Leases,18/11/2021,3288544,"1,020.00",Revenue,1000274,R D & G I Owen Ltd
Shropshire,00GG,People - Home to School Transport,Transport-Related Expenditure - Contract Hire and Operating Leases,18/11/2021,3288562,"1,520.00",Revenue,1000274,R D & G I Owen Ltd
Shropshire,00GG,People - Home to School Transport,Transport-Related Expenditure - Contract Hire and Operating Leases,18/11/2021,3288567,"2,248.50",Revenue,1000274,R D & G I Owen Ltd
Shropshire,00GG,People - Home to School Transport,Transport-Related Expenditure - Contract Hire and Operating Leases,18/11/2021,3288569,"2,205.00",Revenue,1000274,R D & G I Owen Ltd
Shropshire,00GG,Place - Libraries,Supplies & Services - Equipment Furniture and Materials,18/11/2021,3281569,"1,937.52",Revenue,1000290,Peters Ltd
Shropshire,00GG,Place - Corporate Landlord -  Highways,Premises-Related Expenditure - Repairs alterations and maintenance of buildings,18/11/2021,3283822,"19,002.41",Revenue,1000296,Keith Phillips & Sons Ltd
Shropshire,00GG,Place - Corporate Landlord - Libraries,Premises-Related Expenditure - Repairs alterations and maintenance of buildings,18/11/2021,11327410,439.34,Revenue,1000296,Keith Phillips & Sons Ltd
Shropshire,00GG,Capital - Social Care Operations Capital,Non Revenue - Non Revenue,18/11/2021,11328499,"1,095.25",Capital,1000296,Keith Phillips & Sons Ltd
Shropshire,00GG,Place - Corporate Landlord - Libraries,Premises-Related Expenditure - Repairs alterations and maintenance of buildings,18/11/2021,11328500,588.20,Revenue,1000296,Keith Phillips & Sons Ltd
Shropshire,00GG,Place - Property Services Group,Premises-Related Expenditure - Repairs alterations and maintenance of buildings,18/11/2021,11328780,"3,204.40",Revenue,1000296,Keith Phillips & Sons Ltd
Shropshire,00GG,Place - Corporate Landlord - Admin Buildings,Premises-Related Expenditure - Repairs alterations and maintenance of buildings,18/11/2021,11328593,"1,168.56",Revenue,1000324,David Rogers Electrical Contractors Ltd
Shropshire,00GG,Place - Property Services Group,Premises-Related Expenditure - Repairs alterations and maintenance of buildings,18/11/2021,11329678,"1,758.19",Revenue,1000324,David Rogers Electrical Contractors Ltd
Shropshire,00GG,People - Social Care Community Purchasing,Transfer Payments - Adult Social Services Clients,18/11/2021,11331152,"34,642.10",Revenue,1000404,Care At Home
Shropshire,00GG,People - Social Care Community Purchasing,Third Party Payments - Private Contractors,18/11/2021,11331241,957.90,Revenue,1000484,Radis Community Care
Shropshire,00GG,People - Social Care Community Purchasing,Transfer Payments - Adult Social Services Clients,18/11/2021,11331241,"17,027.29",Revenue,1000484,Radis Community Care
Shropshire,00GG,People - Social Care Hospital Interface Purchasing,Transfer Payments - Adult Social Services Clients,18/11/2021,11331241,"1,167.40",Revenue,1000484,Radis Community Care
Shropshire,00GG,People - Social Care Mental Health Purchasing,Transfer Payments - Adult Social Services Clients,18/11/2021,11331241,"1,222.71",Revenue,1000484,Radis Community Care
Shropshire,00GG,People - Social Care Community Purchasing,Transfer Payments - Adult Social Services Clients,18/11/2021,11331164,"4,559.53",Revenue,1000537,Trident Reach The People Charity
Shropshire,00GG,People - Social Care Mental Health Purchasing,Transfer Payments - Adult Social Services Clients,18/11/2021,11331164,"1,423.37",Revenue,1000537,Trident Reach The People Charity
Shropshire,00GG,People - Social Care Community Purchasing,Third Party Payments - Private Contractors,18/11/2021,11331356,"29,847.80",Revenue,1000537,Trident Reach The People Charity
Shropshire,00GG,People - Social Care Community Purchasing,Third Party Payments - Private Contractors,18/11/2021,11331378,"27,871.48",Revenue,1000537,Trident Reach The People Charity
Shropshire,00GG,Place - Property Services Group,Premises-Related Expenditure - Repairs alterations and maintenance of buildings,18/11/2021,11328491,"1,477.23",Revenue,1000752,Window & Door Contract Services
Shropshire,00GG,Place - Economic Growth,Supplies & Services - Services,18/11/2021,3285920,"1,000.00",Revenue,1000819,Environment Agency
Shropshire,00GG,Place - Environment and Transport (Public Transport),Third Party Payments - Transport Operators,18/11/2021,3288517,532.17,Revenue,1000898,Lugg Valley Travel Ltd
Shropshire,00GG,People - Home to School Transport,Transport-Related Expenditure - Contract Hire and Operating Leases,18/11/2021,3284336,"2,232.00",Revenue,1001380,P E Davies
Shropshire,00GG,People - Home to School Transport,Transport-Related Expenditure - Contract Hire and Operating Leases,18/11/2021,3284424,"2,224.00",Revenue,1001380,P E Davies
Shropshire,00GG,Capital - Primary School Capital,Non Revenue - Non Revenue,18/11/2021,3288563,"2,163.32",Capital,1001392,Currys
Shropshire,00GG,Capital - Primary School Capital,Non Revenue - Non Revenue,18/11/2021,3288257,"1,590.00",Capital,1001651,Ccs Media
Shropshire,00GG,People - Care Management - Assistive Equipment & Technology,Premises-Related Expenditure - Repairs alterations and maintenance of buildings,18/11/2021,11328534,"1,182.49",Revenue,1001663,Lift & Engineering Services Ltd
Shropshire,00GG,Legal and Democratic Services - Legal Services � Child Care,Supplies & Services - Services,18/11/2021,3288770,950.00,Revenue,1001738,Joanna Chadwick
Shropshire,00GG,People - Social Care Community Purchasing,Transfer Payments - Adult Social Services Clients,18/11/2021,11331246,542.86,Revenue,1001993,Red George Rural Skills Project
Shropshire,00GG,People - Care Management - Transport,Transport-Related Expenditure - Contract Hire and Operating Leases,18/11/2021,3286685,"1,920.00",Revenue,1002881,B Khan
Shropshire,00GG,People - Home to School Transport,Transport-Related Expenditure - Contract Hire and Operating Leases,18/11/2021,3284009,"1,248.00",Revenue,1003297,Mikes Cars
Shropshire,00GG,People - Home to School Transport,Transport-Related Expenditure - Contract Hire and Operating Leases,18/11/2021,3284017,"1,275.00",Revenue,1003297,Mikes Cars
Shropshire,00GG,People - Education Psychology Service,Supplies & Services - Equipment Furniture and Materials,18/11/2021,3281517,"2,905.94",Revenue,1003734,Gl Education Group Ltd
Shropshire,00GG,Place - Environment and Transport (Public Transport),Third Party Payments - Transport Operators,18/11/2021,3288468,"5,258.59",Revenue,1004060,Diamond Bus Company Ltd
Shropshire,00GG,Place - Corporate Landlord - Traveller Sites,Premises-Related Expenditure - Repairs alterations and maintenance of buildings,18/11/2021,11328489,"1,312.00",Revenue,1004402,Rmf (Landscaping) Ltd
Shropshire,00GG,Place - Assistant Director Economy & Place,Non Revenue - Non Revenue,18/11/2021,3287503,"10,519.17",Revenue,1004594,Shrewsbury Business Improvement Dist Ltd
Shropshire,00GG,Children's Services - Special Educational Needs & Disability,Supplies & Services - Services,18/11/2021,3288795,"1,283.87",Revenue,1004644,Amica Coleman
Shropshire,00GG,People - Home to School Transport,Transport-Related Expenditure - Contract Hire and Operating Leases,18/11/2021,3282868,"1,888.80",Revenue,1004706,Abermule Private Hire
Shropshire,00GG,People - Care Management - Transport,Transport-Related Expenditure - Contract Hire and Operating Leases,18/11/2021,3284110,568.00,Revenue,1004760,Alexanders Of Wem Taxis
Shropshire,00GG,Place - Environment and Transport (Public Transport),Third Party Payments - Transport Operators,18/11/2021,3288489,"1,050.96",Revenue,1004941,Banga Travel
Shropshire,00GG,People - Adult Social Care Management,Employees - Direct Employee Expenses,18/11/2021,3287768,"4,761.90",Revenue,1005052,Hampton'S Resourcing
Shropshire,00GG,Adult Services - Adult Social Care Management,Employees - Direct Employee Expenses,18/11/2021,3287769,"4,761.90",Revenue,1005052,Hampton'S Resourcing
Shropshire,00GG,People - Placements: Placement Staffing,Employees - Direct Employee Expenses,18/11/2021,3281942,"2,518.96",Revenue,1005988,NonStop Consulting Ltd
Shropshire,00GG,Children's Services - Looked After Children (LAC) Service,Employees - Direct Employee Expenses,18/11/2021,3288628,"2,147.60",Revenue,1005988,NonStop Consulting Ltd
Shropshire,00GG,Children's Services - Placements: Adoption Service,Supplies & Services - Services,18/11/2021,11328033,942.00,Revenue,1006190,Adoption Matters
Shropshire,00GG,People - Social Care Community Purchasing,Third Party Payments - Private Contractors,18/11/2021,11331465,"2,035.44",Revenue,1007492,Advinia Care Homes Ltd
Shropshire,00GG,People - Social Care Hospital Interface Purchasing,Third Party Payments - Private Contractors,18/11/2021,11331383,"1,900.00",Revenue,1007820,Haresbrook Park Limited
Shropshire,00GG,People - Social Care Hospital Interface Purchasing,Third Party Payments - Private Contractors,18/11/2021,11331306,"3,514.28",Revenue,1007823,Alexandra House
Shropshire,00GG,People - Social Care Community Purchasing,Third Party Payments - Private Contractors,18/11/2021,11331342,"13,703.68",Revenue,1007824,Springcare (Hatton) Limited
Shropshire,00GG,People - Social Care Hospital Interface Purchasing,Third Party Payments - Private Contractors,18/11/2021,11331342,"1,681.92",Revenue,1007824,Springcare (Hatton) Limited
Shropshire,00GG,People - Social Care Community Purchasing,Third Party Payments - Private Contractors,18/11/2021,11331341,"50,972.68",Revenue,1007825,Portland House Care Limited
Shropshire,00GG,People - Social Care Mental Health Purchasing,Third Party Payments - Private Contractors,18/11/2021,11331341,"3,915.68",Revenue,1007825,Portland House Care Limited
Shropshire,00GG,People - Social Care Community Purchasing,Third Party Payments - Private Contractors,18/11/2021,11331404,"155,532.05",Revenue,1007826,The Uplands At Oxon
Shropshire,00GG,People - Social Care Hospital Interface Purchasing,Third Party Payments - Private Contractors,18/11/2021,11331404,"12,025.57",Revenue,1007826,The Uplands At Oxon
Shropshire,00GG,People - Social Care Mental Health Purchasing,Third Party Payments - Private Contractors,18/11/2021,11331404,"9,892.56",Revenue,1007826,The Uplands At Oxon
Shropshire,00GG,People - Social Care Community Purchasing,Third Party Payments - Private Contractors,18/11/2021,11331315,"47,940.98",Revenue,1007827,Mount House Residential Home
Shropshire,00GG,People - Social Care Hospital Interface Purchasing,Third Party Payments - Private Contractors,18/11/2021,11331315,433.89,Revenue,1007827,Mount House Residential Home
Shropshire,00GG,People - Social Care Community Purchasing,Third Party Payments - Private Contractors,18/11/2021,11331331,"41,498.32",Revenue,1007828,Llysfield Nursing Home Ltd
Shropshire,00GG,People - Social Care Hospital Interface Purchasing,Third Party Payments - Private Contractors,18/11/2021,11331331,"11,605.54",Revenue,1007828,Llysfield Nursing Home Ltd
Shropshire,00GG,People - Social Care Community Purchasing,Transfer Payments - Adult Social Services Clients,18/11/2021,11331141,"4,708.81",Revenue,1007829,English Care Ltd - Lady Forester Nursing Home
Shropshire,00GG,People - Social Care Community Purchasing,Third Party Payments - Private Contractors,18/11/2021,11331358,"23,407.16",Revenue,1007829,English Care Ltd - Lady Forester Nursing Home
Shropshire,00GG,People - Social Care Community Purchasing,Third Party Payments - Private Contractors,18/11/2021,11331318,"38,907.80",Revenue,1007830,Holy Cross Care Homes Ltd
